Body Name,Body,Date,Department,Beneficiary,Summary of Purpose (SeRCOP),Amount SUM,Merchant Code,Transaction Number,Supplier ID
Sandwell Metropolitan Borough Council,http://www.sandwell.gov.uk/info/200202/performance_and_spending/1079/payments_over_500,01-Jul-2022,Adult Social Care,POHWER,Adult Social Care,3181.07,Contract Payments,2223P04_CR00001,69485
Sandwell Metropolitan Borough Council,http://www.sandwell.gov.uk/info/200202/performance_and_spending/1079/payments_over_500,08-Jul-2022,Adults Social Care Capital,AXIS EUROPE PLC    ,Adults Social Care Capital,6013.51,Deferred Charges/Grant Payments,2223P04_CR00002,64946
Sandwell Metropolitan Borough Council,http://www.sandwell.gov.uk/info/200202/performance_and_spending/1079/payments_over_500,01-Jul-2022,Adults Social Care Capital,AXIS EUROPE PLC    ,Adults Social Care Capital,6234.71,Deferred Charges/Grant Payments,2223P04_CR00003,64946
Sandwell Metropolitan Borough Council,http://www.sandwell.gov.uk/info/200202/performance_and_spending/1079/payments_over_500,08-Jul-2022,Adults Social Care Capital,AXIS EUROPE PLC    ,Adults Social Care Capital,6243.53,Deferred Charges/Grant Payments,2223P04_CR00004,64946
Sandwell Metropolitan Borough Council,http://www.sandwell.gov.uk/info/200202/performance_and_spending/1079/payments_over_500,13-Jul-2022,Adults Social Care Capital,AXIS EUROPE PLC    ,Adults Social Care Capital,7484.61,Deferred Charges/Grant Payments,2223P04_CR00005,64946
Sandwell Metropolitan Borough Council,http://www.sandwell.gov.uk/info/200202/performance_and_spending/1079/payments_over_500,13-Jul-2022,Adults Social Care Capital,AXIS EUROPE PLC    ,Adults Social Care Capital,7678.25,Deferred Charges/Grant Payments,2223P04_CR00006,64946
Sandwell Metropolitan Borough Council,http://www.sandwell.gov.uk/info/200202/performance_and_spending/1079/payments_over_500,01-Jul-2022,Adults Social Care Capital,BANNER GROUP LTD,Adults Social Care Capital,1413.39,CIP - Fixtures & Fittings,2223P04_CR00007,134506
Sandwell Metropolitan Borough Council,http://www.sandwell.gov.uk/info/200202/performance_and_spending/1079/payments_over_500,13-Jul-2022,Adults Social Care Capital,DLM BUILDING & MAINTENANCE LTD,Adults Social Care Capital,7698.73,Deferred Charges/Grant Payments,2223P04_CR00008,137596
Sandwell Metropolitan Borough Council,http://www.sandwell.gov.uk/info/200202/performance_and_spending/1079/payments_over_500,15-Jul-2022,Adults Social Care Capital,DOLPHIN LIFTS MIDLANDS LTD,Adults Social Care Capital,530.00,Deferred Charges/Grant Payments,2223P04_CR00009,123852
Sandwell Metropolitan Borough Council,http://www.sandwell.gov.uk/info/200202/performance_and_spending/1079/payments_over_500,08-Jul-2022,Adults Social Care Capital,DOLPHIN LIFTS MIDLANDS LTD,Adults Social Care Capital,1463.17,Deferred Charges/Grant Payments,2223P04_CR00010,123852
Sandwell Metropolitan Borough Council,http://www.sandwell.gov.uk/info/200202/performance_and_spending/1079/payments_over_500,13-Jul-2022,Adults Social Care Capital,DOLPHIN LIFTS MIDLANDS LTD,Adults Social Care Capital,1497.60,Deferred Charges/Grant Payments,2223P04_CR00011,123852
Sandwell Metropolitan Borough Council,http://www.sandwell.gov.uk/info/200202/performance_and_spending/1079/payments_over_500,15-Jul-2022,Adults Social Care Capital,DOLPHIN LIFTS MIDLANDS LTD,Adults Social Care Capital,1710.00,Deferred Charges/Grant Payments,2223P04_CR00012,123852
Sandwell Metropolitan Borough Council,http://www.sandwell.gov.uk/info/200202/performance_and_spending/1079/payments_over_500,15-Jul-2022,Adults Social Care Capital,DOLPHIN LIFTS MIDLANDS LTD,Adults Social Care Capital,1796.00,Deferred Charges/Grant Payments,2223P04_CR00013,123852
Sandwell Metropolitan Borough Council,http://www.sandwell.gov.uk/info/200202/performance_and_spending/1079/payments_over_500,13-Jul-2022,Adults Social Care Capital,DOLPHIN LIFTS MIDLANDS LTD,Adults Social Care Capital,3659.33,Deferred Charges/Grant Payments,2223P04_CR00014,123852
Sandwell Metropolitan Borough Council,http://www.sandwell.gov.uk/info/200202/performance_and_spending/1079/payments_over_500,08-Jul-2022,Adults Social Care Capital,DOLPHIN LIFTS MIDLANDS LTD,Adults Social Care Capital,4526.00,Deferred Charges/Grant Payments,2223P04_CR00015,123852
Sandwell Metropolitan Borough Council,http://www.sandwell.gov.uk/info/200202/performance_and_spending/1079/payments_over_500,15-Jul-2022,Adults Social Care Capital,DOLPHIN LIFTS MIDLANDS LTD,Adults Social Care Capital,6065.00,Deferred Charges/Grant Payments,2223P04_CR00016,123852
Sandwell Metropolitan Borough Council,http://www.sandwell.gov.uk/info/200202/performance_and_spending/1079/payments_over_500,01-Jul-2022,Adults Social Care Capital,FIRST RESPONSE (FIRST AID) LTD,Adults Social Care Capital,2850.00,CIP - Fixtures & Fittings,2223P04_CR00017,57372
Sandwell Metropolitan Borough Council,http://www.sandwell.gov.uk/info/200202/performance_and_spending/1079/payments_over_500,01-Jul-2022,Adults Social Care Capital,LIFT & ENGINEERING SERVICES LTD,Adults Social Care Capital,886.83,CIP - Fixtures & Fittings,2223P04_CR00018,77003962
Sandwell Metropolitan Borough Council,http://www.sandwell.gov.uk/info/200202/performance_and_spending/1079/payments_over_500,01-Jul-2022,Adults Social Care Capital,LIFT & ENGINEERING SERVICES LTD,Adults Social Care Capital,1226.57,CIP - Fixtures & Fittings,2223P04_CR00019,77003962
Sandwell Metropolitan Borough Council,http://www.sandwell.gov.uk/info/200202/performance_and_spending/1079/payments_over_500,01-Jul-2022,Adults Social Care Capital,LIQUIDLOGIC LIMITED,Adults Social Care Capital,21630.00,ICT ,2223P04_CR00020,83167
Sandwell Metropolitan Borough Council,http://www.sandwell.gov.uk/info/200202/performance_and_spending/1079/payments_over_500,01-Jul-2022,Adults Social Care Capital,LIQUIDLOGIC LIMITED,Adults Social Care Capital,31440.00,ICT ,2223P04_CR00021,83167
Sandwell Metropolitan Borough Council,http://www.sandwell.gov.uk/info/200202/performance_and_spending/1079/payments_over_500,01-Jul-2022,Adults Social Care Capital,MY DEMENTIA IMPROVEMENT NETWORK LTD,Adults Social Care Capital,6640.00,CIP - Fixtures & Fittings,2223P04_CR00022,117005
Sandwell Metropolitan Borough Council,http://www.sandwell.gov.uk/info/200202/performance_and_spending/1079/payments_over_500,01-Jul-2022,Adults Social Care Capital,MY DEMENTIA IMPROVEMENT NETWORK LTD,Adults Social Care Capital,6640.00,CIP - Fixtures & Fittings,2223P04_CR00023,117005
Sandwell Metropolitan Borough Council,http://www.sandwell.gov.uk/info/200202/performance_and_spending/1079/payments_over_500,15-Jul-2022,Adults Social Care Capital,PR PROPERTY MAINTENANCE,Adults Social Care Capital,588.00,Deferred Charges/Grant Payments,2223P04_CR00024,33836
Sandwell Metropolitan Borough Council,http://www.sandwell.gov.uk/info/200202/performance_and_spending/1079/payments_over_500,01-Jul-2022,Adults Social Care Capital,PR PROPERTY MAINTENANCE,Adults Social Care Capital,1052.48,Deferred Charges/Grant Payments,2223P04_CR00025,33836
Sandwell Metropolitan Borough Council,http://www.sandwell.gov.uk/info/200202/performance_and_spending/1079/payments_over_500,01-Jul-2022,Adults Social Care Capital,PR PROPERTY MAINTENANCE,Adults Social Care Capital,8742.81,Deferred Charges/Grant Payments,2223P04_CR00026,33836
Sandwell Metropolitan Borough Council,http://www.sandwell.gov.uk/info/200202/performance_and_spending/1079/payments_over_500,01-Jul-2022,Adults Social Care Capital,PR PROPERTY MAINTENANCE,Adults Social Care Capital,9081.57,Deferred Charges/Grant Payments,2223P04_CR00027,33836
Sandwell Metropolitan Borough Council,http://www.sandwell.gov.uk/info/200202/performance_and_spending/1079/payments_over_500,01-Jul-2022,Adults Social Care Capital,PR PROPERTY MAINTENANCE,Adults Social Care Capital,9111.85,Deferred Charges/Grant Payments,2223P04_CR00028,33836
Sandwell Metropolitan Borough Council,http://www.sandwell.gov.uk/info/200202/performance_and_spending/1079/payments_over_500,01-Jul-2022,Adults Social Care Capital,PR PROPERTY MAINTENANCE,Adults Social Care Capital,29441.89,Deferred Charges/Grant Payments,2223P04_CR00029,33836
Sandwell Metropolitan Borough Council,http://www.sandwell.gov.uk/info/200202/performance_and_spending/1079/payments_over_500,01-Jul-2022,Adults Social Care Capital,RIDGE & PARTNERS LLP,Adults Social Care Capital,3800.00,"CIP - New Construction,Conversion, Enhancement & Reno",2223P04_CR00030,134994
Sandwell Metropolitan Borough Council,http://www.sandwell.gov.uk/info/200202/performance_and_spending/1079/payments_over_500,01-Jul-2022,Adults Social Care Capital,VINCI CONSTRUCTION LTD,Adults Social Care Capital,5313.19,Deferred Charges/Grant Payments,2223P04_CR00031,36361
Sandwell Metropolitan Borough Council,http://www.sandwell.gov.uk/info/200202/performance_and_spending/1079/payments_over_500,01-Jul-2022,Adults Social Care Capital,VINCI CONSTRUCTION LTD,Adults Social Care Capital,6017.19,Deferred Charges/Grant Payments,2223P04_CR00032,36361
Sandwell Metropolitan Borough Council,http://www.sandwell.gov.uk/info/200202/performance_and_spending/1079/payments_over_500,15-Jul-2022,Adults Social Care Capital,VINCI CONSTRUCTION LTD,Adults Social Care Capital,18097.26,Deferred Charges/Grant Payments,2223P04_CR00033,36361
Sandwell Metropolitan Borough Council,http://www.sandwell.gov.uk/info/200202/performance_and_spending/1079/payments_over_500,10-Jul-2022,Adults Social Care Capital,WILLMOTT DIXON CONSTRUCTION LIMITED,Adults Social Care Capital,495875.77,"CIP - New Construction,Conversion, Enhancement & Reno",2223P04_CR00034,34081
Sandwell Metropolitan Borough Council,http://www.sandwell.gov.uk/info/200202/performance_and_spending/1079/payments_over_500,01-Jul-2022,Adults Social Care Capital,ADM STUDIO LTD,Adults Social Care Capital,10000.00,Deferred Charges/Grant Payments,2223P04_CR00035,155470
Sandwell Metropolitan Borough Council,http://www.sandwell.gov.uk/info/200202/performance_and_spending/1079/payments_over_500,01-Jul-2022,Adults Social Care Capital,ADM STUDIO LTD,Adults Social Care Capital,10000.00,Deferred Charges/Grant Payments,2223P04_CR00036,155470
Sandwell Metropolitan Borough Council,http://www.sandwell.gov.uk/info/200202/performance_and_spending/1079/payments_over_500,01-Jul-2022,Adults Social Care Capital,HOME DESIGN,Adults Social Care Capital,27000.00,Deferred Charges/Grant Payments,2223P04_CR00037,141847
Sandwell Metropolitan Borough Council,http://www.sandwell.gov.uk/info/200202/performance_and_spending/1079/payments_over_500,15-Jul-2022,Adults Social Care Capital,INTEGRATED DESIGNS & ASSOCIATES LTD,Adults Social Care Capital,8145.00,Deferred Charges/Grant Payments,2223P04_CR00038,22339
Sandwell Metropolitan Borough Council,http://www.sandwell.gov.uk/info/200202/performance_and_spending/1079/payments_over_500,04-Jul-2022,Adults Social Care Capital,TDF DESIGN LIMITED,Adults Social Care Capital,7999.06,Deferred Charges/Grant Payments,2223P04_CR00039,10320
Sandwell Metropolitan Borough Council,http://www.sandwell.gov.uk/info/200202/performance_and_spending/1079/payments_over_500,07-Jul-2022,Adults Social Care Capital,TDF DESIGN LIMITED,Adults Social Care Capital,8627.02,Deferred Charges/Grant Payments,2223P04_CR00040,10320
Sandwell Metropolitan Borough Council,http://www.sandwell.gov.uk/info/200202/performance_and_spending/1079/payments_over_500,01-Jul-2022,Adults Social Care Capital,TDF DESIGN LIMITED,Adults Social Care Capital,14417.00,Deferred Charges/Grant Payments,2223P04_CR00041,10320
Sandwell Metropolitan Borough Council,http://www.sandwell.gov.uk/info/200202/performance_and_spending/1079/payments_over_500,01-Jul-2022,Adults Social Care Capital,TDF DESIGN LIMITED,Adults Social Care Capital,17410.00,Deferred Charges/Grant Payments,2223P04_CR00042,10320
Sandwell Metropolitan Borough Council,http://www.sandwell.gov.uk/info/200202/performance_and_spending/1079/payments_over_500,01-Jul-2022,Adults Social Care Capital,R J WISHART,Adults Social Care Capital,10000.00,Deferred Charges/Grant Payments,2223P04_CR00043,08555927
Sandwell Metropolitan Borough Council,http://www.sandwell.gov.uk/info/200202/performance_and_spending/1079/payments_over_500,01-Jul-2022,Childrens Services,121 CARZ,Childrens Services,1584.00,Public Transport,2223P04_CR00044,116848
Sandwell Metropolitan Borough Council,http://www.sandwell.gov.uk/info/200202/performance_and_spending/1079/payments_over_500,01-Jul-2022,Childrens Services,121 CARZ,Childrens Services,1755.00,Public Transport,2223P04_CR00045,116848
Sandwell Metropolitan Borough Council,http://www.sandwell.gov.uk/info/200202/performance_and_spending/1079/payments_over_500,01-Jul-2022,Childrens Services,121 CARZ,Childrens Services,1872.00,Public Transport,2223P04_CR00046,116848
Sandwell Metropolitan Borough Council,http://www.sandwell.gov.uk/info/200202/performance_and_spending/1079/payments_over_500,01-Jul-2022,Childrens Services,121 CARZ,Childrens Services,2495.92,Public Transport,2223P04_CR00047,116848
Sandwell Metropolitan Borough Council,http://www.sandwell.gov.uk/info/200202/performance_and_spending/1079/payments_over_500,01-Jul-2022,Childrens Services,121 CARZ,Childrens Services,4723.48,Public Transport,2223P04_CR00048,116848
Sandwell Metropolitan Borough Council,http://www.sandwell.gov.uk/info/200202/performance_and_spending/1079/payments_over_500,01-Jul-2022,Childrens Services,121 CARZ,Childrens Services,5534.82,Public Transport,2223P04_CR00049,116848
Sandwell Metropolitan Borough Council,http://www.sandwell.gov.uk/info/200202/performance_and_spending/1079/payments_over_500,01-Jul-2022,Childrens Services,4 COMMUNITY TRUST CIC,Childrens Services,749.92,Externally Purchased Professional Services ,2223P04_CR00050,137880
Sandwell Metropolitan Borough Council,http://www.sandwell.gov.uk/info/200202/performance_and_spending/1079/payments_over_500,18-Jul-2022,Childrens Services,A GREENER CHILDHOOD,Childrens Services,505.00,Externally Purchased Professional Services ,2223P04_CR00051,155772
Sandwell Metropolitan Borough Council,http://www.sandwell.gov.uk/info/200202/performance_and_spending/1079/payments_over_500,01-Jul-2022,Childrens Services,ABIGAIL D'AMORE ASSOCIATES,Childrens Services,500.00,Externally Purchased Professional Services ,2223P04_CR00052,162300
Sandwell Metropolitan Borough Council,http://www.sandwell.gov.uk/info/200202/performance_and_spending/1079/payments_over_500,01-Jul-2022,Childrens Services,ALL SAINTS CE PRIMARY SCHOOL         ,Childrens Services,500.00,Grants,2223P04_CR00053,08457454
Sandwell Metropolitan Borough Council,http://www.sandwell.gov.uk/info/200202/performance_and_spending/1079/payments_over_500,01-Jul-2022,Childrens Services,ALL SAINTS CE PRIMARY SCHOOL         ,Childrens Services,1044.28,Externally Purchased Professional Services ,2223P04_CR00054,08457454
Sandwell Metropolitan Borough Council,http://www.sandwell.gov.uk/info/200202/performance_and_spending/1079/payments_over_500,01-Jul-2022,Childrens Services,ALL SAINTS CE PRIMARY SCHOOL         ,Childrens Services,1044.28,Externally Purchased Professional Services ,2223P04_CR00055,08457454
Sandwell Metropolitan Borough Council,http://www.sandwell.gov.uk/info/200202/performance_and_spending/1079/payments_over_500,10-Jul-2022,Childrens Services,ALL SAINTS CE PRIMARY SCHOOL         ,Childrens Services,1044.28,Externally Purchased Professional Services ,2223P04_CR00056,08457454
Sandwell Metropolitan Borough Council,http://www.sandwell.gov.uk/info/200202/performance_and_spending/1079/payments_over_500,01-Jul-2022,Childrens Services,ASPIRE ACTIVE CAMPS LTD,Childrens Services,3400.00,Grant Payments,2223P04_CR00057,163410
Sandwell Metropolitan Borough Council,http://www.sandwell.gov.uk/info/200202/performance_and_spending/1079/payments_over_500,01-Jul-2022,Childrens Services,ASPIRE ACTIVE CAMPS LTD,Childrens Services,4800.00,Grant Payments,2223P04_CR00058,163410
Sandwell Metropolitan Borough Council,http://www.sandwell.gov.uk/info/200202/performance_and_spending/1079/payments_over_500,01-Jul-2022,Childrens Services,ASTRONOMICAL ENTERTAINMENT LTD T/A FIZZ POP SCIENCE WEST MIDLANDS,Childrens Services,1200.00,Externally Purchased Professional Services ,2223P04_CR00059,138205
Sandwell Metropolitan Borough Council,http://www.sandwell.gov.uk/info/200202/performance_and_spending/1079/payments_over_500,07-Jul-2022,Childrens Services,AVANTI GAS LIMITED,Childrens Services,670.95,Gas,2223P04_CR00060,60069
Sandwell Metropolitan Borough Council,http://www.sandwell.gov.uk/info/200202/performance_and_spending/1079/payments_over_500,07-Jul-2022,Childrens Services,AVANTI GAS LIMITED,Childrens Services,1278.00,Gas,2223P04_CR00061,60069
Sandwell Metropolitan Borough Council,http://www.sandwell.gov.uk/info/200202/performance_and_spending/1079/payments_over_500,04-Jul-2022,Childrens Services,BAINS TRAVEL,Childrens Services,962.50,Public Transport,2223P04_CR00062,06002298
Sandwell Metropolitan Borough Council,http://www.sandwell.gov.uk/info/200202/performance_and_spending/1079/payments_over_500,04-Jul-2022,Childrens Services,BAINS TRAVEL,Childrens Services,1440.00,Public Transport,2223P04_CR00063,06002298
Sandwell Metropolitan Borough Council,http://www.sandwell.gov.uk/info/200202/performance_and_spending/1079/payments_over_500,06-Jul-2022,Childrens Services,BAINS TRAVEL,Childrens Services,1958.80,Public Transport,2223P04_CR00064,06002298
Sandwell Metropolitan Borough Council,http://www.sandwell.gov.uk/info/200202/performance_and_spending/1079/payments_over_500,21-Jul-2022,Childrens Services,BAINS TRAVEL,Childrens Services,2076.80,Public Transport,2223P04_CR00065,06002298
Sandwell Metropolitan Borough Council,http://www.sandwell.gov.uk/info/200202/performance_and_spending/1079/payments_over_500,10-Jul-2022,Childrens Services,BANGLADESHI WOMEN'S ASSOCIATION LIMITED,Childrens Services,560.00,Grants,2223P04_CR00066,69648
Sandwell Metropolitan Borough Council,http://www.sandwell.gov.uk/info/200202/performance_and_spending/1079/payments_over_500,01-Jul-2022,Childrens Services,BANGLADESHI WOMEN'S ASSOCIATION LIMITED,Childrens Services,1212.04,Grants,2223P04_CR00067,69648
Sandwell Metropolitan Borough Council,http://www.sandwell.gov.uk/info/200202/performance_and_spending/1079/payments_over_500,13-Jul-2022,Childrens Services,BANGLADESHI WOMEN'S ASSOCIATION LIMITED,Childrens Services,2541.99,Grants,2223P04_CR00068,69648
Sandwell Metropolitan Borough Council,http://www.sandwell.gov.uk/info/200202/performance_and_spending/1079/payments_over_500,15-Jul-2022,Childrens Services,BILSTON RESOURCE CENTRE,Childrens Services,1841.62,Grants,2223P04_CR00069,131198
Sandwell Metropolitan Borough Council,http://www.sandwell.gov.uk/info/200202/performance_and_spending/1079/payments_over_500,08-Jul-2022,Childrens Services,BLACK COUNTRY HOUSING GROUP LIMITED,Childrens Services,2760.29,Grants,2223P04_CR00070,01715636
Sandwell Metropolitan Borough Council,http://www.sandwell.gov.uk/info/200202/performance_and_spending/1079/payments_over_500,08-Jul-2022,Childrens Services,BLACK COUNTRY HOUSING GROUP LIMITED,Childrens Services,2760.29,Grants,2223P04_CR00071,01715636
Sandwell Metropolitan Borough Council,http://www.sandwell.gov.uk/info/200202/performance_and_spending/1079/payments_over_500,15-Jul-2022,Childrens Services,BLACK COUNTRY TOURING,Childrens Services,1500.00,Externally Purchased Professional Services ,2223P04_CR00072,01661722
Sandwell Metropolitan Borough Council,http://www.sandwell.gov.uk/info/200202/performance_and_spending/1079/payments_over_500,13-Jul-2022,Childrens Services,BLACK COUNTRY TOURING,Childrens Services,2025.00,Externally Purchased Professional Services ,2223P04_CR00073,01661722
Sandwell Metropolitan Borough Council,http://www.sandwell.gov.uk/info/200202/performance_and_spending/1079/payments_over_500,01-Jul-2022,Childrens Services,BLAKEMORE FOOD SERVICE LTD,Childrens Services,507.59,Catering Provisions,2223P04_CR00074,2518
Sandwell Metropolitan Borough Council,http://www.sandwell.gov.uk/info/200202/performance_and_spending/1079/payments_over_500,01-Jul-2022,Childrens Services,BLAKEMORE FOOD SERVICE LTD,Childrens Services,553.55,Catering Provisions,2223P04_CR00075,2518
Sandwell Metropolitan Borough Council,http://www.sandwell.gov.uk/info/200202/performance_and_spending/1079/payments_over_500,01-Jul-2022,Childrens Services,BLAKEMORE FOOD SERVICE LTD,Childrens Services,587.86,Catering Provisions,2223P04_CR00076,2518
Sandwell Metropolitan Borough Council,http://www.sandwell.gov.uk/info/200202/performance_and_spending/1079/payments_over_500,01-Jul-2022,Childrens Services,BLAKEMORE FOOD SERVICE LTD,Childrens Services,651.86,Catering Provisions,2223P04_CR00077,2518
Sandwell Metropolitan Borough Council,http://www.sandwell.gov.uk/info/200202/performance_and_spending/1079/payments_over_500,01-Jul-2022,Childrens Services,BLAKEMORE FOOD SERVICE LTD,Childrens Services,652.93,Catering Provisions,2223P04_CR00078,2518
Sandwell Metropolitan Borough Council,http://www.sandwell.gov.uk/info/200202/performance_and_spending/1079/payments_over_500,04-Jul-2022,Childrens Services,BLAKEMORE FOOD SERVICE LTD,Childrens Services,817.24,Catering Provisions,2223P04_CR00079,2518
Sandwell Metropolitan Borough Council,http://www.sandwell.gov.uk/info/200202/performance_and_spending/1079/payments_over_500,07-Jul-2022,Childrens Services,BLAKEMORE FOOD SERVICE LTD,Childrens Services,1315.07,Catering Provisions,2223P04_CR00080,2518
Sandwell Metropolitan Borough Council,http://www.sandwell.gov.uk/info/200202/performance_and_spending/1079/payments_over_500,01-Jul-2022,Childrens Services,BLITHFIELD SAFETY TRAINING LTD,Childrens Services,780.00,Externally Purchased Professional Services ,2223P04_CR00081,26618
Sandwell Metropolitan Borough Council,http://www.sandwell.gov.uk/info/200202/performance_and_spending/1079/payments_over_500,01-Jul-2022,Childrens Services,BRIDGE CONSTRUCTION LTD,Childrens Services,746.52,Externally Purchased Professional Services ,2223P04_CR00082,127570
Sandwell Metropolitan Borough Council,http://www.sandwell.gov.uk/info/200202/performance_and_spending/1079/payments_over_500,04-Jul-2022,Childrens Services,BRUSHSTROKES,Childrens Services,1200.04,Grants,2223P04_CR00083,21029374
Sandwell Metropolitan Borough Council,http://www.sandwell.gov.uk/info/200202/performance_and_spending/1079/payments_over_500,01-Jul-2022,Childrens Services,BUTT TAXIS,Childrens Services,3958.93,Public Transport,2223P04_CR00084,109306
Sandwell Metropolitan Borough Council,http://www.sandwell.gov.uk/info/200202/performance_and_spending/1079/payments_over_500,01-Jul-2022,Childrens Services,BUTT TAXIS,Childrens Services,4068.42,Public Transport,2223P04_CR00085,109306
Sandwell Metropolitan Borough Council,http://www.sandwell.gov.uk/info/200202/performance_and_spending/1079/payments_over_500,21-Jul-2022,Childrens Services,BUTT TAXIS,Childrens Services,4197.42,Public Transport,2223P04_CR00086,109306
Sandwell Metropolitan Borough Council,http://www.sandwell.gov.uk/info/200202/performance_and_spending/1079/payments_over_500,01-Jul-2022,Childrens Services,CAREERSOFT,Childrens Services,1016.00,Subscriptions,2223P04_CR00087,157662
Sandwell Metropolitan Borough Council,http://www.sandwell.gov.uk/info/200202/performance_and_spending/1079/payments_over_500,01-Jul-2022,Childrens Services,CERTAS ENERGY LIMITED,Childrens Services,3269.65,Oil,2223P04_CR00088,80421
Sandwell Metropolitan Borough Council,http://www.sandwell.gov.uk/info/200202/performance_and_spending/1079/payments_over_500,10-Jul-2022,Childrens Services,CHRIST CHURCH C OF E PRIMARY SCHOOL,Childrens Services,500.00,Grants,2223P04_CR00089,1705
Sandwell Metropolitan Borough Council,http://www.sandwell.gov.uk/info/200202/performance_and_spending/1079/payments_over_500,10-Jul-2022,Childrens Services,CHRIST CHURCH C OF E PRIMARY SCHOOL,Childrens Services,500.00,Grants,2223P04_CR00090,1705
Sandwell Metropolitan Borough Council,http://www.sandwell.gov.uk/info/200202/performance_and_spending/1079/payments_over_500,10-Jul-2022,Childrens Services,CHRIST CHURCH C OF E PRIMARY SCHOOL,Childrens Services,500.00,Grants,2223P04_CR00091,1705
Sandwell Metropolitan Borough Council,http://www.sandwell.gov.uk/info/200202/performance_and_spending/1079/payments_over_500,01-Jul-2022,Childrens Services,CHRIST CHURCH C OF E PRIMARY SCHOOL,Childrens Services,746.52,Externally Purchased Professional Services ,2223P04_CR00092,1705
Sandwell Metropolitan Borough Council,http://www.sandwell.gov.uk/info/200202/performance_and_spending/1079/payments_over_500,01-Jul-2022,Childrens Services,CHRIST CHURCH C OF E PRIMARY SCHOOL,Childrens Services,6328.00,Grant Payments,2223P04_CR00093,1705
Sandwell Metropolitan Borough Council,http://www.sandwell.gov.uk/info/200202/performance_and_spending/1079/payments_over_500,01-Jul-2022,Childrens Services,CITRON HYGIENE UK LTD,Childrens Services,707.09,Materials & Consumables,2223P04_CR00094,140849
Sandwell Metropolitan Borough Council,http://www.sandwell.gov.uk/info/200202/performance_and_spending/1079/payments_over_500,01-Jul-2022,Childrens Services,CLASSIC CARS 1997,Childrens Services,2867.50,Public Transport,2223P04_CR00095,06005093
Sandwell Metropolitan Borough Council,http://www.sandwell.gov.uk/info/200202/performance_and_spending/1079/payments_over_500,01-Jul-2022,Childrens Services,CLASSIC CARS 1997,Childrens Services,54434.28,Public Transport,2223P04_CR00096,06005093
Sandwell Metropolitan Borough Council,http://www.sandwell.gov.uk/info/200202/performance_and_spending/1079/payments_over_500,01-Jul-2022,Childrens Services,COMMUNITY ACTION PROJECT,Childrens Services,3435.00,Grant Payments,2223P04_CR00097,01702622
Sandwell Metropolitan Borough Council,http://www.sandwell.gov.uk/info/200202/performance_and_spending/1079/payments_over_500,01-Jul-2022,Childrens Services,COMMUNITY ACTION PROJECT,Childrens Services,11088.00,Grant Payments,2223P04_CR00098,01702622
Sandwell Metropolitan Borough Council,http://www.sandwell.gov.uk/info/200202/performance_and_spending/1079/payments_over_500,14-Jul-2022,Childrens Services,COMMUNITY CONNECT FOUNDATION,Childrens Services,3061.88,Grants,2223P04_CR00099,01685391
Sandwell Metropolitan Borough Council,http://www.sandwell.gov.uk/info/200202/performance_and_spending/1079/payments_over_500,15-Jul-2022,Childrens Services,CONFEDERATION OF BANGLADESHI ORGANISATIONS (CBO) LIMITED,Childrens Services,1085.21,Externally Purchased Professional Services ,2223P04_CR00100,10034
Sandwell Metropolitan Borough Council,http://www.sandwell.gov.uk/info/200202/performance_and_spending/1079/payments_over_500,13-Jul-2022,Childrens Services,CONFEDERATION OF BANGLADESHI ORGANISATIONS (CBO) LIMITED,Childrens Services,3500.29,Grants,2223P04_CR00101,10034
Sandwell Metropolitan Borough Council,http://www.sandwell.gov.uk/info/200202/performance_and_spending/1079/payments_over_500,08-Jul-2022,Childrens Services,CORONA ENERGY RETAIL 2 LIMITED,Childrens Services,1249.26,Gas,2223P04_CR00102,118395
Sandwell Metropolitan Borough Council,http://www.sandwell.gov.uk/info/200202/performance_and_spending/1079/payments_over_500,06-Jul-2022,Childrens Services,COUNTY CARS (2003) LIMITED,Childrens Services,3696.00,Public Transport,2223P04_CR00103,06002387
Sandwell Metropolitan Borough Council,http://www.sandwell.gov.uk/info/200202/performance_and_spending/1079/payments_over_500,01-Jul-2022,Childrens Services,COUNTY CARS (2003) LIMITED,Childrens Services,3696.00,Public Transport,2223P04_CR00104,06002387
Sandwell Metropolitan Borough Council,http://www.sandwell.gov.uk/info/200202/performance_and_spending/1079/payments_over_500,06-Jul-2022,Childrens Services,COUNTY CARS (2003) LIMITED,Childrens Services,38720.00,Public Transport,2223P04_CR00105,06002387
Sandwell Metropolitan Borough Council,http://www.sandwell.gov.uk/info/200202/performance_and_spending/1079/payments_over_500,06-Jul-2022,Childrens Services,COUNTY CARS (2003) LIMITED,Childrens Services,38720.00,Public Transport,2223P04_CR00106,06002387
Sandwell Metropolitan Borough Council,http://www.sandwell.gov.uk/info/200202/performance_and_spending/1079/payments_over_500,06-Jul-2022,Childrens Services,COUNTY CARS (2003) LIMITED,Childrens Services,88035.02,Public Transport,2223P04_CR00107,06002387
Sandwell Metropolitan Borough Council,http://www.sandwell.gov.uk/info/200202/performance_and_spending/1079/payments_over_500,01-Jul-2022,Childrens Services,COUNTY CARS (2003) LIMITED,Childrens Services,88035.02,Public Transport,2223P04_CR00108,06002387
Sandwell Metropolitan Borough Council,http://www.sandwell.gov.uk/info/200202/performance_and_spending/1079/payments_over_500,02-Jul-2022,Childrens Services,CYBER MEDIA SOLUTIONS LTD,Childrens Services,755.00,Licences,2223P04_CR00109,114293
Sandwell Metropolitan Borough Council,http://www.sandwell.gov.uk/info/200202/performance_and_spending/1079/payments_over_500,06-Jul-2022,Childrens Services,D J TRAVEL,Childrens Services,2956.80,Public Transport,2223P04_CR00110,96415
Sandwell Metropolitan Borough Council,http://www.sandwell.gov.uk/info/200202/performance_and_spending/1079/payments_over_500,21-Jul-2022,Childrens Services,D J TRAVEL,Childrens Services,2956.80,Public Transport,2223P04_CR00111,96415
Sandwell Metropolitan Borough Council,http://www.sandwell.gov.uk/info/200202/performance_and_spending/1079/payments_over_500,15-Jul-2022,Childrens Services,DEPARTMENT FOR EDUCATION,Childrens Services,142333.38,Grant Payments,2223P04_CR00112,120965
Sandwell Metropolitan Borough Council,http://www.sandwell.gov.uk/info/200202/performance_and_spending/1079/payments_over_500,14-Jul-2022,Childrens Services,DIGBETH DINING CLUB CIC,Childrens Services,5700.00,Catering Provisions,2223P04_CR00113,153646
Sandwell Metropolitan Borough Council,http://www.sandwell.gov.uk/info/200202/performance_and_spending/1079/payments_over_500,01-Jul-2022,Childrens Services,DIGBETH DINING CLUB CIC,Childrens Services,6650.00,Externally Purchased Professional Services ,2223P04_CR00114,153646
Sandwell Metropolitan Borough Council,http://www.sandwell.gov.uk/info/200202/performance_and_spending/1079/payments_over_500,01-Jul-2022,Childrens Services,DIRECTION TRAINING & MANAGEMENT,Childrens Services,1000.00,Externally Purchased Professional Services ,2223P04_CR00115,01727395
Sandwell Metropolitan Borough Council,http://www.sandwell.gov.uk/info/200202/performance_and_spending/1079/payments_over_500,01-Jul-2022,Childrens Services,DR PRINT (UK) LTD,Childrens Services,840.00,Advertising & Publicity,2223P04_CR00116,63228
Sandwell Metropolitan Borough Council,http://www.sandwell.gov.uk/info/200202/performance_and_spending/1079/payments_over_500,01-Jul-2022,Childrens Services,DROACH TRAVEL LTD,Childrens Services,20770.88,Public Transport,2223P04_CR00117,06002707
Sandwell Metropolitan Borough Council,http://www.sandwell.gov.uk/info/200202/performance_and_spending/1079/payments_over_500,04-Jul-2022,Childrens Services,DROACH TRAVEL LTD,Childrens Services,21030.96,Public Transport,2223P04_CR00118,06002707
Sandwell Metropolitan Borough Council,http://www.sandwell.gov.uk/info/200202/performance_and_spending/1079/payments_over_500,01-Jul-2022,Childrens Services,DRYWALL STEEL SECTIONS LTD,Childrens Services,1085.21,Externally Purchased Professional Services ,2223P04_CR00119,132994
Sandwell Metropolitan Borough Council,http://www.sandwell.gov.uk/info/200202/performance_and_spending/1079/payments_over_500,04-Jul-2022,Childrens Services,DRYWALL STEEL SECTIONS LTD,Childrens Services,1085.21,Externally Purchased Professional Services ,2223P04_CR00120,132994
Sandwell Metropolitan Borough Council,http://www.sandwell.gov.uk/info/200202/performance_and_spending/1079/payments_over_500,01-Jul-2022,Childrens Services,EATON VALLEY PRIMARY SCHOOL,Childrens Services,716.39,Externally Purchased Professional Services ,2223P04_CR00121,88755
Sandwell Metropolitan Borough Council,http://www.sandwell.gov.uk/info/200202/performance_and_spending/1079/payments_over_500,01-Jul-2022,Childrens Services,EATON VALLEY PRIMARY SCHOOL,Childrens Services,716.39,Externally Purchased Professional Services ,2223P04_CR00122,88755
Sandwell Metropolitan Borough Council,http://www.sandwell.gov.uk/info/200202/performance_and_spending/1079/payments_over_500,01-Jul-2022,Childrens Services,EATON VALLEY PRIMARY SCHOOL,Childrens Services,716.39,Externally Purchased Professional Services ,2223P04_CR00123,88755
Sandwell Metropolitan Borough Council,http://www.sandwell.gov.uk/info/200202/performance_and_spending/1079/payments_over_500,01-Jul-2022,Childrens Services,EATON VALLEY PRIMARY SCHOOL,Childrens Services,746.52,Externally Purchased Professional Services ,2223P04_CR00124,88755
Sandwell Metropolitan Borough Council,http://www.sandwell.gov.uk/info/200202/performance_and_spending/1079/payments_over_500,01-Jul-2022,Childrens Services,EATON VALLEY PRIMARY SCHOOL,Childrens Services,746.52,Externally Purchased Professional Services ,2223P04_CR00125,88755
Sandwell Metropolitan Borough Council,http://www.sandwell.gov.uk/info/200202/performance_and_spending/1079/payments_over_500,01-Jul-2022,Childrens Services,EATON VALLEY PRIMARY SCHOOL,Childrens Services,1085.21,Externally Purchased Professional Services ,2223P04_CR00126,88755
Sandwell Metropolitan Borough Council,http://www.sandwell.gov.uk/info/200202/performance_and_spending/1079/payments_over_500,01-Jul-2022,Childrens Services,EATON VALLEY PRIMARY SCHOOL,Childrens Services,1085.21,Externally Purchased Professional Services ,2223P04_CR00127,88755
Sandwell Metropolitan Borough Council,http://www.sandwell.gov.uk/info/200202/performance_and_spending/1079/payments_over_500,01-Jul-2022,Childrens Services,EATON VALLEY PRIMARY SCHOOL,Childrens Services,1085.21,Externally Purchased Professional Services ,2223P04_CR00128,88755
Sandwell Metropolitan Borough Council,http://www.sandwell.gov.uk/info/200202/performance_and_spending/1079/payments_over_500,08-Jul-2022,Childrens Services,EON NEXT ENERGY LTD,Childrens Services,668.43,Electricity,2223P04_CR00129,149566
Sandwell Metropolitan Borough Council,http://www.sandwell.gov.uk/info/200202/performance_and_spending/1079/payments_over_500,01-Jul-2022,Childrens Services,FIRST RESPONSE (FIRST AID) LTD,Childrens Services,875.00,Externally Purchased Professional Services ,2223P04_CR00130,57372
Sandwell Metropolitan Borough Council,http://www.sandwell.gov.uk/info/200202/performance_and_spending/1079/payments_over_500,01-Jul-2022,Childrens Services,FIRST RESPONSE (FIRST AID) LTD,Childrens Services,875.00,Externally Purchased Professional Services ,2223P04_CR00131,57372
Sandwell Metropolitan Borough Council,http://www.sandwell.gov.uk/info/200202/performance_and_spending/1079/payments_over_500,01-Jul-2022,Childrens Services,FIRST RESPONSE (FIRST AID) LTD,Childrens Services,905.00,Externally Purchased Professional Services ,2223P04_CR00132,57372
Sandwell Metropolitan Borough Council,http://www.sandwell.gov.uk/info/200202/performance_and_spending/1079/payments_over_500,06-Jul-2022,Childrens Services,FIVE STAR TAXIS (DUDLEY) LTD,Childrens Services,123135.74,Public Transport,2223P04_CR00133,133542
Sandwell Metropolitan Borough Council,http://www.sandwell.gov.uk/info/200202/performance_and_spending/1079/payments_over_500,21-Jul-2022,Childrens Services,FIVE STAR TAXIS (DUDLEY) LTD,Childrens Services,123135.74,Public Transport,2223P04_CR00134,133542
Sandwell Metropolitan Borough Council,http://www.sandwell.gov.uk/info/200202/performance_and_spending/1079/payments_over_500,01-Jul-2022,Childrens Services,GATEWAY QUALIFICATIONS,Childrens Services,800.00,Externally Purchased Professional Services ,2223P04_CR00135,151038
Sandwell Metropolitan Borough Council,http://www.sandwell.gov.uk/info/200202/performance_and_spending/1079/payments_over_500,01-Jul-2022,Childrens Services,GAYTON ROAD COMMUNITY CENTRE ASSOCIATION,Childrens Services,516.00,Hire of Facilities,2223P04_CR00136,112420
Sandwell Metropolitan Borough Council,http://www.sandwell.gov.uk/info/200202/performance_and_spending/1079/payments_over_500,07-Jul-2022,Childrens Services,GAYTON ROAD COMMUNITY CENTRE ASSOCIATION,Childrens Services,516.00,Hire of Facilities,2223P04_CR00137,112420
Sandwell Metropolitan Borough Council,http://www.sandwell.gov.uk/info/200202/performance_and_spending/1079/payments_over_500,13-Jul-2022,Childrens Services,GRACE DESIGNS,Childrens Services,508.00,Advertising & Publicity,2223P04_CR00138,163631
Sandwell Metropolitan Borough Council,http://www.sandwell.gov.uk/info/200202/performance_and_spending/1079/payments_over_500,01-Jul-2022,Childrens Services,GREEN DESTINATIONS LTD,Childrens Services,4811.60,Public Transport,2223P04_CR00139,109275
Sandwell Metropolitan Borough Council,http://www.sandwell.gov.uk/info/200202/performance_and_spending/1079/payments_over_500,01-Jul-2022,Childrens Services,GREEN DESTINATIONS LTD,Childrens Services,5048.60,Public Transport,2223P04_CR00140,109275
Sandwell Metropolitan Borough Council,http://www.sandwell.gov.uk/info/200202/performance_and_spending/1079/payments_over_500,06-Jul-2022,Childrens Services,GREEN DESTINATIONS LTD,Childrens Services,5858.29,Public Transport,2223P04_CR00141,109275
Sandwell Metropolitan Borough Council,http://www.sandwell.gov.uk/info/200202/performance_and_spending/1079/payments_over_500,21-Jul-2022,Childrens Services,GREEN DESTINATIONS LTD,Childrens Services,6878.40,Public Transport,2223P04_CR00142,109275
Sandwell Metropolitan Borough Council,http://www.sandwell.gov.uk/info/200202/performance_and_spending/1079/payments_over_500,06-Jul-2022,Childrens Services,GREEN DESTINATIONS LTD,Childrens Services,100837.75,Public Transport,2223P04_CR00143,109275
Sandwell Metropolitan Borough Council,http://www.sandwell.gov.uk/info/200202/performance_and_spending/1079/payments_over_500,01-Jul-2022,Childrens Services,GREEN DESTINATIONS LTD,Childrens Services,100846.52,Public Transport,2223P04_CR00144,109275
Sandwell Metropolitan Borough Council,http://www.sandwell.gov.uk/info/200202/performance_and_spending/1079/payments_over_500,01-Jul-2022,Childrens Services,GTG TRAINING LTD,Childrens Services,571.00,Externally Purchased Professional Services ,2223P04_CR00145,148595
Sandwell Metropolitan Borough Council,http://www.sandwell.gov.uk/info/200202/performance_and_spending/1079/payments_over_500,01-Jul-2022,Childrens Services,GTG TRAINING LTD,Childrens Services,577.00,Externally Purchased Professional Services ,2223P04_CR00146,148595
Sandwell Metropolitan Borough Council,http://www.sandwell.gov.uk/info/200202/performance_and_spending/1079/payments_over_500,01-Jul-2022,Childrens Services,GTG TRAINING LTD,Childrens Services,2056.70,Externally Purchased Professional Services ,2223P04_CR00147,148595
Sandwell Metropolitan Borough Council,http://www.sandwell.gov.uk/info/200202/performance_and_spending/1079/payments_over_500,01-Jul-2022,Childrens Services,GTG TRAINING LTD,Childrens Services,2385.27,Externally Purchased Professional Services ,2223P04_CR00148,148595
Sandwell Metropolitan Borough Council,http://www.sandwell.gov.uk/info/200202/performance_and_spending/1079/payments_over_500,01-Jul-2022,Childrens Services,GTG TRAINING LTD,Childrens Services,2390.82,Externally Purchased Professional Services ,2223P04_CR00149,148595
Sandwell Metropolitan Borough Council,http://www.sandwell.gov.uk/info/200202/performance_and_spending/1079/payments_over_500,01-Jul-2022,Childrens Services,GTG TRAINING LTD,Childrens Services,2679.38,Externally Purchased Professional Services ,2223P04_CR00150,148595
Sandwell Metropolitan Borough Council,http://www.sandwell.gov.uk/info/200202/performance_and_spending/1079/payments_over_500,01-Jul-2022,Childrens Services,HANBURY PRIMARY SCHOOL,Childrens Services,746.52,Externally Purchased Professional Services ,2223P04_CR00151,01734408
Sandwell Metropolitan Borough Council,http://www.sandwell.gov.uk/info/200202/performance_and_spending/1079/payments_over_500,01-Jul-2022,Childrens Services,HANBURY PRIMARY SCHOOL,Childrens Services,1085.21,Externally Purchased Professional Services ,2223P04_CR00152,01734408
Sandwell Metropolitan Borough Council,http://www.sandwell.gov.uk/info/200202/performance_and_spending/1079/payments_over_500,01-Jul-2022,Childrens Services,HEALTH & SAFETY EXECUTIVE,Childrens Services,715.00,Licences,2223P04_CR00153,34974
Sandwell Metropolitan Borough Council,http://www.sandwell.gov.uk/info/200202/performance_and_spending/1079/payments_over_500,01-Jul-2022,Childrens Services,HEART & SOUL COMMUNITY CIC LTD,Childrens Services,989.40,Externally Purchased Professional Services ,2223P04_CR00154,133378
Sandwell Metropolitan Borough Council,http://www.sandwell.gov.uk/info/200202/performance_and_spending/1079/payments_over_500,01-Jul-2022,Childrens Services,HEART & SOUL COMMUNITY CIC LTD,Childrens Services,989.40,Externally Purchased Professional Services ,2223P04_CR00155,133378
Sandwell Metropolitan Borough Council,http://www.sandwell.gov.uk/info/200202/performance_and_spending/1079/payments_over_500,01-Jul-2022,Childrens Services,HEART & SOUL COMMUNITY CIC LTD,Childrens Services,1048.24,Externally Purchased Professional Services ,2223P04_CR00156,133378
Sandwell Metropolitan Borough Council,http://www.sandwell.gov.uk/info/200202/performance_and_spending/1079/payments_over_500,01-Jul-2022,Childrens Services,HEART & SOUL COMMUNITY CIC LTD,Childrens Services,1048.24,Externally Purchased Professional Services ,2223P04_CR00157,133378
Sandwell Metropolitan Borough Council,http://www.sandwell.gov.uk/info/200202/performance_and_spending/1079/payments_over_500,01-Jul-2022,Childrens Services,HEART & SOUL COMMUNITY CIC LTD,Childrens Services,1048.24,Externally Purchased Professional Services ,2223P04_CR00158,133378
Sandwell Metropolitan Borough Council,http://www.sandwell.gov.uk/info/200202/performance_and_spending/1079/payments_over_500,01-Jul-2022,Childrens Services,HEART & SOUL COMMUNITY CIC LTD,Childrens Services,1048.24,Externally Purchased Professional Services ,2223P04_CR00159,133378
Sandwell Metropolitan Borough Council,http://www.sandwell.gov.uk/info/200202/performance_and_spending/1079/payments_over_500,01-Jul-2022,Childrens Services,HEART & SOUL COMMUNITY CIC LTD,Childrens Services,1048.24,Externally Purchased Professional Services ,2223P04_CR00160,133378
Sandwell Metropolitan Borough Council,http://www.sandwell.gov.uk/info/200202/performance_and_spending/1079/payments_over_500,01-Jul-2022,Childrens Services,HEART & SOUL COMMUNITY CIC LTD,Childrens Services,1048.24,Externally Purchased Professional Services ,2223P04_CR00161,133378
Sandwell Metropolitan Borough Council,http://www.sandwell.gov.uk/info/200202/performance_and_spending/1079/payments_over_500,01-Jul-2022,Childrens Services,HEART & SOUL COMMUNITY CIC LTD,Childrens Services,1048.24,Externally Purchased Professional Services ,2223P04_CR00162,133378
Sandwell Metropolitan Borough Council,http://www.sandwell.gov.uk/info/200202/performance_and_spending/1079/payments_over_500,01-Jul-2022,Childrens Services,HEART & SOUL COMMUNITY CIC LTD,Childrens Services,1048.24,Externally Purchased Professional Services ,2223P04_CR00163,133378
Sandwell Metropolitan Borough Council,http://www.sandwell.gov.uk/info/200202/performance_and_spending/1079/payments_over_500,04-Jul-2022,Childrens Services,HEART & SOUL COMMUNITY CIC LTD,Childrens Services,1048.24,Externally Purchased Professional Services ,2223P04_CR00164,133378
Sandwell Metropolitan Borough Council,http://www.sandwell.gov.uk/info/200202/performance_and_spending/1079/payments_over_500,04-Jul-2022,Childrens Services,HEART & SOUL COMMUNITY CIC LTD,Childrens Services,1048.24,Externally Purchased Professional Services ,2223P04_CR00165,133378
Sandwell Metropolitan Borough Council,http://www.sandwell.gov.uk/info/200202/performance_and_spending/1079/payments_over_500,04-Jul-2022,Childrens Services,HEART & SOUL COMMUNITY CIC LTD,Childrens Services,1048.24,Externally Purchased Professional Services ,2223P04_CR00166,133378
Sandwell Metropolitan Borough Council,http://www.sandwell.gov.uk/info/200202/performance_and_spending/1079/payments_over_500,01-Jul-2022,Childrens Services,HEART & SOUL COMMUNITY CIC LTD,Childrens Services,1048.24,Externally Purchased Professional Services ,2223P04_CR00167,133378
Sandwell Metropolitan Borough Council,http://www.sandwell.gov.uk/info/200202/performance_and_spending/1079/payments_over_500,01-Jul-2022,Childrens Services,HEART & SOUL COMMUNITY CIC LTD,Childrens Services,1048.24,Externally Purchased Professional Services ,2223P04_CR00168,133378
Sandwell Metropolitan Borough Council,http://www.sandwell.gov.uk/info/200202/performance_and_spending/1079/payments_over_500,01-Jul-2022,Childrens Services,HEART & SOUL COMMUNITY CIC LTD,Childrens Services,1048.24,Externally Purchased Professional Services ,2223P04_CR00169,133378
Sandwell Metropolitan Borough Council,http://www.sandwell.gov.uk/info/200202/performance_and_spending/1079/payments_over_500,01-Jul-2022,Childrens Services,HEART & SOUL COMMUNITY CIC LTD,Childrens Services,1048.24,Externally Purchased Professional Services ,2223P04_CR00170,133378
Sandwell Metropolitan Borough Council,http://www.sandwell.gov.uk/info/200202/performance_and_spending/1079/payments_over_500,01-Jul-2022,Childrens Services,HEART OF ENGLAND COMMUNITY FOUNDATION,Childrens Services,3000.00,Grant Payments,2223P04_CR00171,133427
Sandwell Metropolitan Borough Council,http://www.sandwell.gov.uk/info/200202/performance_and_spending/1079/payments_over_500,01-Jul-2022,Childrens Services,HER MAJESTYS PRISON AND PROBATION SERVICE,Childrens Services,2520.00,Other Establishments,2223P04_CR00172,134815
Sandwell Metropolitan Borough Council,http://www.sandwell.gov.uk/info/200202/performance_and_spending/1079/payments_over_500,01-Jul-2022,Childrens Services,HER MAJESTYS PRISON AND PROBATION SERVICE,Childrens Services,2520.00,Other Establishments,2223P04_CR00173,134815
Sandwell Metropolitan Borough Council,http://www.sandwell.gov.uk/info/200202/performance_and_spending/1079/payments_over_500,01-Jul-2022,Childrens Services,HER MAJESTYS PRISON AND PROBATION SERVICE,Childrens Services,4410.00,Other Establishments,2223P04_CR00174,134815
Sandwell Metropolitan Borough Council,http://www.sandwell.gov.uk/info/200202/performance_and_spending/1079/payments_over_500,01-Jul-2022,Childrens Services,HER MAJESTYS PRISON AND PROBATION SERVICE,Childrens Services,7560.00,Other Establishments,2223P04_CR00175,134815
Sandwell Metropolitan Borough Council,http://www.sandwell.gov.uk/info/200202/performance_and_spending/1079/payments_over_500,01-Jul-2022,Childrens Services,HER MAJESTYS PRISON AND PROBATION SERVICE,Childrens Services,8820.00,Other Establishments,2223P04_CR00176,134815
Sandwell Metropolitan Borough Council,http://www.sandwell.gov.uk/info/200202/performance_and_spending/1079/payments_over_500,01-Jul-2022,Childrens Services,HER MAJESTYS PRISON AND PROBATION SERVICE,Childrens Services,8820.00,Other Establishments,2223P04_CR00177,134815
Sandwell Metropolitan Borough Council,http://www.sandwell.gov.uk/info/200202/performance_and_spending/1079/payments_over_500,01-Jul-2022,Childrens Services,HER MAJESTYS PRISON AND PROBATION SERVICE,Childrens Services,9210.00,Other Establishments,2223P04_CR00178,134815
Sandwell Metropolitan Borough Council,http://www.sandwell.gov.uk/info/200202/performance_and_spending/1079/payments_over_500,01-Jul-2022,Childrens Services,HER MAJESTYS PRISON AND PROBATION SERVICE,Childrens Services,9210.00,Other Establishments,2223P04_CR00179,134815
Sandwell Metropolitan Borough Council,http://www.sandwell.gov.uk/info/200202/performance_and_spending/1079/payments_over_500,01-Jul-2022,Childrens Services,HER MAJESTYS PRISON AND PROBATION SERVICE,Childrens Services,9210.00,Other Establishments,2223P04_CR00180,134815
Sandwell Metropolitan Borough Council,http://www.sandwell.gov.uk/info/200202/performance_and_spending/1079/payments_over_500,01-Jul-2022,Childrens Services,HER MAJESTYS PRISON AND PROBATION SERVICE,Childrens Services,9517.00,Other Establishments,2223P04_CR00181,134815
Sandwell Metropolitan Borough Council,http://www.sandwell.gov.uk/info/200202/performance_and_spending/1079/payments_over_500,01-Jul-2022,Childrens Services,HER MAJESTYS PRISON AND PROBATION SERVICE,Childrens Services,9517.00,Other Establishments,2223P04_CR00182,134815
Sandwell Metropolitan Borough Council,http://www.sandwell.gov.uk/info/200202/performance_and_spending/1079/payments_over_500,04-Jul-2022,Childrens Services,HISTON HOUSE LTD (SCHOLARPACK),Childrens Services,997.40,Externally Purchased Professional Services ,2223P04_CR00183,134266
Sandwell Metropolitan Borough Council,http://www.sandwell.gov.uk/info/200202/performance_and_spending/1079/payments_over_500,01-Jul-2022,Childrens Services,HM COURT & TRIBUNAL SERVICES,Childrens Services,9517.00,Other Establishments,2223P04_CR00184,134815
Sandwell Metropolitan Borough Council,http://www.sandwell.gov.uk/info/200202/performance_and_spending/1079/payments_over_500,15-Jul-2022,Childrens Services,IDEAL FOR ALL LIMITED,Childrens Services,1848.45,Grants,2223P04_CR00185,01678484
Sandwell Metropolitan Borough Council,http://www.sandwell.gov.uk/info/200202/performance_and_spending/1079/payments_over_500,11-Jul-2022,Childrens Services,ILEYS COMMUNITY ASSOCIATION,Childrens Services,1872.69,Grants,2223P04_CR00186,88247
Sandwell Metropolitan Borough Council,http://www.sandwell.gov.uk/info/200202/performance_and_spending/1079/payments_over_500,11-Jul-2022,Childrens Services,ILEYS COMMUNITY ASSOCIATION,Childrens Services,1872.69,Grants,2223P04_CR00187,88247
Sandwell Metropolitan Borough Council,http://www.sandwell.gov.uk/info/200202/performance_and_spending/1079/payments_over_500,01-Jul-2022,Childrens Services,INGESTRE ORANGERY AND GARDENS,Childrens Services,650.00,Materials & Consumables,2223P04_CR00188,127331
Sandwell Metropolitan Borough Council,http://www.sandwell.gov.uk/info/200202/performance_and_spending/1079/payments_over_500,01-Jul-2022,Childrens Services,IRON MAIDENS COMMERCIAL LAUNDRY LIMITED,Childrens Services,1049.16,Laundry,2223P04_CR00189,124628
Sandwell Metropolitan Borough Council,http://www.sandwell.gov.uk/info/200202/performance_and_spending/1079/payments_over_500,01-Jul-2022,Childrens Services,JOB CHANGE,Childrens Services,3166.66,Grants,2223P04_CR00190,85774
Sandwell Metropolitan Borough Council,http://www.sandwell.gov.uk/info/200202/performance_and_spending/1079/payments_over_500,01-Jul-2022,Childrens Services,JOB CHANGE,Childrens Services,3714.03,Grants,2223P04_CR00191,85774
Sandwell Metropolitan Borough Council,http://www.sandwell.gov.uk/info/200202/performance_and_spending/1079/payments_over_500,01-Jul-2022,Childrens Services,JOB CHANGE,Childrens Services,3820.77,Grants,2223P04_CR00192,85774
Sandwell Metropolitan Borough Council,http://www.sandwell.gov.uk/info/200202/performance_and_spending/1079/payments_over_500,01-Jul-2022,Childrens Services,JPC TRAVEL SOLUTION,Childrens Services,2786.00,Public Transport,2223P04_CR00193,138533
Sandwell Metropolitan Borough Council,http://www.sandwell.gov.uk/info/200202/performance_and_spending/1079/payments_over_500,21-Jul-2022,Childrens Services,JPC TRAVEL SOLUTION,Childrens Services,57978.16,Public Transport,2223P04_CR00194,138533
Sandwell Metropolitan Borough Council,http://www.sandwell.gov.uk/info/200202/performance_and_spending/1079/payments_over_500,01-Jul-2022,Childrens Services,JUBILEE PARK COMMUNITY CENTRE,Childrens Services,780.00,Hire of Facilities,2223P04_CR00195,13048
Sandwell Metropolitan Borough Council,http://www.sandwell.gov.uk/info/200202/performance_and_spending/1079/payments_over_500,15-Jul-2022,Childrens Services,JUST STRAIGHT TALK,Childrens Services,1969.48,Grants,2223P04_CR00196,163039
Sandwell Metropolitan Borough Council,http://www.sandwell.gov.uk/info/200202/performance_and_spending/1079/payments_over_500,01-Jul-2022,Childrens Services,JUST STRAIGHT TALK,Childrens Services,7861.96,Grants,2223P04_CR00197,163039
Sandwell Metropolitan Borough Council,http://www.sandwell.gov.uk/info/200202/performance_and_spending/1079/payments_over_500,01-Jul-2022,Childrens Services,KEY LEGAL LTD,Childrens Services,6213.42,Externally Purchased Professional Services ,2223P04_CR00198,161816
Sandwell Metropolitan Borough Council,http://www.sandwell.gov.uk/info/200202/performance_and_spending/1079/payments_over_500,01-Jul-2022,Childrens Services,LEA BROS MOTOR ENGINEERS,Childrens Services,507.52,Fuel ,2223P04_CR00199,01037087
Sandwell Metropolitan Borough Council,http://www.sandwell.gov.uk/info/200202/performance_and_spending/1079/payments_over_500,07-Jul-2022,Childrens Services,LEARNING INTO EMPLOYMENT ACADEMY LTD,Childrens Services,519.80,Externally Purchased Professional Services ,2223P04_CR00200,147427
Sandwell Metropolitan Borough Council,http://www.sandwell.gov.uk/info/200202/performance_and_spending/1079/payments_over_500,14-Jul-2022,Childrens Services,LOCAL EDUCATION AND DEVELOPMENT,Childrens Services,598.00,Discretionary Awards,2223P04_CR00201,148259
Sandwell Metropolitan Borough Council,http://www.sandwell.gov.uk/info/200202/performance_and_spending/1079/payments_over_500,01-Jul-2022,Childrens Services,LOCAL EDUCATION AND DEVELOPMENT,Childrens Services,1794.00,Discretionary Awards,2223P04_CR00202,148259
Sandwell Metropolitan Borough Council,http://www.sandwell.gov.uk/info/200202/performance_and_spending/1079/payments_over_500,01-Jul-2022,Childrens Services,LOCAL EDUCATION AND DEVELOPMENT,Childrens Services,1811.20,Discretionary Awards,2223P04_CR00203,148259
Sandwell Metropolitan Borough Council,http://www.sandwell.gov.uk/info/200202/performance_and_spending/1079/payments_over_500,01-Jul-2022,Childrens Services,LOCAL EDUCATION AND DEVELOPMENT,Childrens Services,2093.00,Discretionary Awards,2223P04_CR00204,148259
Sandwell Metropolitan Borough Council,http://www.sandwell.gov.uk/info/200202/performance_and_spending/1079/payments_over_500,15-Jul-2022,Childrens Services,MENZIES DESIGN AND PRINT LTD,Childrens Services,4235.00,"Printing, Stationery & General Office Expenses",2223P04_CR00205,113639
Sandwell Metropolitan Borough Council,http://www.sandwell.gov.uk/info/200202/performance_and_spending/1079/payments_over_500,01-Jul-2022,Childrens Services,MOAT FARM INFANTS SCHOOL                              01,Childrens Services,500.00,Grants,2223P04_CR00206,13623
Sandwell Metropolitan Borough Council,http://www.sandwell.gov.uk/info/200202/performance_and_spending/1079/payments_over_500,07-Jul-2022,Childrens Services,NEWAVE LTD,Childrens Services,606.00,Agency Staff,2223P04_CR00207,101666
Sandwell Metropolitan Borough Council,http://www.sandwell.gov.uk/info/200202/performance_and_spending/1079/payments_over_500,03-Jul-2022,Childrens Services,NEWAVE LTD,Childrens Services,1561.20,Agency Staff,2223P04_CR00208,101666
Sandwell Metropolitan Borough Council,http://www.sandwell.gov.uk/info/200202/performance_and_spending/1079/payments_over_500,01-Jul-2022,Childrens Services,NEWAVE LTD,Childrens Services,2817.52,Agency Staff,2223P04_CR00209,101666
Sandwell Metropolitan Borough Council,http://www.sandwell.gov.uk/info/200202/performance_and_spending/1079/payments_over_500,20-Jul-2022,Childrens Services,NEWBURY TRAVEL LTD,Childrens Services,1043.00,Public Transport,2223P04_CR00210,06003081
Sandwell Metropolitan Borough Council,http://www.sandwell.gov.uk/info/200202/performance_and_spending/1079/payments_over_500,01-Jul-2022,Childrens Services,NORTH SMETHWICK DEVELOPMENT TRUST,Childrens Services,525.00,Hire of Facilities,2223P04_CR00211,01346623
Sandwell Metropolitan Borough Council,http://www.sandwell.gov.uk/info/200202/performance_and_spending/1079/payments_over_500,13-Jul-2022,Childrens Services,NOTTINGHAMSHIRE COUNTY COUNCIL,Childrens Services,1076.40,External Contract Hire,2223P04_CR00212,01218759
Sandwell Metropolitan Borough Council,http://www.sandwell.gov.uk/info/200202/performance_and_spending/1079/payments_over_500,21-Jul-2022,Childrens Services,ONE 4 YOU SERVICES LTD,Childrens Services,50504.86,Public Transport,2223P04_CR00213,81204
Sandwell Metropolitan Borough Council,http://www.sandwell.gov.uk/info/200202/performance_and_spending/1079/payments_over_500,21-Jul-2022,Childrens Services,ONE 4 YOU SERVICES LTD,Childrens Services,50571.58,Public Transport,2223P04_CR00214,81204
Sandwell Metropolitan Borough Council,http://www.sandwell.gov.uk/info/200202/performance_and_spending/1079/payments_over_500,04-Jul-2022,Childrens Services,ONE 4 YOU SERVICES LTD,Childrens Services,51681.84,Public Transport,2223P04_CR00215,81204
Sandwell Metropolitan Borough Council,http://www.sandwell.gov.uk/info/200202/performance_and_spending/1079/payments_over_500,06-Jul-2022,Childrens Services,OSBORNE TECHNOLOGIES LTD,Childrens Services,650.00,Security,2223P04_CR00216,129523
Sandwell Metropolitan Borough Council,http://www.sandwell.gov.uk/info/200202/performance_and_spending/1079/payments_over_500,06-Jul-2022,Childrens Services,PARK HILL PRIMARY SCHOOL,Childrens Services,746.52,Externally Purchased Professional Services ,2223P04_CR00217,04017201
Sandwell Metropolitan Borough Council,http://www.sandwell.gov.uk/info/200202/performance_and_spending/1079/payments_over_500,01-Jul-2022,Childrens Services,PARK HILL PRIMARY SCHOOL,Childrens Services,746.52,Externally Purchased Professional Services ,2223P04_CR00218,04017201
Sandwell Metropolitan Borough Council,http://www.sandwell.gov.uk/info/200202/performance_and_spending/1079/payments_over_500,01-Jul-2022,Childrens Services,PARK HILL PRIMARY SCHOOL,Childrens Services,746.52,Externally Purchased Professional Services ,2223P04_CR00219,04017201
Sandwell Metropolitan Borough Council,http://www.sandwell.gov.uk/info/200202/performance_and_spending/1079/payments_over_500,01-Jul-2022,Childrens Services,PHOENIX COLLEGIATE COLLEGE,Childrens Services,520.00,Childcare,2223P04_CR00220,95444
Sandwell Metropolitan Borough Council,http://www.sandwell.gov.uk/info/200202/performance_and_spending/1079/payments_over_500,20-Jul-2022,Childrens Services,PRINT DIRECT LIMITED,Childrens Services,976.36,"Printing, Stationery & General Office Expenses",2223P04_CR00221,118575
Sandwell Metropolitan Borough Council,http://www.sandwell.gov.uk/info/200202/performance_and_spending/1079/payments_over_500,01-Jul-2022,Childrens Services,PRINT DIRECT LIMITED,Childrens Services,1790.55,"Printing, Stationery & General Office Expenses",2223P04_CR00222,118575
Sandwell Metropolitan Borough Council,http://www.sandwell.gov.uk/info/200202/performance_and_spending/1079/payments_over_500,01-Jul-2022,Childrens Services,PROSPECTS SERVICES LIMITED,Childrens Services,4089.92,ICT ,2223P04_CR00223,01721288
Sandwell Metropolitan Borough Council,http://www.sandwell.gov.uk/info/200202/performance_and_spending/1079/payments_over_500,15-Jul-2022,Childrens Services,QUALITY EDUCATION SOLUTIONS LIMITED,Childrens Services,4175.15,ICT ,2223P04_CR00224,70602
Sandwell Metropolitan Borough Council,http://www.sandwell.gov.uk/info/200202/performance_and_spending/1079/payments_over_500,01-Jul-2022,Childrens Services,RB SPORTS ACTIVITIES LTD,Childrens Services,15460.00,Grant Payments,2223P04_CR00225,126163
Sandwell Metropolitan Borough Council,http://www.sandwell.gov.uk/info/200202/performance_and_spending/1079/payments_over_500,15-Jul-2022,Childrens Services,REFUGEE AND MIGRANT CENTRE LTD,Childrens Services,3059.94,Grants,2223P04_CR00226,163206
Sandwell Metropolitan Borough Council,http://www.sandwell.gov.uk/info/200202/performance_and_spending/1079/payments_over_500,15-Jul-2022,Childrens Services,REFUGEE AND MIGRANT CENTRE LTD,Childrens Services,3218.24,Grants,2223P04_CR00227,163206
Sandwell Metropolitan Borough Council,http://www.sandwell.gov.uk/info/200202/performance_and_spending/1079/payments_over_500,15-Jul-2022,Childrens Services,REFUGEE AND MIGRANT CENTRE LTD,Childrens Services,3437.14,Grants,2223P04_CR00228,163206
Sandwell Metropolitan Borough Council,http://www.sandwell.gov.uk/info/200202/performance_and_spending/1079/payments_over_500,15-Jul-2022,Childrens Services,REFUGEE AND MIGRANT CENTRE LTD,Childrens Services,6015.47,Grants,2223P04_CR00229,163206
Sandwell Metropolitan Borough Council,http://www.sandwell.gov.uk/info/200202/performance_and_spending/1079/payments_over_500,01-Jul-2022,Childrens Services,REPOSE FURNITURE LTD,Childrens Services,716.39,Externally Purchased Professional Services ,2223P04_CR00230,159480
Sandwell Metropolitan Borough Council,http://www.sandwell.gov.uk/info/200202/performance_and_spending/1079/payments_over_500,01-Jul-2022,Childrens Services,REPOSE FURNITURE LTD,Childrens Services,716.39,Externally Purchased Professional Services ,2223P04_CR00231,159480
Sandwell Metropolitan Borough Council,http://www.sandwell.gov.uk/info/200202/performance_and_spending/1079/payments_over_500,01-Jul-2022,Childrens Services,REPOSE FURNITURE LTD,Childrens Services,716.39,Externally Purchased Professional Services ,2223P04_CR00232,159480
Sandwell Metropolitan Borough Council,http://www.sandwell.gov.uk/info/200202/performance_and_spending/1079/payments_over_500,01-Jul-2022,Childrens Services,REPOSE FURNITURE LTD,Childrens Services,716.39,Externally Purchased Professional Services ,2223P04_CR00233,159480
Sandwell Metropolitan Borough Council,http://www.sandwell.gov.uk/info/200202/performance_and_spending/1079/payments_over_500,14-Jul-2022,Childrens Services,SANDWELL CHILDREN'S TRUST,Childrens Services,243740.32,Other Establishments,2223P04_CR00234,133302
Sandwell Metropolitan Borough Council,http://www.sandwell.gov.uk/info/200202/performance_and_spending/1079/payments_over_500,01-Jul-2022,Childrens Services,SANDWELL CHILDREN'S TRUST,Childrens Services,5421070.54,Other Establishments,2223P04_CR00235,133302
Sandwell Metropolitan Borough Council,http://www.sandwell.gov.uk/info/200202/performance_and_spending/1079/payments_over_500,01-Jul-2022,Childrens Services,SANDWELL PARENTS FOR DISABLED CHILDREN,Childrens Services,6000.00,Grant Payments,2223P04_CR00236,70991
Sandwell Metropolitan Borough Council,http://www.sandwell.gov.uk/info/200202/performance_and_spending/1079/payments_over_500,01-Jul-2022,Childrens Services,SEDDON CONSTRUCTION LIMITED,Childrens Services,1010.75,Externally Purchased Professional Services ,2223P04_CR00237,132999
Sandwell Metropolitan Borough Council,http://www.sandwell.gov.uk/info/200202/performance_and_spending/1079/payments_over_500,06-Jul-2022,Childrens Services,SEDDON CONSTRUCTION LIMITED,Childrens Services,1044.28,Externally Purchased Professional Services ,2223P04_CR00238,132999
Sandwell Metropolitan Borough Council,http://www.sandwell.gov.uk/info/200202/performance_and_spending/1079/payments_over_500,01-Jul-2022,Childrens Services,SIPS EDUCATION LTD,Childrens Services,25500.00,Contract Payments,2223P04_CR00239,110784
Sandwell Metropolitan Borough Council,http://www.sandwell.gov.uk/info/200202/performance_and_spending/1079/payments_over_500,01-Jul-2022,Childrens Services,SKILLS WORK AND ENTERPRISE DEVELOPMENT AGENCY LTD,Childrens Services,555.00,Hire of Facilities,2223P04_CR00240,5092
Sandwell Metropolitan Borough Council,http://www.sandwell.gov.uk/info/200202/performance_and_spending/1079/payments_over_500,01-Jul-2022,Childrens Services,SKILLS WORK AND ENTERPRISE DEVELOPMENT AGENCY LTD,Childrens Services,746.52,Externally Purchased Professional Services ,2223P04_CR00241,5092
Sandwell Metropolitan Borough Council,http://www.sandwell.gov.uk/info/200202/performance_and_spending/1079/payments_over_500,04-Jul-2022,Childrens Services,SKILLS WORK AND ENTERPRISE DEVELOPMENT AGENCY LTD,Childrens Services,746.52,Externally Purchased Professional Services ,2223P04_CR00242,5092
Sandwell Metropolitan Borough Council,http://www.sandwell.gov.uk/info/200202/performance_and_spending/1079/payments_over_500,01-Jul-2022,Childrens Services,SKILLS WORK AND ENTERPRISE DEVELOPMENT AGENCY LTD,Childrens Services,1085.21,Externally Purchased Professional Services ,2223P04_CR00243,5092
Sandwell Metropolitan Borough Council,http://www.sandwell.gov.uk/info/200202/performance_and_spending/1079/payments_over_500,01-Jul-2022,Childrens Services,SKILLS WORK AND ENTERPRISE DEVELOPMENT AGENCY LTD,Childrens Services,1085.21,Externally Purchased Professional Services ,2223P04_CR00244,5092
Sandwell Metropolitan Borough Council,http://www.sandwell.gov.uk/info/200202/performance_and_spending/1079/payments_over_500,01-Jul-2022,Childrens Services,STAFF COLLEGE,Childrens Services,1250.00,Subscriptions,2223P04_CR00245,88119
Sandwell Metropolitan Borough Council,http://www.sandwell.gov.uk/info/200202/performance_and_spending/1079/payments_over_500,01-Jul-2022,Childrens Services,TERRA TEK LTD,Childrens Services,560.00,Grants,2223P04_CR00246,155508
Sandwell Metropolitan Borough Council,http://www.sandwell.gov.uk/info/200202/performance_and_spending/1079/payments_over_500,01-Jul-2022,Childrens Services,THE LAUNDRY ROOM (BEWDLEY) LIMITED,Childrens Services,634.00,Laundry,2223P04_CR00247,127518
Sandwell Metropolitan Borough Council,http://www.sandwell.gov.uk/info/200202/performance_and_spending/1079/payments_over_500,08-Jul-2022,Childrens Services,THE PRIORY PRIMARY,Childrens Services,500.00,Grants,2223P04_CR00248,01746051
Sandwell Metropolitan Borough Council,http://www.sandwell.gov.uk/info/200202/performance_and_spending/1079/payments_over_500,08-Jul-2022,Childrens Services,THE PRIORY PRIMARY,Childrens Services,500.00,Grants,2223P04_CR00249,01746051
Sandwell Metropolitan Borough Council,http://www.sandwell.gov.uk/info/200202/performance_and_spending/1079/payments_over_500,08-Jul-2022,Childrens Services,THE PRIORY PRIMARY,Childrens Services,500.00,Grants,2223P04_CR00250,01746051
Sandwell Metropolitan Borough Council,http://www.sandwell.gov.uk/info/200202/performance_and_spending/1079/payments_over_500,01-Jul-2022,Childrens Services,THE PRIORY PRIMARY,Childrens Services,2997.14,Rents,2223P04_CR00251,01746051
Sandwell Metropolitan Borough Council,http://www.sandwell.gov.uk/info/200202/performance_and_spending/1079/payments_over_500,01-Jul-2022,Childrens Services,THE PURPLE COMPANY (UK) LTD T/A SILK GROUP,Childrens Services,929.00,Advertising & Publicity,2223P04_CR00252,153789
Sandwell Metropolitan Borough Council,http://www.sandwell.gov.uk/info/200202/performance_and_spending/1079/payments_over_500,01-Jul-2022,Childrens Services,THOMAS CHARLES FACILITIES & MAINTENANCE LTD,Childrens Services,780.00,Contract Cleaning,2223P04_CR00253,114170
Sandwell Metropolitan Borough Council,http://www.sandwell.gov.uk/info/200202/performance_and_spending/1079/payments_over_500,01-Jul-2022,Childrens Services,THOMAS CHARLES FACILITIES & MAINTENANCE LTD,Childrens Services,877.50,Contract Cleaning,2223P04_CR00254,114170
Sandwell Metropolitan Borough Council,http://www.sandwell.gov.uk/info/200202/performance_and_spending/1079/payments_over_500,01-Jul-2022,Childrens Services,THOMAS CHARLES FACILITIES & MAINTENANCE LTD,Childrens Services,1890.00,Contract Cleaning,2223P04_CR00255,114170
Sandwell Metropolitan Borough Council,http://www.sandwell.gov.uk/info/200202/performance_and_spending/1079/payments_over_500,01-Jul-2022,Childrens Services,THOMAS CHARLES FACILITIES & MAINTENANCE LTD,Childrens Services,1950.00,Contract Cleaning,2223P04_CR00256,114170
Sandwell Metropolitan Borough Council,http://www.sandwell.gov.uk/info/200202/performance_and_spending/1079/payments_over_500,01-Jul-2022,Childrens Services,THOMAS CHARLES FACILITIES & MAINTENANCE LTD,Childrens Services,1950.00,Contract Cleaning,2223P04_CR00257,114170
Sandwell Metropolitan Borough Council,http://www.sandwell.gov.uk/info/200202/performance_and_spending/1079/payments_over_500,01-Jul-2022,Childrens Services,THOMAS CHARLES FACILITIES & MAINTENANCE LTD,Childrens Services,1950.00,Contract Cleaning,2223P04_CR00258,114170
Sandwell Metropolitan Borough Council,http://www.sandwell.gov.uk/info/200202/performance_and_spending/1079/payments_over_500,01-Jul-2022,Childrens Services,THOMAS CHARLES FACILITIES & MAINTENANCE LTD,Childrens Services,2925.00,Contract Cleaning,2223P04_CR00259,114170
Sandwell Metropolitan Borough Council,http://www.sandwell.gov.uk/info/200202/performance_and_spending/1079/payments_over_500,06-Jul-2022,Childrens Services,TOH TAXIS,Childrens Services,1055.64,Public Transport,2223P04_CR00260,12250
Sandwell Metropolitan Borough Council,http://www.sandwell.gov.uk/info/200202/performance_and_spending/1079/payments_over_500,06-Jul-2022,Childrens Services,TOH TAXIS,Childrens Services,1463.78,Public Transport,2223P04_CR00261,12250
Sandwell Metropolitan Borough Council,http://www.sandwell.gov.uk/info/200202/performance_and_spending/1079/payments_over_500,06-Jul-2022,Childrens Services,TOH TAXIS,Childrens Services,1583.64,Public Transport,2223P04_CR00262,12250
Sandwell Metropolitan Borough Council,http://www.sandwell.gov.uk/info/200202/performance_and_spending/1079/payments_over_500,15-Jul-2022,Childrens Services,TOP CHURCH TRAINING,Childrens Services,2135.25,Grants,2223P04_CR00263,163127
Sandwell Metropolitan Borough Council,http://www.sandwell.gov.uk/info/200202/performance_and_spending/1079/payments_over_500,01-Jul-2022,Childrens Services,TOPPS MANAGEMENT & SUPPORT SERVICES LTD,Childrens Services,996.94,Externally Purchased Professional Services ,2223P04_CR00264,68846
Sandwell Metropolitan Borough Council,http://www.sandwell.gov.uk/info/200202/performance_and_spending/1079/payments_over_500,01-Jul-2022,Childrens Services,TOPPS MANAGEMENT & SUPPORT SERVICES LTD,Childrens Services,996.94,Externally Purchased Professional Services ,2223P04_CR00265,68846
Sandwell Metropolitan Borough Council,http://www.sandwell.gov.uk/info/200202/performance_and_spending/1079/payments_over_500,01-Jul-2022,Childrens Services,TOPPS MANAGEMENT & SUPPORT SERVICES LTD,Childrens Services,996.94,Externally Purchased Professional Services ,2223P04_CR00266,68846
Sandwell Metropolitan Borough Council,http://www.sandwell.gov.uk/info/200202/performance_and_spending/1079/payments_over_500,01-Jul-2022,Childrens Services,TOPPS MANAGEMENT & SUPPORT SERVICES LTD,Childrens Services,996.94,Externally Purchased Professional Services ,2223P04_CR00267,68846
Sandwell Metropolitan Borough Council,http://www.sandwell.gov.uk/info/200202/performance_and_spending/1079/payments_over_500,01-Jul-2022,Childrens Services,TOPPS MANAGEMENT & SUPPORT SERVICES LTD,Childrens Services,996.94,Externally Purchased Professional Services ,2223P04_CR00268,68846
Sandwell Metropolitan Borough Council,http://www.sandwell.gov.uk/info/200202/performance_and_spending/1079/payments_over_500,01-Jul-2022,Childrens Services,TOPPS MANAGEMENT & SUPPORT SERVICES LTD,Childrens Services,996.94,Externally Purchased Professional Services ,2223P04_CR00269,68846
Sandwell Metropolitan Borough Council,http://www.sandwell.gov.uk/info/200202/performance_and_spending/1079/payments_over_500,01-Jul-2022,Childrens Services,TOPPS MANAGEMENT & SUPPORT SERVICES LTD,Childrens Services,996.94,Externally Purchased Professional Services ,2223P04_CR00270,68846
Sandwell Metropolitan Borough Council,http://www.sandwell.gov.uk/info/200202/performance_and_spending/1079/payments_over_500,07-Jul-2022,Childrens Services,TOPPS MANAGEMENT & SUPPORT SERVICES LTD,Childrens Services,996.94,Externally Purchased Professional Services ,2223P04_CR00271,68846
Sandwell Metropolitan Borough Council,http://www.sandwell.gov.uk/info/200202/performance_and_spending/1079/payments_over_500,12-Jul-2022,Childrens Services,TOPPS MANAGEMENT & SUPPORT SERVICES LTD,Childrens Services,5357.50,Discretionary Awards,2223P04_CR00272,68846
Sandwell Metropolitan Borough Council,http://www.sandwell.gov.uk/info/200202/performance_and_spending/1079/payments_over_500,01-Jul-2022,Childrens Services,TOTALENERGIES GAS & POWER LTD,Childrens Services,502.59,Electricity,2223P04_CR00273,107605
Sandwell Metropolitan Borough Council,http://www.sandwell.gov.uk/info/200202/performance_and_spending/1079/payments_over_500,19-Jul-2022,Childrens Services,TOTALENERGIES GAS & POWER LTD,Childrens Services,601.71,Gas,2223P04_CR00274,107605
Sandwell Metropolitan Borough Council,http://www.sandwell.gov.uk/info/200202/performance_and_spending/1079/payments_over_500,19-Jul-2022,Childrens Services,TOTALENERGIES GAS & POWER LTD,Childrens Services,672.11,Gas,2223P04_CR00275,107605
Sandwell Metropolitan Borough Council,http://www.sandwell.gov.uk/info/200202/performance_and_spending/1079/payments_over_500,10-Jul-2022,Childrens Services,TOTALENERGIES GAS & POWER LTD,Childrens Services,674.15,Electricity,2223P04_CR00276,107605
Sandwell Metropolitan Borough Council,http://www.sandwell.gov.uk/info/200202/performance_and_spending/1079/payments_over_500,01-Jul-2022,Childrens Services,TOTALENERGIES GAS & POWER LTD,Childrens Services,730.92,Electricity,2223P04_CR00277,107605
Sandwell Metropolitan Borough Council,http://www.sandwell.gov.uk/info/200202/performance_and_spending/1079/payments_over_500,10-Jul-2022,Childrens Services,TOTALENERGIES GAS & POWER LTD,Childrens Services,880.44,Electricity,2223P04_CR00278,107605
Sandwell Metropolitan Borough Council,http://www.sandwell.gov.uk/info/200202/performance_and_spending/1079/payments_over_500,01-Jul-2022,Childrens Services,TOTALENERGIES GAS & POWER LTD,Childrens Services,935.02,Electricity,2223P04_CR00279,107605
Sandwell Metropolitan Borough Council,http://www.sandwell.gov.uk/info/200202/performance_and_spending/1079/payments_over_500,19-Jul-2022,Childrens Services,TOTALENERGIES GAS & POWER LTD,Childrens Services,1161.19,Gas,2223P04_CR00280,107605
Sandwell Metropolitan Borough Council,http://www.sandwell.gov.uk/info/200202/performance_and_spending/1079/payments_over_500,19-Jul-2022,Childrens Services,TOTALENERGIES GAS & POWER LTD,Childrens Services,1176.58,Gas,2223P04_CR00281,107605
Sandwell Metropolitan Borough Council,http://www.sandwell.gov.uk/info/200202/performance_and_spending/1079/payments_over_500,10-Jul-2022,Childrens Services,TOTALENERGIES GAS & POWER LTD,Childrens Services,1207.97,Electricity,2223P04_CR00282,107605
Sandwell Metropolitan Borough Council,http://www.sandwell.gov.uk/info/200202/performance_and_spending/1079/payments_over_500,01-Jul-2022,Childrens Services,TOTALENERGIES GAS & POWER LTD,Childrens Services,1241.59,Electricity,2223P04_CR00283,107605
Sandwell Metropolitan Borough Council,http://www.sandwell.gov.uk/info/200202/performance_and_spending/1079/payments_over_500,10-Jul-2022,Childrens Services,TOTALENERGIES GAS & POWER LTD,Childrens Services,1291.62,Electricity,2223P04_CR00284,107605
Sandwell Metropolitan Borough Council,http://www.sandwell.gov.uk/info/200202/performance_and_spending/1079/payments_over_500,19-Jul-2022,Childrens Services,TOTALENERGIES GAS & POWER LTD,Childrens Services,1409.80,Gas,2223P04_CR00285,107605
Sandwell Metropolitan Borough Council,http://www.sandwell.gov.uk/info/200202/performance_and_spending/1079/payments_over_500,06-Jul-2022,Childrens Services,UNITY TRAVEL,Childrens Services,2112.00,Public Transport,2223P04_CR00286,64986
Sandwell Metropolitan Borough Council,http://www.sandwell.gov.uk/info/200202/performance_and_spending/1079/payments_over_500,21-Jul-2022,Childrens Services,UNITY TRAVEL,Childrens Services,2112.00,Public Transport,2223P04_CR00287,64986
Sandwell Metropolitan Borough Council,http://www.sandwell.gov.uk/info/200202/performance_and_spending/1079/payments_over_500,08-Jul-2022,Childrens Services,WALSALL MBC,Childrens Services,14729.73,Grants,2223P04_CR00288,01106025
Sandwell Metropolitan Borough Council,http://www.sandwell.gov.uk/info/200202/performance_and_spending/1079/payments_over_500,08-Jul-2022,Childrens Services,WALSALL MBC,Childrens Services,20553.21,Grants,2223P04_CR00289,01106025
Sandwell Metropolitan Borough Council,http://www.sandwell.gov.uk/info/200202/performance_and_spending/1079/payments_over_500,08-Jul-2022,Childrens Services,WALSALL MBC,Childrens Services,32346.96,Grants,2223P04_CR00290,01106025
Sandwell Metropolitan Borough Council,http://www.sandwell.gov.uk/info/200202/performance_and_spending/1079/payments_over_500,10-Jul-2022,Childrens Services,WATER PLUS SELECT LIMITED,Childrens Services,1158.42,Water Services,2223P04_CR00291,129644
Sandwell Metropolitan Borough Council,http://www.sandwell.gov.uk/info/200202/performance_and_spending/1079/payments_over_500,21-Jul-2022,Childrens Services,WEST BROM BASKETBALL CLUB,Childrens Services,10788.93,Grant Payments,2223P04_CR00292,125592
Sandwell Metropolitan Borough Council,http://www.sandwell.gov.uk/info/200202/performance_and_spending/1079/payments_over_500,14-Jul-2022,Childrens Services,WEST BROMWICH ALBION FC LTD,Childrens Services,869.90,Hire of Facilities,2223P04_CR00293,01606624
Sandwell Metropolitan Borough Council,http://www.sandwell.gov.uk/info/200202/performance_and_spending/1079/payments_over_500,08-Jul-2022,Childrens Services,WEST MIDLANDS EMPLOYERS,Childrens Services,665.30,Externally Purchased Professional Services ,2223P04_CR00294,01587505
Sandwell Metropolitan Borough Council,http://www.sandwell.gov.uk/info/200202/performance_and_spending/1079/payments_over_500,01-Jul-2022,Childrens Services,WEST MIDLANDS TRAVEL LIMITED,Childrens Services,1148.45,Public Transport,2223P04_CR00295,01736688
Sandwell Metropolitan Borough Council,http://www.sandwell.gov.uk/info/200202/performance_and_spending/1079/payments_over_500,01-Jul-2022,Childrens Services,WEST MIDLANDS TRAVEL LIMITED,Childrens Services,1148.45,Public Transport,2223P04_CR00296,01736688
Sandwell Metropolitan Borough Council,http://www.sandwell.gov.uk/info/200202/performance_and_spending/1079/payments_over_500,01-Jul-2022,Childrens Services,WEST MIDLANDS TRAVEL LIMITED,Childrens Services,1148.45,Public Transport,2223P04_CR00297,01736688
Sandwell Metropolitan Borough Council,http://www.sandwell.gov.uk/info/200202/performance_and_spending/1079/payments_over_500,11-Jul-2022,Childrens Services,WOLVERHAMPTON VOLUNTARY SECTOR COUNCIL,Childrens Services,2754.73,Grants,2223P04_CR00298,43383
Sandwell Metropolitan Borough Council,http://www.sandwell.gov.uk/info/200202/performance_and_spending/1079/payments_over_500,11-Jul-2022,Childrens Services,WOLVERHAMPTON VOLUNTARY SECTOR COUNCIL,Childrens Services,3465.73,Grants,2223P04_CR00299,43383
Sandwell Metropolitan Borough Council,http://www.sandwell.gov.uk/info/200202/performance_and_spending/1079/payments_over_500,11-Jul-2022,Childrens Services,WOLVERHAMPTON VOLUNTARY SECTOR COUNCIL,Childrens Services,3919.68,Grants,2223P04_CR00300,43383
Sandwell Metropolitan Borough Council,http://www.sandwell.gov.uk/info/200202/performance_and_spending/1079/payments_over_500,01-Jul-2022,Childrens Services,WOLVERHAMPTON VOLUNTARY SECTOR COUNCIL,Childrens Services,5249.34,Grants,2223P04_CR00301,43383
Sandwell Metropolitan Borough Council,http://www.sandwell.gov.uk/info/200202/performance_and_spending/1079/payments_over_500,01-Jul-2022,Childrens Services,WOLVERHAMPTON VOLUNTARY SECTOR COUNCIL,Childrens Services,8714.50,Grants,2223P04_CR00302,43383
Sandwell Metropolitan Borough Council,http://www.sandwell.gov.uk/info/200202/performance_and_spending/1079/payments_over_500,01-Jul-2022,Childrens Services,YELLOW CARS,Childrens Services,26225.27,Public Transport,2223P04_CR00303,116819
Sandwell Metropolitan Borough Council,http://www.sandwell.gov.uk/info/200202/performance_and_spending/1079/payments_over_500,08-Jul-2022,Childrens Services,REDACTED PERSONAL DATA T/A FUTURE EXCEL,Childrens Services,7200.00,Grants,2223P04_CR00304,REDACTED PERSONAL DATA
Sandwell Metropolitan Borough Council,http://www.sandwell.gov.uk/info/200202/performance_and_spending/1079/payments_over_500,13-Jul-2022,Childrens Services,NATIONAL WESTMINSTER BANK PLC,Childrens Services,48109.08,External Contract Hire,2223P04_CR00305,120965
Sandwell Metropolitan Borough Council,http://www.sandwell.gov.uk/info/200202/performance_and_spending/1079/payments_over_500,21-Jul-2022,Childrens Services,MOHAMMED SHOKAT,Childrens Services,51925.17,Public Transport,2223P04_CR00306,08583128
Sandwell Metropolitan Borough Council,http://www.sandwell.gov.uk/info/200202/performance_and_spending/1079/payments_over_500,21-Jul-2022,Childrens Services,MOHAMMED SHOKAT,Childrens Services,52838.11,Public Transport,2223P04_CR00307,08583128
Sandwell Metropolitan Borough Council,http://www.sandwell.gov.uk/info/200202/performance_and_spending/1079/payments_over_500,21-Jul-2022,Childrens Services,MOHAMMED SHOKAT,Childrens Services,55923.69,Public Transport,2223P04_CR00308,08583128
Sandwell Metropolitan Borough Council,http://www.sandwell.gov.uk/info/200202/performance_and_spending/1079/payments_over_500,21-Jul-2022,Childrens Services,MOHAMMED SHOKAT,Childrens Services,56260.86,Public Transport,2223P04_CR00309,08583128
Sandwell Metropolitan Borough Council,http://www.sandwell.gov.uk/info/200202/performance_and_spending/1079/payments_over_500,01-Jul-2022,Childrens Services,"RACHEL SMITH,",Childrens Services,1000.00,Externally Purchased Professional Services ,2223P04_CR00310,162210
Sandwell Metropolitan Borough Council,http://www.sandwell.gov.uk/info/200202/performance_and_spending/1079/payments_over_500,01-Jul-2022,Childrens Services,"RACHEL SMITH,",Childrens Services,2000.00,Externally Purchased Professional Services ,2223P04_CR00311,162210
Sandwell Metropolitan Borough Council,http://www.sandwell.gov.uk/info/200202/performance_and_spending/1079/payments_over_500,01-Jul-2022,Childrens Services,KAREN BENJAMIN,Childrens Services,1000.00,Externally Purchased Professional Services ,2223P04_CR00312,150479
Sandwell Metropolitan Borough Council,http://www.sandwell.gov.uk/info/200202/performance_and_spending/1079/payments_over_500,01-Jul-2022,Childrens Services,MARK LAMSDALE,Childrens Services,675.00,Advertising & Publicity,2223P04_CR00313,26316
Sandwell Metropolitan Borough Council,http://www.sandwell.gov.uk/info/200202/performance_and_spending/1079/payments_over_500,15-Jul-2022,Childrens Services,REDACTED PERSONAL DATA,Childrens Services,545.45,External Contract Hire,2223P04_CR00314,REDACTED PERSONAL DATA
Sandwell Metropolitan Borough Council,http://www.sandwell.gov.uk/info/200202/performance_and_spending/1079/payments_over_500,15-Jul-2022,Childrens Services,REDACTED PERSONAL DATA,Childrens Services,545.45,External Contract Hire,2223P04_CR00315,REDACTED PERSONAL DATA
Sandwell Metropolitan Borough Council,http://www.sandwell.gov.uk/info/200202/performance_and_spending/1079/payments_over_500,15-Jul-2022,Childrens Services,REDACTED PERSONAL DATA,Childrens Services,545.45,External Contract Hire,2223P04_CR00316,REDACTED PERSONAL DATA
Sandwell Metropolitan Borough Council,http://www.sandwell.gov.uk/info/200202/performance_and_spending/1079/payments_over_500,15-Jul-2022,Childrens Services,REDACTED PERSONAL DATA,Childrens Services,545.45,External Contract Hire,2223P04_CR00317,REDACTED PERSONAL DATA
Sandwell Metropolitan Borough Council,http://www.sandwell.gov.uk/info/200202/performance_and_spending/1079/payments_over_500,15-Jul-2022,Childrens Services,REDACTED PERSONAL DATA,Childrens Services,545.45,External Contract Hire,2223P04_CR00318,REDACTED PERSONAL DATA
Sandwell Metropolitan Borough Council,http://www.sandwell.gov.uk/info/200202/performance_and_spending/1079/payments_over_500,15-Jul-2022,Childrens Services,REDACTED PERSONAL DATA,Childrens Services,545.45,External Contract Hire,2223P04_CR00319,REDACTED PERSONAL DATA
Sandwell Metropolitan Borough Council,http://www.sandwell.gov.uk/info/200202/performance_and_spending/1079/payments_over_500,15-Jul-2022,Childrens Services,REDACTED PERSONAL DATA,Childrens Services,545.45,External Contract Hire,2223P04_CR00320,REDACTED PERSONAL DATA
Sandwell Metropolitan Borough Council,http://www.sandwell.gov.uk/info/200202/performance_and_spending/1079/payments_over_500,15-Jul-2022,Childrens Services,REDACTED PERSONAL DATA,Childrens Services,545.45,External Contract Hire,2223P04_CR00321,REDACTED PERSONAL DATA
Sandwell Metropolitan Borough Council,http://www.sandwell.gov.uk/info/200202/performance_and_spending/1079/payments_over_500,15-Jul-2022,Childrens Services,REDACTED PERSONAL DATA,Childrens Services,545.45,External Contract Hire,2223P04_CR00322,REDACTED PERSONAL DATA
Sandwell Metropolitan Borough Council,http://www.sandwell.gov.uk/info/200202/performance_and_spending/1079/payments_over_500,15-Jul-2022,Childrens Services,REDACTED PERSONAL DATA,Childrens Services,545.45,External Contract Hire,2223P04_CR00323,REDACTED PERSONAL DATA
Sandwell Metropolitan Borough Council,http://www.sandwell.gov.uk/info/200202/performance_and_spending/1079/payments_over_500,15-Jul-2022,Childrens Services,REDACTED PERSONAL DATA,Childrens Services,545.45,External Contract Hire,2223P04_CR00324,REDACTED PERSONAL DATA
Sandwell Metropolitan Borough Council,http://www.sandwell.gov.uk/info/200202/performance_and_spending/1079/payments_over_500,15-Jul-2022,Childrens Services,REDACTED PERSONAL DATA,Childrens Services,545.45,External Contract Hire,2223P04_CR00325,REDACTED PERSONAL DATA
Sandwell Metropolitan Borough Council,http://www.sandwell.gov.uk/info/200202/performance_and_spending/1079/payments_over_500,15-Jul-2022,Childrens Services,REDACTED PERSONAL DATA,Childrens Services,545.45,External Contract Hire,2223P04_CR00326,REDACTED PERSONAL DATA
Sandwell Metropolitan Borough Council,http://www.sandwell.gov.uk/info/200202/performance_and_spending/1079/payments_over_500,15-Jul-2022,Childrens Services,REDACTED PERSONAL DATA,Childrens Services,545.45,External Contract Hire,2223P04_CR00327,REDACTED PERSONAL DATA
Sandwell Metropolitan Borough Council,http://www.sandwell.gov.uk/info/200202/performance_and_spending/1079/payments_over_500,15-Jul-2022,Childrens Services,REDACTED PERSONAL DATA,Childrens Services,545.45,External Contract Hire,2223P04_CR00328,REDACTED PERSONAL DATA
Sandwell Metropolitan Borough Council,http://www.sandwell.gov.uk/info/200202/performance_and_spending/1079/payments_over_500,15-Jul-2022,Childrens Services,REDACTED PERSONAL DATA,Childrens Services,545.45,External Contract Hire,2223P04_CR00329,REDACTED PERSONAL DATA
Sandwell Metropolitan Borough Council,http://www.sandwell.gov.uk/info/200202/performance_and_spending/1079/payments_over_500,15-Jul-2022,Childrens Services,REDACTED PERSONAL DATA,Childrens Services,545.45,External Contract Hire,2223P04_CR00330,REDACTED PERSONAL DATA
Sandwell Metropolitan Borough Council,http://www.sandwell.gov.uk/info/200202/performance_and_spending/1079/payments_over_500,15-Jul-2022,Childrens Services,REDACTED PERSONAL DATA,Childrens Services,545.45,External Contract Hire,2223P04_CR00331,REDACTED PERSONAL DATA
Sandwell Metropolitan Borough Council,http://www.sandwell.gov.uk/info/200202/performance_and_spending/1079/payments_over_500,15-Jul-2022,Childrens Services,REDACTED PERSONAL DATA,Childrens Services,545.45,External Contract Hire,2223P04_CR00332,REDACTED PERSONAL DATA
Sandwell Metropolitan Borough Council,http://www.sandwell.gov.uk/info/200202/performance_and_spending/1079/payments_over_500,15-Jul-2022,Childrens Services,REDACTED PERSONAL DATA,Childrens Services,545.45,External Contract Hire,2223P04_CR00333,REDACTED PERSONAL DATA
Sandwell Metropolitan Borough Council,http://www.sandwell.gov.uk/info/200202/performance_and_spending/1079/payments_over_500,15-Jul-2022,Childrens Services,REDACTED PERSONAL DATA,Childrens Services,545.45,External Contract Hire,2223P04_CR00334,REDACTED PERSONAL DATA
Sandwell Metropolitan Borough Council,http://www.sandwell.gov.uk/info/200202/performance_and_spending/1079/payments_over_500,15-Jul-2022,Childrens Services,REDACTED PERSONAL DATA,Childrens Services,545.45,External Contract Hire,2223P04_CR00335,REDACTED PERSONAL DATA
Sandwell Metropolitan Borough Council,http://www.sandwell.gov.uk/info/200202/performance_and_spending/1079/payments_over_500,15-Jul-2022,Childrens Services,REDACTED PERSONAL DATA,Childrens Services,727.27,External Contract Hire,2223P04_CR00336,REDACTED PERSONAL DATA
Sandwell Metropolitan Borough Council,http://www.sandwell.gov.uk/info/200202/performance_and_spending/1079/payments_over_500,15-Jul-2022,Childrens Services,REDACTED PERSONAL DATA,Childrens Services,727.27,External Contract Hire,2223P04_CR00337,REDACTED PERSONAL DATA
Sandwell Metropolitan Borough Council,http://www.sandwell.gov.uk/info/200202/performance_and_spending/1079/payments_over_500,15-Jul-2022,Childrens Services,REDACTED PERSONAL DATA,Childrens Services,727.27,External Contract Hire,2223P04_CR00338,REDACTED PERSONAL DATA
Sandwell Metropolitan Borough Council,http://www.sandwell.gov.uk/info/200202/performance_and_spending/1079/payments_over_500,15-Jul-2022,Childrens Services,REDACTED PERSONAL DATA,Childrens Services,727.27,External Contract Hire,2223P04_CR00339,REDACTED PERSONAL DATA
Sandwell Metropolitan Borough Council,http://www.sandwell.gov.uk/info/200202/performance_and_spending/1079/payments_over_500,15-Jul-2022,Childrens Services,REDACTED PERSONAL DATA,Childrens Services,727.27,External Contract Hire,2223P04_CR00340,REDACTED PERSONAL DATA
Sandwell Metropolitan Borough Council,http://www.sandwell.gov.uk/info/200202/performance_and_spending/1079/payments_over_500,15-Jul-2022,Childrens Services,REDACTED PERSONAL DATA,Childrens Services,727.27,External Contract Hire,2223P04_CR00341,REDACTED PERSONAL DATA
Sandwell Metropolitan Borough Council,http://www.sandwell.gov.uk/info/200202/performance_and_spending/1079/payments_over_500,15-Jul-2022,Childrens Services,REDACTED PERSONAL DATA,Childrens Services,727.27,External Contract Hire,2223P04_CR00342,REDACTED PERSONAL DATA
Sandwell Metropolitan Borough Council,http://www.sandwell.gov.uk/info/200202/performance_and_spending/1079/payments_over_500,15-Jul-2022,Childrens Services,REDACTED PERSONAL DATA,Childrens Services,727.27,External Contract Hire,2223P04_CR00343,REDACTED PERSONAL DATA
Sandwell Metropolitan Borough Council,http://www.sandwell.gov.uk/info/200202/performance_and_spending/1079/payments_over_500,15-Jul-2022,Childrens Services,REDACTED PERSONAL DATA,Childrens Services,727.27,External Contract Hire,2223P04_CR00344,REDACTED PERSONAL DATA
Sandwell Metropolitan Borough Council,http://www.sandwell.gov.uk/info/200202/performance_and_spending/1079/payments_over_500,15-Jul-2022,Childrens Services,REDACTED PERSONAL DATA,Childrens Services,727.27,External Contract Hire,2223P04_CR00345,REDACTED PERSONAL DATA
Sandwell Metropolitan Borough Council,http://www.sandwell.gov.uk/info/200202/performance_and_spending/1079/payments_over_500,15-Jul-2022,Childrens Services,REDACTED PERSONAL DATA,Childrens Services,727.27,External Contract Hire,2223P04_CR00346,REDACTED PERSONAL DATA
Sandwell Metropolitan Borough Council,http://www.sandwell.gov.uk/info/200202/performance_and_spending/1079/payments_over_500,15-Jul-2022,Childrens Services,REDACTED PERSONAL DATA,Childrens Services,727.27,External Contract Hire,2223P04_CR00347,REDACTED PERSONAL DATA
Sandwell Metropolitan Borough Council,http://www.sandwell.gov.uk/info/200202/performance_and_spending/1079/payments_over_500,15-Jul-2022,Childrens Services,REDACTED PERSONAL DATA,Childrens Services,727.27,External Contract Hire,2223P04_CR00348,REDACTED PERSONAL DATA
Sandwell Metropolitan Borough Council,http://www.sandwell.gov.uk/info/200202/performance_and_spending/1079/payments_over_500,15-Jul-2022,Childrens Services,REDACTED PERSONAL DATA,Childrens Services,727.27,External Contract Hire,2223P04_CR00349,REDACTED PERSONAL DATA
Sandwell Metropolitan Borough Council,http://www.sandwell.gov.uk/info/200202/performance_and_spending/1079/payments_over_500,15-Jul-2022,Childrens Services,REDACTED PERSONAL DATA,Childrens Services,727.28,External Contract Hire,2223P04_CR00350,REDACTED PERSONAL DATA
Sandwell Metropolitan Borough Council,http://www.sandwell.gov.uk/info/200202/performance_and_spending/1079/payments_over_500,15-Jul-2022,Childrens Services,REDACTED PERSONAL DATA,Childrens Services,727.28,External Contract Hire,2223P04_CR00351,REDACTED PERSONAL DATA
Sandwell Metropolitan Borough Council,http://www.sandwell.gov.uk/info/200202/performance_and_spending/1079/payments_over_500,15-Jul-2022,Childrens Services,REDACTED PERSONAL DATA,Childrens Services,800.00,External Contract Hire,2223P04_CR00352,REDACTED PERSONAL DATA
Sandwell Metropolitan Borough Council,http://www.sandwell.gov.uk/info/200202/performance_and_spending/1079/payments_over_500,15-Jul-2022,Childrens Services,REDACTED PERSONAL DATA,Childrens Services,909.09,External Contract Hire,2223P04_CR00353,REDACTED PERSONAL DATA
Sandwell Metropolitan Borough Council,http://www.sandwell.gov.uk/info/200202/performance_and_spending/1079/payments_over_500,15-Jul-2022,Childrens Services,REDACTED PERSONAL DATA,Childrens Services,1090.90,External Contract Hire,2223P04_CR00354,REDACTED PERSONAL DATA
Sandwell Metropolitan Borough Council,http://www.sandwell.gov.uk/info/200202/performance_and_spending/1079/payments_over_500,11-Jul-2022,Childrens Services,CAPE COMMUNITY CARE DAY CENTRE,Childrens Services,5840.80,Grant Payments,2223P04_CR00355,01693179
Sandwell Metropolitan Borough Council,http://www.sandwell.gov.uk/info/200202/performance_and_spending/1079/payments_over_500,20-Jul-2022,Childrens Services,CONFEDERATION OF BANGLADESHI ORGANISATIONS (CBO) LIMITED,Childrens Services,1152.00,Grant Payments,2223P04_CR00356,10034
Sandwell Metropolitan Borough Council,http://www.sandwell.gov.uk/info/200202/performance_and_spending/1079/payments_over_500,11-Jul-2022,Childrens Services,EXCELR8 SCE C.I.C,Childrens Services,10580.00,Grant Payments,2223P04_CR00357,153112
Sandwell Metropolitan Borough Council,http://www.sandwell.gov.uk/info/200202/performance_and_spending/1079/payments_over_500,11-Jul-2022,Childrens Services,FANTASTIC JOURNEYS C.I.C,Childrens Services,1960.00,Grant Payments,2223P04_CR00358,163596
Sandwell Metropolitan Borough Council,http://www.sandwell.gov.uk/info/200202/performance_and_spending/1079/payments_over_500,11-Jul-2022,Childrens Services,G.A.P ENTERTAINMENT C.I.C,Childrens Services,16634.00,Grant Payments,2223P04_CR00359,153273
Sandwell Metropolitan Borough Council,http://www.sandwell.gov.uk/info/200202/performance_and_spending/1079/payments_over_500,01-Jul-2022,Childrens Services,GREAT BRIDGE COMMUNITY FORUM,Childrens Services,1600.00,Grant Payments,2223P04_CR00360,21026008
Sandwell Metropolitan Borough Council,http://www.sandwell.gov.uk/info/200202/performance_and_spending/1079/payments_over_500,11-Jul-2022,Childrens Services,KIDS,Childrens Services,12101.00,Grant Payments,2223P04_CR00361,80825
Sandwell Metropolitan Borough Council,http://www.sandwell.gov.uk/info/200202/performance_and_spending/1079/payments_over_500,01-Jul-2022,Childrens Services,LION FARM ACTION CENTRE (SANDWELL) LTD,Childrens Services,3960.00,Grant Payments,2223P04_CR00362,21023409
Sandwell Metropolitan Borough Council,http://www.sandwell.gov.uk/info/200202/performance_and_spending/1079/payments_over_500,01-Jul-2022,Childrens Services,OLDBURY UNITED C.I.C,Childrens Services,4719.00,Grant Payments,2223P04_CR00363,153379
Sandwell Metropolitan Borough Council,http://www.sandwell.gov.uk/info/200202/performance_and_spending/1079/payments_over_500,14-Jul-2022,Childrens Services,SANDWELL ASIAN FAMILY SUPPORT SERVICES,Childrens Services,2245.00,Grant Payments,2223P04_CR00364,01480451
Sandwell Metropolitan Borough Council,http://www.sandwell.gov.uk/info/200202/performance_and_spending/1079/payments_over_500,13-Jul-2022,Childrens Services,SPORTING SPIRIT CIC,Childrens Services,4820.00,Grant Payments,2223P04_CR00365,130989
Sandwell Metropolitan Borough Council,http://www.sandwell.gov.uk/info/200202/performance_and_spending/1079/payments_over_500,01-Jul-2022,Childrens Services,SPORTING SPIRIT CIC,Childrens Services,5040.00,Grant Payments,2223P04_CR00366,130989
Sandwell Metropolitan Borough Council,http://www.sandwell.gov.uk/info/200202/performance_and_spending/1079/payments_over_500,11-Jul-2022,Childrens Services,SPORTING SPIRIT CIC,Childrens Services,11233.57,Grant Payments,2223P04_CR00367,130989
Sandwell Metropolitan Borough Council,http://www.sandwell.gov.uk/info/200202/performance_and_spending/1079/payments_over_500,01-Jul-2022,Childrens Services,WEST SMETHWICK ENTERPRISE AND STEPPING STONES PRE-SCHOOL,Childrens Services,2342.00,Grant Payments,2223P04_CR00368,01722169
Sandwell Metropolitan Borough Council,http://www.sandwell.gov.uk/info/200202/performance_and_spending/1079/payments_over_500,01-Jul-2022,Childrens Services Capital,D P DESIGN PARTNERSHIP,Childrens Services Capital,3225.00,"CIP - New Construction,Conversion, Enhancement & Reno",2223P04_CR00369,145811
Sandwell Metropolitan Borough Council,http://www.sandwell.gov.uk/info/200202/performance_and_spending/1079/payments_over_500,01-Jul-2022,Childrens Services Capital,HILL INTERIOR CONTRACTS LTD,Childrens Services Capital,15117.06,"CIP - New Construction,Conversion, Enhancement & Reno",2223P04_CR00370,17158
Sandwell Metropolitan Borough Council,http://www.sandwell.gov.uk/info/200202/performance_and_spending/1079/payments_over_500,01-Jul-2022,Childrens Services Capital,INTERCLASS PLC,Childrens Services Capital,42794.22,"CIP - New Construction,Conversion, Enhancement & Reno",2223P04_CR00371,77001959
Sandwell Metropolitan Borough Council,http://www.sandwell.gov.uk/info/200202/performance_and_spending/1079/payments_over_500,14-Jul-2022,Childrens Services Capital,POWELL OFFICE EQUIPMENT LIMITED,Childrens Services Capital,984.50,"CIP - New Construction,Conversion, Enhancement & Reno",2223P04_CR00372,2759
Sandwell Metropolitan Borough Council,http://www.sandwell.gov.uk/info/200202/performance_and_spending/1079/payments_over_500,01-Jul-2022,Childrens Services Capital,SEDDON CONSTRUCTION LIMITED,Childrens Services Capital,130518.39,"CIP - New Construction,Conversion, Enhancement & Reno",2223P04_CR00373,132999
Sandwell Metropolitan Borough Council,http://www.sandwell.gov.uk/info/200202/performance_and_spending/1079/payments_over_500,01-Jul-2022,Childrens Services Capital,STONE COMPUTERS LIMITED,Childrens Services Capital,3796.00,"CIP - New Construction,Conversion, Enhancement & Reno",2223P04_CR00374,23360
Sandwell Metropolitan Borough Council,http://www.sandwell.gov.uk/info/200202/performance_and_spending/1079/payments_over_500,13-Jul-2022,Childrens Services Capital,NICHOLLS COLTON & PARTNERS LTD,Childrens Services Capital,2475.00,"CIP - New Construction,Conversion, Enhancement & Reno",2223P04_CR00375,3215
Sandwell Metropolitan Borough Council,http://www.sandwell.gov.uk/info/200202/performance_and_spending/1079/payments_over_500,19-Jul-2022,Corporate Management,GRESHAM OFFICE FURNITURE LTD,Corporate Management,2371.50,Equipment & Furniture ,2223P04_CR00376,93465
Sandwell Metropolitan Borough Council,http://www.sandwell.gov.uk/info/200202/performance_and_spending/1079/payments_over_500,19-Jul-2022,Corporate Management,SANDWELL COLLEGE SMBC DORMANT TRUST,Corporate Management,74404.89,Grant Payments,2223P04_CR00377,120965
Sandwell Metropolitan Borough Council,http://www.sandwell.gov.uk/info/200202/performance_and_spending/1079/payments_over_500,15-Jul-2022,Housing & Communities,BA BUSH & SON LTD,Neighbourhoods,890.50,Tyres,2223P04_CR00378,159771
Sandwell Metropolitan Borough Council,http://www.sandwell.gov.uk/info/200202/performance_and_spending/1079/payments_over_500,01-Jul-2022,Housing & Communities,BOB RICHARDSON TOOLS & FASTENERS LTD,Neighbourhoods,673.93,Equipment & Furniture ,2223P04_CR00379,01082705
Sandwell Metropolitan Borough Council,http://www.sandwell.gov.uk/info/200202/performance_and_spending/1079/payments_over_500,15-Jul-2022,Housing & Communities,COOPER MOBILE SERVICES LTD,Neighbourhoods,6083.89,Fire Service Workshops,2223P04_CR00380,01304378
Sandwell Metropolitan Borough Council,http://www.sandwell.gov.uk/info/200202/performance_and_spending/1079/payments_over_500,01-Jul-2022,Housing & Communities,DAWSONGROUP VANS,Neighbourhoods,511.50,Vehicle Hiring Charges,2223P04_CR00381,151498
Sandwell Metropolitan Borough Council,http://www.sandwell.gov.uk/info/200202/performance_and_spending/1079/payments_over_500,01-Jul-2022,Housing & Communities,DAWSONGROUP VANS,Neighbourhoods,511.50,Vehicle Hiring Charges,2223P04_CR00382,151498
Sandwell Metropolitan Borough Council,http://www.sandwell.gov.uk/info/200202/performance_and_spending/1079/payments_over_500,01-Jul-2022,Housing & Communities,DAWSONGROUP VANS,Neighbourhoods,606.86,Vehicle Hiring Charges,2223P04_CR00383,151498
Sandwell Metropolitan Borough Council,http://www.sandwell.gov.uk/info/200202/performance_and_spending/1079/payments_over_500,01-Jul-2022,Housing & Communities,DAYS RENTAL,Neighbourhoods,862.20,Vehicle Hiring Charges,2223P04_CR00384,128169
Sandwell Metropolitan Borough Council,http://www.sandwell.gov.uk/info/200202/performance_and_spending/1079/payments_over_500,01-Jul-2022,Housing & Communities,DAYS RENTAL,Neighbourhoods,862.20,Vehicle Hiring Charges,2223P04_CR00385,128169
Sandwell Metropolitan Borough Council,http://www.sandwell.gov.uk/info/200202/performance_and_spending/1079/payments_over_500,01-Jul-2022,Housing & Communities,DAYS RENTAL,Neighbourhoods,862.20,Vehicle Hiring Charges,2223P04_CR00386,128169
Sandwell Metropolitan Borough Council,http://www.sandwell.gov.uk/info/200202/performance_and_spending/1079/payments_over_500,01-Jul-2022,Housing & Communities,DAYS RENTAL,Neighbourhoods,862.20,Vehicle Hiring Charges,2223P04_CR00387,128169
Sandwell Metropolitan Borough Council,http://www.sandwell.gov.uk/info/200202/performance_and_spending/1079/payments_over_500,01-Jul-2022,Housing & Communities,DAYS RENTAL,Neighbourhoods,1039.30,Vehicle Hiring Charges,2223P04_CR00388,128169
Sandwell Metropolitan Borough Council,http://www.sandwell.gov.uk/info/200202/performance_and_spending/1079/payments_over_500,01-Jul-2022,Housing & Communities,DAYS RENTAL,Neighbourhoods,1039.30,Vehicle Hiring Charges,2223P04_CR00389,128169
Sandwell Metropolitan Borough Council,http://www.sandwell.gov.uk/info/200202/performance_and_spending/1079/payments_over_500,01-Jul-2022,Housing & Communities,DAYS RENTAL,Neighbourhoods,1365.72,Vehicle Hiring Charges,2223P04_CR00390,128169
Sandwell Metropolitan Borough Council,http://www.sandwell.gov.uk/info/200202/performance_and_spending/1079/payments_over_500,21-Jul-2022,Housing & Communities,DENNIS EAGLE LTD,Neighbourhoods,608.59,Fire Service Workshops,2223P04_CR00391,01004865
Sandwell Metropolitan Borough Council,http://www.sandwell.gov.uk/info/200202/performance_and_spending/1079/payments_over_500,01-Jul-2022,Housing & Communities,DENNIS EAGLE LTD,Neighbourhoods,608.59,Fire Service Workshops,2223P04_CR00392,01004865
Sandwell Metropolitan Borough Council,http://www.sandwell.gov.uk/info/200202/performance_and_spending/1079/payments_over_500,06-Jul-2022,Housing & Communities,DENNIS EAGLE LTD,Neighbourhoods,818.91,Fire Service Workshops,2223P04_CR00393,01004865
Sandwell Metropolitan Borough Council,http://www.sandwell.gov.uk/info/200202/performance_and_spending/1079/payments_over_500,14-Jul-2022,Housing & Communities,DENNIS EAGLE LTD,Neighbourhoods,1055.85,Fire Service Workshops,2223P04_CR00394,01004865
Sandwell Metropolitan Borough Council,http://www.sandwell.gov.uk/info/200202/performance_and_spending/1079/payments_over_500,01-Jul-2022,Housing & Communities,DENNIS EAGLE LTD,Neighbourhoods,1098.69,Fire Service Workshops,2223P04_CR00395,01004865
Sandwell Metropolitan Borough Council,http://www.sandwell.gov.uk/info/200202/performance_and_spending/1079/payments_over_500,05-Jul-2022,Housing & Communities,DENNIS EAGLE LTD,Neighbourhoods,1478.59,Fire Service Workshops,2223P04_CR00396,01004865
Sandwell Metropolitan Borough Council,http://www.sandwell.gov.uk/info/200202/performance_and_spending/1079/payments_over_500,01-Jul-2022,Housing & Communities,DENNIS EAGLE LTD,Neighbourhoods,1896.93,Fire Service Workshops,2223P04_CR00397,01004865
Sandwell Metropolitan Borough Council,http://www.sandwell.gov.uk/info/200202/performance_and_spending/1079/payments_over_500,20-Jul-2022,Housing & Communities,DENNIS EAGLE LTD,Neighbourhoods,2580.36,Fire Service Workshops,2223P04_CR00398,01004865
Sandwell Metropolitan Borough Council,http://www.sandwell.gov.uk/info/200202/performance_and_spending/1079/payments_over_500,01-Jul-2022,Housing & Communities,DENNIS EAGLE LTD,Neighbourhoods,2969.45,Fire Service Workshops,2223P04_CR00399,01004865
Sandwell Metropolitan Borough Council,http://www.sandwell.gov.uk/info/200202/performance_and_spending/1079/payments_over_500,14-Jul-2022,Housing & Communities,ERNEST DOE & SONS LTD,Neighbourhoods,2556.00,Equipment & Furniture ,2223P04_CR00400,108676
Sandwell Metropolitan Borough Council,http://www.sandwell.gov.uk/info/200202/performance_and_spending/1079/payments_over_500,01-Jul-2022,Housing & Communities,GEESINK NORBA LTD,Neighbourhoods,662.77,Fire Service Workshops,2223P04_CR00401,102799
Sandwell Metropolitan Borough Council,http://www.sandwell.gov.uk/info/200202/performance_and_spending/1079/payments_over_500,01-Jul-2022,Housing & Communities,H L SMITH (TRANSMISSIONS) LTD,Neighbourhoods,795.00,Fire Service Workshops,2223P04_CR00402,01032886
Sandwell Metropolitan Borough Council,http://www.sandwell.gov.uk/info/200202/performance_and_spending/1079/payments_over_500,12-Jul-2022,Housing & Communities,H L SMITH (TRANSMISSIONS) LTD,Neighbourhoods,795.00,Fire Service Workshops,2223P04_CR00403,01032886
Sandwell Metropolitan Borough Council,http://www.sandwell.gov.uk/info/200202/performance_and_spending/1079/payments_over_500,02-Jul-2022,Housing & Communities,HADLEYS STEAM CLEANING LTD,Neighbourhoods,1838.00,Repairs & Maintenance,2223P04_CR00404,132536
Sandwell Metropolitan Borough Council,http://www.sandwell.gov.uk/info/200202/performance_and_spending/1079/payments_over_500,01-Jul-2022,Housing & Communities,HAYLEY GROUP PLC,Neighbourhoods,528.82,Fire Service Workshops,2223P04_CR00405,95508
Sandwell Metropolitan Borough Council,http://www.sandwell.gov.uk/info/200202/performance_and_spending/1079/payments_over_500,01-Jul-2022,Housing & Communities,HAYLEY GROUP PLC,Neighbourhoods,1553.55,Fire Service Workshops,2223P04_CR00406,95508
Sandwell Metropolitan Borough Council,http://www.sandwell.gov.uk/info/200202/performance_and_spending/1079/payments_over_500,01-Jul-2022,Housing & Communities,HAYNESPRO (UK) LTD,Neighbourhoods,1260.00,Subscriptions,2223P04_CR00407,138922
Sandwell Metropolitan Borough Council,http://www.sandwell.gov.uk/info/200202/performance_and_spending/1079/payments_over_500,01-Jul-2022,Housing & Communities,JAMES LISTER & SONS LTD,Neighbourhoods,655.56,Fire Service Workshops,2223P04_CR00408,01021821
Sandwell Metropolitan Borough Council,http://www.sandwell.gov.uk/info/200202/performance_and_spending/1079/payments_over_500,01-Jul-2022,Housing & Communities,MOTUS COMMERCIALS HALESOWEN,Neighbourhoods,660.19,Fire Service Workshops,2223P04_CR00409,142253
Sandwell Metropolitan Borough Council,http://www.sandwell.gov.uk/info/200202/performance_and_spending/1079/payments_over_500,06-Jul-2022,Housing & Communities,MOTUS COMMERCIALS HALESOWEN,Neighbourhoods,702.14,Fire Service Workshops,2223P04_CR00410,142253
Sandwell Metropolitan Borough Council,http://www.sandwell.gov.uk/info/200202/performance_and_spending/1079/payments_over_500,01-Jul-2022,Housing & Communities,NORTHGATE VEHICLE HIRE (WEST MIDLANDS) LTD,Neighbourhoods,591.00,Vehicle Hiring Charges,2223P04_CR00411,01057676
Sandwell Metropolitan Borough Council,http://www.sandwell.gov.uk/info/200202/performance_and_spending/1079/payments_over_500,10-Jul-2022,Housing & Communities,OAKLEYS LTD,Neighbourhoods,3990.86,Fire Service Workshops,2223P04_CR00412,01598115
Sandwell Metropolitan Borough Council,http://www.sandwell.gov.uk/info/200202/performance_and_spending/1079/payments_over_500,06-Jul-2022,Housing & Communities,PARTSPLUS,Neighbourhoods,903.29,Fire Service Workshops,2223P04_CR00413,01087922
Sandwell Metropolitan Borough Council,http://www.sandwell.gov.uk/info/200202/performance_and_spending/1079/payments_over_500,01-Jul-2022,Housing & Communities,PHS BESAFE,Neighbourhoods,1083.30,Laundry,2223P04_CR00414,124613
Sandwell Metropolitan Borough Council,http://www.sandwell.gov.uk/info/200202/performance_and_spending/1079/payments_over_500,05-Jul-2022,Housing & Communities,ROBINS & DAY PARTS WEST MIDLANDS,Neighbourhoods,505.47,Fire Service Workshops,2223P04_CR00415,118812
Sandwell Metropolitan Borough Council,http://www.sandwell.gov.uk/info/200202/performance_and_spending/1079/payments_over_500,01-Jul-2022,Housing & Communities,ROBINS & DAY PARTS WEST MIDLANDS,Neighbourhoods,893.44,Fire Service Workshops,2223P04_CR00416,118812
Sandwell Metropolitan Borough Council,http://www.sandwell.gov.uk/info/200202/performance_and_spending/1079/payments_over_500,11-Jul-2022,Housing & Communities,RS COMPONENTS LTD,Neighbourhoods,817.65,Fire Service Workshops,2223P04_CR00417,01665835
Sandwell Metropolitan Borough Council,http://www.sandwell.gov.uk/info/200202/performance_and_spending/1079/payments_over_500,01-Jul-2022,Housing & Communities,RVW PUGH LTD,Neighbourhoods,873.62,Fire Service Workshops,2223P04_CR00418,5902
Sandwell Metropolitan Borough Council,http://www.sandwell.gov.uk/info/200202/performance_and_spending/1079/payments_over_500,01-Jul-2022,Housing & Communities,RVW PUGH LTD,Neighbourhoods,1557.14,Fire Service Workshops,2223P04_CR00419,5902
Sandwell Metropolitan Borough Council,http://www.sandwell.gov.uk/info/200202/performance_and_spending/1079/payments_over_500,05-Jul-2022,Housing & Communities,RYGOR COMMERCIALS LTD,Neighbourhoods,585.97,Fire Service Workshops,2223P04_CR00420,3345
Sandwell Metropolitan Borough Council,http://www.sandwell.gov.uk/info/200202/performance_and_spending/1079/payments_over_500,20-Jul-2022,Housing & Communities,RYGOR COMMERCIALS LTD,Neighbourhoods,598.30,Fire Service Workshops,2223P04_CR00421,3345
Sandwell Metropolitan Borough Council,http://www.sandwell.gov.uk/info/200202/performance_and_spending/1079/payments_over_500,01-Jul-2022,Housing & Communities,RYGOR COMMERCIALS LTD,Neighbourhoods,715.28,Fire Service Workshops,2223P04_CR00422,3345
Sandwell Metropolitan Borough Council,http://www.sandwell.gov.uk/info/200202/performance_and_spending/1079/payments_over_500,21-Jul-2022,Housing & Communities,RYGOR COMMERCIALS LTD,Neighbourhoods,740.47,Fire Service Workshops,2223P04_CR00423,3345
Sandwell Metropolitan Borough Council,http://www.sandwell.gov.uk/info/200202/performance_and_spending/1079/payments_over_500,15-Jul-2022,Housing & Communities,TAYLOR ENGINEERING & FABRICATIONS LTD,Neighbourhoods,519.92,Fire Service Workshops,2223P04_CR00424,87793
Sandwell Metropolitan Borough Council,http://www.sandwell.gov.uk/info/200202/performance_and_spending/1079/payments_over_500,05-Jul-2022,Housing & Communities,TAYLOR ENGINEERING & FABRICATIONS LTD,Neighbourhoods,832.00,Fire Service Workshops,2223P04_CR00425,87793
Sandwell Metropolitan Borough Council,http://www.sandwell.gov.uk/info/200202/performance_and_spending/1079/payments_over_500,12-Jul-2022,Housing & Communities,TERBERG MATEC UK LTD,Neighbourhoods,1800.77,Fire Service Workshops,2223P04_CR00426,21235
Sandwell Metropolitan Borough Council,http://www.sandwell.gov.uk/info/200202/performance_and_spending/1079/payments_over_500,15-Jul-2022,Housing & Communities,TH WHITE LIMITED,Neighbourhoods,690.67,Fire Service Workshops,2223P04_CR00427,01774713
Sandwell Metropolitan Borough Council,http://www.sandwell.gov.uk/info/200202/performance_and_spending/1079/payments_over_500,01-Jul-2022,Housing & Communities,TH WHITE LIMITED,Neighbourhoods,1430.39,Repairs & Maintenance,2223P04_CR00428,01774713
Sandwell Metropolitan Borough Council,http://www.sandwell.gov.uk/info/200202/performance_and_spending/1079/payments_over_500,01-Jul-2022,Housing & Communities,WILLENHALL ENGINE CENTRE,Neighbourhoods,2100.00,Fire Service Workshops,2223P04_CR00429,163250
Sandwell Metropolitan Borough Council,http://www.sandwell.gov.uk/info/200202/performance_and_spending/1079/payments_over_500,01-Jul-2022,Housing & Communities,ABRAXAS CATERING EQUIPMENT LTD,Neighbourhoods,30535.00,Equipment & Furniture ,2223P04_CR00430,124644
Sandwell Metropolitan Borough Council,http://www.sandwell.gov.uk/info/200202/performance_and_spending/1079/payments_over_500,01-Jul-2022,Housing & Communities,ADT FIRE & SECURITY PLC,Neighbourhoods,3676.37,Security,2223P04_CR00431,01115015
Sandwell Metropolitan Borough Council,http://www.sandwell.gov.uk/info/200202/performance_and_spending/1079/payments_over_500,15-Jul-2022,Housing & Communities,AECOM INFRASTRUCTURE & ENVIRONMENT UK LIMITED,Neighbourhoods,734.44,Consultancy,2223P04_CR00432,107299
Sandwell Metropolitan Borough Council,http://www.sandwell.gov.uk/info/200202/performance_and_spending/1079/payments_over_500,01-Jul-2022,Housing & Communities,AGRIGEM LTD,Neighbourhoods,1326.80,Equipment & Furniture ,2223P04_CR00433,162012
Sandwell Metropolitan Borough Council,http://www.sandwell.gov.uk/info/200202/performance_and_spending/1079/payments_over_500,15-Jul-2022,Housing & Communities,ALLSTAR BUSINESS SOLUTIONS LIMITED,Neighbourhoods,4565.32,Fuel ,2223P04_CR00434,104057
Sandwell Metropolitan Borough Council,http://www.sandwell.gov.uk/info/200202/performance_and_spending/1079/payments_over_500,01-Jul-2022,Housing & Communities,ALLSTAR BUSINESS SOLUTIONS LIMITED,Neighbourhoods,5067.24,Fuel ,2223P04_CR00435,104057
Sandwell Metropolitan Borough Council,http://www.sandwell.gov.uk/info/200202/performance_and_spending/1079/payments_over_500,01-Jul-2022,Housing & Communities,ANT EVENT MANAGEMENT,Neighbourhoods,800.00,Civic Events,2223P04_CR00436,155357
Sandwell Metropolitan Borough Council,http://www.sandwell.gov.uk/info/200202/performance_and_spending/1079/payments_over_500,01-Jul-2022,Housing & Communities,B & S CHAINS (MIDLANDS) LIMITED,Neighbourhoods,5054.78,Equipment & Furniture ,2223P04_CR00437,01357251
Sandwell Metropolitan Borough Council,http://www.sandwell.gov.uk/info/200202/performance_and_spending/1079/payments_over_500,01-Jul-2022,Housing & Communities,BAKER ROSS LIMITED,Neighbourhoods,509.46,"Printing, Stationery & General Office Expenses",2223P04_CR00438,01269861
Sandwell Metropolitan Borough Council,http://www.sandwell.gov.uk/info/200202/performance_and_spending/1079/payments_over_500,01-Jul-2022,Housing & Communities,BAKER ROSS LIMITED,Neighbourhoods,564.71,"Printing, Stationery & General Office Expenses",2223P04_CR00439,01269861
Sandwell Metropolitan Borough Council,http://www.sandwell.gov.uk/info/200202/performance_and_spending/1079/payments_over_500,15-Jul-2022,Housing & Communities,BAKER ROSS LIMITED,Neighbourhoods,595.71,"Printing, Stationery & General Office Expenses",2223P04_CR00440,01269861
Sandwell Metropolitan Borough Council,http://www.sandwell.gov.uk/info/200202/performance_and_spending/1079/payments_over_500,12-Jul-2022,Housing & Communities,BEECHWOOD TREES & LANDSCAPE LTD,Neighbourhoods,540.00,Externally Purchased Professional Services ,2223P04_CR00441,93287
Sandwell Metropolitan Borough Council,http://www.sandwell.gov.uk/info/200202/performance_and_spending/1079/payments_over_500,01-Jul-2022,Housing & Communities,BEECHWOOD TREES & LANDSCAPE LTD,Neighbourhoods,560.00,Externally Purchased Professional Services ,2223P04_CR00442,93287
Sandwell Metropolitan Borough Council,http://www.sandwell.gov.uk/info/200202/performance_and_spending/1079/payments_over_500,15-Jul-2022,Housing & Communities,BEECHWOOD TREES & LANDSCAPE LTD,Neighbourhoods,580.00,Externally Purchased Professional Services ,2223P04_CR00443,93287
Sandwell Metropolitan Borough Council,http://www.sandwell.gov.uk/info/200202/performance_and_spending/1079/payments_over_500,12-Jul-2022,Housing & Communities,BEECHWOOD TREES & LANDSCAPE LTD,Neighbourhoods,630.00,Externally Purchased Professional Services ,2223P04_CR00444,93287
Sandwell Metropolitan Borough Council,http://www.sandwell.gov.uk/info/200202/performance_and_spending/1079/payments_over_500,13-Jul-2022,Housing & Communities,BEECHWOOD TREES & LANDSCAPE LTD,Neighbourhoods,1220.00,Externally Purchased Professional Services ,2223P04_CR00445,93287
Sandwell Metropolitan Borough Council,http://www.sandwell.gov.uk/info/200202/performance_and_spending/1079/payments_over_500,01-Jul-2022,Housing & Communities,BEECHWOOD TREES & LANDSCAPE LTD,Neighbourhoods,1810.00,Externally Purchased Professional Services ,2223P04_CR00446,93287
Sandwell Metropolitan Borough Council,http://www.sandwell.gov.uk/info/200202/performance_and_spending/1079/payments_over_500,01-Jul-2022,Housing & Communities,BEEHIVE BITS LIMITED,Neighbourhoods,648.00,Materials & Consumables,2223P04_CR00447,130628
Sandwell Metropolitan Borough Council,http://www.sandwell.gov.uk/info/200202/performance_and_spending/1079/payments_over_500,19-Jul-2022,Housing & Communities,BIBLIOTHECA LIMITED,Neighbourhoods,13475.86,ICT ,2223P04_CR00448,94179
Sandwell Metropolitan Borough Council,http://www.sandwell.gov.uk/info/200202/performance_and_spending/1079/payments_over_500,04-Jul-2022,Housing & Communities,BLACK COUNTRY WOMEN'S AID,Neighbourhoods,10000.00,Grant Payments,2223P04_CR00449,127401
Sandwell Metropolitan Borough Council,http://www.sandwell.gov.uk/info/200202/performance_and_spending/1079/payments_over_500,01-Jul-2022,Housing & Communities,BOLINDA UK LTD,Neighbourhoods,7000.00,Materials & Consumables,2223P04_CR00450,117408
Sandwell Metropolitan Borough Council,http://www.sandwell.gov.uk/info/200202/performance_and_spending/1079/payments_over_500,05-Jul-2022,Housing & Communities,BOUDEN TRAVEL LTD,Neighbourhoods,1200.00,Equipment & Furniture ,2223P04_CR00451,163598
Sandwell Metropolitan Borough Council,http://www.sandwell.gov.uk/info/200202/performance_and_spending/1079/payments_over_500,05-Jul-2022,Housing & Communities,BOUDEN TRAVEL LTD,Neighbourhoods,1200.00,Equipment & Furniture ,2223P04_CR00452,163598
Sandwell Metropolitan Borough Council,http://www.sandwell.gov.uk/info/200202/performance_and_spending/1079/payments_over_500,05-Jul-2022,Housing & Communities,BOUDEN TRAVEL LTD,Neighbourhoods,1200.00,Equipment & Furniture ,2223P04_CR00453,163598
Sandwell Metropolitan Borough Council,http://www.sandwell.gov.uk/info/200202/performance_and_spending/1079/payments_over_500,05-Jul-2022,Housing & Communities,BOUDEN TRAVEL LTD,Neighbourhoods,1200.00,Equipment & Furniture ,2223P04_CR00454,163598
Sandwell Metropolitan Borough Council,http://www.sandwell.gov.uk/info/200202/performance_and_spending/1079/payments_over_500,01-Jul-2022,Housing & Communities,BROXAP LIMITED,Neighbourhoods,1134.00,Equipment & Furniture ,2223P04_CR00455,99472
Sandwell Metropolitan Borough Council,http://www.sandwell.gov.uk/info/200202/performance_and_spending/1079/payments_over_500,01-Jul-2022,Housing & Communities,BROXAP LIMITED,Neighbourhoods,3039.00,Equipment & Furniture ,2223P04_CR00456,99472
Sandwell Metropolitan Borough Council,http://www.sandwell.gov.uk/info/200202/performance_and_spending/1079/payments_over_500,01-Jul-2022,Housing & Communities,CBS MIDLANDS LTD,Neighbourhoods,644.70,Operational Services ,2223P04_CR00457,01020138
Sandwell Metropolitan Borough Council,http://www.sandwell.gov.uk/info/200202/performance_and_spending/1079/payments_over_500,01-Jul-2022,Housing & Communities,CERTAS ENERGY LIMITED,Neighbourhoods,17267.50,Fuel ,2223P04_CR00458,80421
Sandwell Metropolitan Borough Council,http://www.sandwell.gov.uk/info/200202/performance_and_spending/1079/payments_over_500,05-Jul-2022,Housing & Communities,CERTAS ENERGY LIMITED,Neighbourhoods,17638.91,Fuel ,2223P04_CR00459,80421
Sandwell Metropolitan Borough Council,http://www.sandwell.gov.uk/info/200202/performance_and_spending/1079/payments_over_500,08-Jul-2022,Housing & Communities,CERTAS ENERGY LIMITED,Neighbourhoods,17909.71,Fuel ,2223P04_CR00460,80421
Sandwell Metropolitan Borough Council,http://www.sandwell.gov.uk/info/200202/performance_and_spending/1079/payments_over_500,01-Jul-2022,Housing & Communities,CITIZEN,Neighbourhoods,540.00,Tenants Expenses,2223P04_CR00461,163550
Sandwell Metropolitan Borough Council,http://www.sandwell.gov.uk/info/200202/performance_and_spending/1079/payments_over_500,01-Jul-2022,Housing & Communities,CITRON HYGIENE UK LTD,Neighbourhoods,1389.45,Materials & Consumables,2223P04_CR00462,140849
Sandwell Metropolitan Borough Council,http://www.sandwell.gov.uk/info/200202/performance_and_spending/1079/payments_over_500,01-Jul-2022,Housing & Communities,CITRON HYGIENE UK LTD,Neighbourhoods,1414.45,Materials & Consumables,2223P04_CR00463,140849
Sandwell Metropolitan Borough Council,http://www.sandwell.gov.uk/info/200202/performance_and_spending/1079/payments_over_500,01-Jul-2022,Housing & Communities,CKP LTD T/A HAGLEY HOTEL,Neighbourhoods,500.00,Rents,2223P04_CR00464,143677
Sandwell Metropolitan Borough Council,http://www.sandwell.gov.uk/info/200202/performance_and_spending/1079/payments_over_500,01-Jul-2022,Housing & Communities,CKP LTD T/A HAGLEY HOTEL,Neighbourhoods,560.00,Rents,2223P04_CR00465,143677
Sandwell Metropolitan Borough Council,http://www.sandwell.gov.uk/info/200202/performance_and_spending/1079/payments_over_500,01-Jul-2022,Housing & Communities,CKP LTD T/A HAGLEY HOTEL,Neighbourhoods,630.00,Rents,2223P04_CR00466,143677
Sandwell Metropolitan Borough Council,http://www.sandwell.gov.uk/info/200202/performance_and_spending/1079/payments_over_500,01-Jul-2022,Housing & Communities,CKP LTD T/A HAGLEY HOTEL,Neighbourhoods,785.00,Rents,2223P04_CR00467,143677
Sandwell Metropolitan Borough Council,http://www.sandwell.gov.uk/info/200202/performance_and_spending/1079/payments_over_500,01-Jul-2022,Housing & Communities,CKP LTD T/A HAGLEY HOTEL,Neighbourhoods,800.00,Rents,2223P04_CR00468,143677
Sandwell Metropolitan Borough Council,http://www.sandwell.gov.uk/info/200202/performance_and_spending/1079/payments_over_500,01-Jul-2022,Housing & Communities,CKP LTD T/A HAGLEY HOTEL,Neighbourhoods,840.00,Rents,2223P04_CR00469,143677
Sandwell Metropolitan Borough Council,http://www.sandwell.gov.uk/info/200202/performance_and_spending/1079/payments_over_500,01-Jul-2022,Housing & Communities,CKP LTD T/A HAGLEY HOTEL,Neighbourhoods,945.00,Rents,2223P04_CR00470,143677
Sandwell Metropolitan Borough Council,http://www.sandwell.gov.uk/info/200202/performance_and_spending/1079/payments_over_500,01-Jul-2022,Housing & Communities,CKP LTD T/A HAGLEY HOTEL,Neighbourhoods,990.00,Rents,2223P04_CR00471,143677
Sandwell Metropolitan Borough Council,http://www.sandwell.gov.uk/info/200202/performance_and_spending/1079/payments_over_500,01-Jul-2022,Housing & Communities,CKP LTD T/A HAGLEY HOTEL,Neighbourhoods,1175.00,Rents,2223P04_CR00472,143677
Sandwell Metropolitan Borough Council,http://www.sandwell.gov.uk/info/200202/performance_and_spending/1079/payments_over_500,01-Jul-2022,Housing & Communities,CKP LTD T/A HAGLEY HOTEL,Neighbourhoods,1890.00,Rents,2223P04_CR00473,143677
Sandwell Metropolitan Borough Council,http://www.sandwell.gov.uk/info/200202/performance_and_spending/1079/payments_over_500,01-Jul-2022,Housing & Communities,CKP LTD T/A HAGLEY HOTEL,Neighbourhoods,2099.99,Rents,2223P04_CR00474,143677
Sandwell Metropolitan Borough Council,http://www.sandwell.gov.uk/info/200202/performance_and_spending/1079/payments_over_500,01-Jul-2022,Housing & Communities,CKP LTD T/A HAGLEY HOTEL,Neighbourhoods,2100.00,Rents,2223P04_CR00475,143677
Sandwell Metropolitan Borough Council,http://www.sandwell.gov.uk/info/200202/performance_and_spending/1079/payments_over_500,01-Jul-2022,Housing & Communities,CKP LTD T/A HAGLEY HOTEL,Neighbourhoods,2450.00,Rents,2223P04_CR00476,143677
Sandwell Metropolitan Borough Council,http://www.sandwell.gov.uk/info/200202/performance_and_spending/1079/payments_over_500,01-Jul-2022,Housing & Communities,CKP LTD T/A HAGLEY HOTEL,Neighbourhoods,2640.00,Rents,2223P04_CR00477,143677
Sandwell Metropolitan Borough Council,http://www.sandwell.gov.uk/info/200202/performance_and_spending/1079/payments_over_500,01-Jul-2022,Housing & Communities,CKP LTD T/A HAGLEY HOTEL,Neighbourhoods,2870.00,Rents,2223P04_CR00478,143677
Sandwell Metropolitan Borough Council,http://www.sandwell.gov.uk/info/200202/performance_and_spending/1079/payments_over_500,01-Jul-2022,Housing & Communities,CKP LTD T/A HAGLEY HOTEL,Neighbourhoods,2940.00,Rents,2223P04_CR00479,143677
Sandwell Metropolitan Borough Council,http://www.sandwell.gov.uk/info/200202/performance_and_spending/1079/payments_over_500,01-Jul-2022,Housing & Communities,CKP LTD T/A HAGLEY HOTEL,Neighbourhoods,3010.00,Rents,2223P04_CR00480,143677
Sandwell Metropolitan Borough Council,http://www.sandwell.gov.uk/info/200202/performance_and_spending/1079/payments_over_500,01-Jul-2022,Housing & Communities,CKP LTD T/A HAGLEY HOTEL,Neighbourhoods,3220.00,Rents,2223P04_CR00481,143677
Sandwell Metropolitan Borough Council,http://www.sandwell.gov.uk/info/200202/performance_and_spending/1079/payments_over_500,01-Jul-2022,Housing & Communities,CKP LTD T/A HAGLEY HOTEL,Neighbourhoods,3220.00,Rents,2223P04_CR00482,143677
Sandwell Metropolitan Borough Council,http://www.sandwell.gov.uk/info/200202/performance_and_spending/1079/payments_over_500,01-Jul-2022,Housing & Communities,CKP LTD T/A HAGLEY HOTEL,Neighbourhoods,3700.00,Rents,2223P04_CR00483,143677
Sandwell Metropolitan Borough Council,http://www.sandwell.gov.uk/info/200202/performance_and_spending/1079/payments_over_500,01-Jul-2022,Housing & Communities,CKP LTD T/A HAGLEY HOTEL,Neighbourhoods,7085.00,Rents,2223P04_CR00484,143677
Sandwell Metropolitan Borough Council,http://www.sandwell.gov.uk/info/200202/performance_and_spending/1079/payments_over_500,15-Jul-2022,Housing & Communities,COOKE RUDLING LIMITED,Assistant Chief Executive (Excl SIU),900.00,Externally Purchased Professional Services ,2223P04_CR00485,01577073
Sandwell Metropolitan Borough Council,http://www.sandwell.gov.uk/info/200202/performance_and_spending/1079/payments_over_500,15-Jul-2022,Housing & Communities,EDEN ESTATES,Neighbourhoods,721.15,Rents,2223P04_CR00486,85239
Sandwell Metropolitan Borough Council,http://www.sandwell.gov.uk/info/200202/performance_and_spending/1079/payments_over_500,01-Jul-2022,Housing & Communities,EMBLEM PRINT PRODUCTS LTD,Neighbourhoods,3487.50,"Printing, Stationery & General Office Expenses",2223P04_CR00487,01744823
Sandwell Metropolitan Borough Council,http://www.sandwell.gov.uk/info/200202/performance_and_spending/1079/payments_over_500,01-Jul-2022,Housing & Communities,ENVIRONMENT AGENCY,Neighbourhoods,1824.00,Subscriptions,2223P04_CR00488,01548028
Sandwell Metropolitan Borough Council,http://www.sandwell.gov.uk/info/200202/performance_and_spending/1079/payments_over_500,01-Jul-2022,Housing & Communities,ENVIRONMENT AGENCY,Neighbourhoods,2731.25,Subscriptions,2223P04_CR00489,01548028
Sandwell Metropolitan Borough Council,http://www.sandwell.gov.uk/info/200202/performance_and_spending/1079/payments_over_500,12-Jul-2022,Housing & Communities,ESSEX AVENUE COMMUNITY ASSOCIATION,Neighbourhoods,600.00,Tenants Expenses,2223P04_CR00490,113690
Sandwell Metropolitan Borough Council,http://www.sandwell.gov.uk/info/200202/performance_and_spending/1079/payments_over_500,01-Jul-2022,Housing & Communities,EUROPEAN'S WELFARE ASSOCIATION CIC,Housing & Communities,2530.00,Externally Purchased Professional Services ,2223P04_CR00491,123703
Sandwell Metropolitan Borough Council,http://www.sandwell.gov.uk/info/200202/performance_and_spending/1079/payments_over_500,01-Jul-2022,Housing & Communities,EUROPEAN'S WELFARE ASSOCIATION CIC,Housing & Communities,2530.00,Externally Purchased Professional Services ,2223P04_CR00492,123703
Sandwell Metropolitan Borough Council,http://www.sandwell.gov.uk/info/200202/performance_and_spending/1079/payments_over_500,05-Jul-2022,Housing & Communities,FARONICS EMEA LTD,Neighbourhoods,2133.00,ICT ,2223P04_CR00493,153117
Sandwell Metropolitan Borough Council,http://www.sandwell.gov.uk/info/200202/performance_and_spending/1079/payments_over_500,01-Jul-2022,Housing & Communities,G & B KENDALL & SONS,Neighbourhoods,675.00,Materials & Consumables,2223P04_CR00494,01422772
Sandwell Metropolitan Borough Council,http://www.sandwell.gov.uk/info/200202/performance_and_spending/1079/payments_over_500,10-Jul-2022,Housing & Communities,G & B KENDALL & SONS,Neighbourhoods,1732.50,Externally Purchased Professional Services ,2223P04_CR00495,01422772
Sandwell Metropolitan Borough Council,http://www.sandwell.gov.uk/info/200202/performance_and_spending/1079/payments_over_500,13-Jul-2022,Housing & Communities,GLASDON (UK) LIMITED,Neighbourhoods,2635.08,Civic Events,2223P04_CR00496,01013908
Sandwell Metropolitan Borough Council,http://www.sandwell.gov.uk/info/200202/performance_and_spending/1079/payments_over_500,01-Jul-2022,Housing & Communities,GLASDON (UK) LIMITED,Neighbourhoods,11844.28,Civic Events,2223P04_CR00497,01013908
Sandwell Metropolitan Borough Council,http://www.sandwell.gov.uk/info/200202/performance_and_spending/1079/payments_over_500,01-Jul-2022,Housing & Communities,GRANICUS-FIRMSTEP LTD,Housing & Communities,6000.00,Externally Purchased Professional Services ,2223P04_CR00498,122375
Sandwell Metropolitan Borough Council,http://www.sandwell.gov.uk/info/200202/performance_and_spending/1079/payments_over_500,01-Jul-2022,Housing & Communities,GRANICUS-FIRMSTEP LTD,Housing & Communities,20000.00,Externally Purchased Professional Services ,2223P04_CR00499,122375
Sandwell Metropolitan Borough Council,http://www.sandwell.gov.uk/info/200202/performance_and_spending/1079/payments_over_500,01-Jul-2022,Housing & Communities,GREENTECH LTD,Neighbourhoods,540.00,Materials & Consumables,2223P04_CR00500,163053
Sandwell Metropolitan Borough Council,http://www.sandwell.gov.uk/info/200202/performance_and_spending/1079/payments_over_500,15-Jul-2022,Housing & Communities,GREENTECH LTD,Neighbourhoods,995.00,Equipment & Furniture ,2223P04_CR00501,163053
Sandwell Metropolitan Borough Council,http://www.sandwell.gov.uk/info/200202/performance_and_spending/1079/payments_over_500,01-Jul-2022,Housing & Communities,GREENTECH LTD,Neighbourhoods,1346.14,Materials & Consumables,2223P04_CR00502,163053
Sandwell Metropolitan Borough Council,http://www.sandwell.gov.uk/info/200202/performance_and_spending/1079/payments_over_500,01-Jul-2022,Housing & Communities,GREENTECH LTD,Neighbourhoods,1379.66,Materials & Consumables,2223P04_CR00503,163053
Sandwell Metropolitan Borough Council,http://www.sandwell.gov.uk/info/200202/performance_and_spending/1079/payments_over_500,01-Jul-2022,Housing & Communities,GREENTECH LTD,Neighbourhoods,2813.00,Materials & Consumables,2223P04_CR00504,163053
Sandwell Metropolitan Borough Council,http://www.sandwell.gov.uk/info/200202/performance_and_spending/1079/payments_over_500,01-Jul-2022,Housing & Communities,GREENTECH LTD,Neighbourhoods,2813.00,Materials & Consumables,2223P04_CR00505,163053
Sandwell Metropolitan Borough Council,http://www.sandwell.gov.uk/info/200202/performance_and_spending/1079/payments_over_500,01-Jul-2022,Housing & Communities,HAYSTOUN CONSTRUCTION LTD,Neighbourhoods,5788.47,Equipment & Furniture ,2223P04_CR00506,11849
Sandwell Metropolitan Borough Council,http://www.sandwell.gov.uk/info/200202/performance_and_spending/1079/payments_over_500,01-Jul-2022,Housing & Communities,HAYSTOUN CONSTRUCTION LTD,Neighbourhoods,10313.97,Operational Services ,2223P04_CR00507,11849
Sandwell Metropolitan Borough Council,http://www.sandwell.gov.uk/info/200202/performance_and_spending/1079/payments_over_500,01-Jul-2022,Housing & Communities,HAYSTOUN CONSTRUCTION LTD,Neighbourhoods,19411.85,Equipment & Furniture ,2223P04_CR00508,11849
Sandwell Metropolitan Borough Council,http://www.sandwell.gov.uk/info/200202/performance_and_spending/1079/payments_over_500,15-Jul-2022,Housing & Communities,HAYSTOUN CONSTRUCTION LTD,Neighbourhoods,20796.00,CIP - Infrastructure,2223P04_CR00509,11849
Sandwell Metropolitan Borough Council,http://www.sandwell.gov.uk/info/200202/performance_and_spending/1079/payments_over_500,01-Jul-2022,Housing & Communities,HAYSTOUN CONSTRUCTION LTD,Neighbourhoods,21364.72,Equipment & Furniture ,2223P04_CR00510,11849
Sandwell Metropolitan Borough Council,http://www.sandwell.gov.uk/info/200202/performance_and_spending/1079/payments_over_500,01-Jul-2022,Housing & Communities,"HIGHFIELD HOUSE HOTEL,",Neighbourhoods,1040.00,Rents,2223P04_CR00511,162756
Sandwell Metropolitan Borough Council,http://www.sandwell.gov.uk/info/200202/performance_and_spending/1079/payments_over_500,01-Jul-2022,Housing & Communities,HIRE STATION LIMITED T/A BRANDON HIRE STATION,Neighbourhoods,1080.00,Equipment & Furniture ,2223P04_CR00512,138598
Sandwell Metropolitan Borough Council,http://www.sandwell.gov.uk/info/200202/performance_and_spending/1079/payments_over_500,01-Jul-2022,Housing & Communities,HOBGOBLIN THEATRE COMPANY LTD,Neighbourhoods,810.00,Civic Events,2223P04_CR00513,127672
Sandwell Metropolitan Borough Council,http://www.sandwell.gov.uk/info/200202/performance_and_spending/1079/payments_over_500,01-Jul-2022,Housing & Communities,HOME FARM NURSERIES (PINVIN) LIMITED,Neighbourhoods,3968.90,Equipment & Furniture ,2223P04_CR00514,77003445
Sandwell Metropolitan Borough Council,http://www.sandwell.gov.uk/info/200202/performance_and_spending/1079/payments_over_500,01-Jul-2022,Housing & Communities,HOME FARM NURSERIES (PINVIN) LIMITED,Neighbourhoods,6213.58,Equipment & Furniture ,2223P04_CR00515,77003445
Sandwell Metropolitan Borough Council,http://www.sandwell.gov.uk/info/200202/performance_and_spending/1079/payments_over_500,01-Jul-2022,Housing & Communities,HOME FARM NURSERIES (PINVIN) LIMITED,Neighbourhoods,7597.00,Equipment & Furniture ,2223P04_CR00516,77003445
Sandwell Metropolitan Borough Council,http://www.sandwell.gov.uk/info/200202/performance_and_spending/1079/payments_over_500,01-Jul-2022,Housing & Communities,HOME FARM NURSERIES (PINVIN) LIMITED,Neighbourhoods,15268.00,Equipment & Furniture ,2223P04_CR00517,77003445
Sandwell Metropolitan Borough Council,http://www.sandwell.gov.uk/info/200202/performance_and_spending/1079/payments_over_500,21-Jul-2022,Housing & Communities,ILOVE HOME LETTINGS LTD,Neighbourhoods,644.23,Rents,2223P04_CR00518,163822
Sandwell Metropolitan Borough Council,http://www.sandwell.gov.uk/info/200202/performance_and_spending/1079/payments_over_500,01-Jul-2022,Housing & Communities,IMMEDIATE CARE MEDICAL SERVICES LIMITED,Neighbourhoods,4840.00,Equipment & Furniture ,2223P04_CR00519,127453
Sandwell Metropolitan Borough Council,http://www.sandwell.gov.uk/info/200202/performance_and_spending/1079/payments_over_500,06-Jul-2022,Housing & Communities,INFAMOUS COMMUNITY ARTS,Neighbourhoods,7860.00,Externally Purchased Professional Services ,2223P04_CR00520,102940
Sandwell Metropolitan Borough Council,http://www.sandwell.gov.uk/info/200202/performance_and_spending/1079/payments_over_500,01-Jul-2022,Housing & Communities,INFORM COMMUNICATIONS PLC,Neighbourhoods,30000.00,ICT ,2223P04_CR00521,98508
Sandwell Metropolitan Borough Council,http://www.sandwell.gov.uk/info/200202/performance_and_spending/1079/payments_over_500,12-Jul-2022,Housing & Communities,INVICTA BUSINESS MACHINES LTD,Neighbourhoods,1170.00,ICT ,2223P04_CR00522,142027
Sandwell Metropolitan Borough Council,http://www.sandwell.gov.uk/info/200202/performance_and_spending/1079/payments_over_500,01-Jul-2022,Housing & Communities,JAY SECURITY AND EVENTS LIMITED,Neighbourhoods,2387.00,Security,2223P04_CR00523,162111
Sandwell Metropolitan Borough Council,http://www.sandwell.gov.uk/info/200202/performance_and_spending/1079/payments_over_500,01-Jul-2022,Housing & Communities,JAY SECURITY AND EVENTS LIMITED,Neighbourhoods,3075.00,Security,2223P04_CR00524,162111
Sandwell Metropolitan Borough Council,http://www.sandwell.gov.uk/info/200202/performance_and_spending/1079/payments_over_500,01-Jul-2022,Housing & Communities,JAY SECURITY AND EVENTS LIMITED,Neighbourhoods,4509.50,Security,2223P04_CR00525,162111
Sandwell Metropolitan Borough Council,http://www.sandwell.gov.uk/info/200202/performance_and_spending/1079/payments_over_500,01-Jul-2022,Housing & Communities,JAY SECURITY AND EVENTS LIMITED,Neighbourhoods,4912.00,Security,2223P04_CR00526,162111
Sandwell Metropolitan Borough Council,http://www.sandwell.gov.uk/info/200202/performance_and_spending/1079/payments_over_500,01-Jul-2022,Housing & Communities,JPCS LTD,Housing & Communities,24433.67,Operational Services ,2223P04_CR00527,01780454
Sandwell Metropolitan Borough Council,http://www.sandwell.gov.uk/info/200202/performance_and_spending/1079/payments_over_500,01-Jul-2022,Housing & Communities,JULIAN PROPERTIES (MIDLANDS) LTD,Neighbourhoods,500.00,Rents,2223P04_CR00528,109909
Sandwell Metropolitan Borough Council,http://www.sandwell.gov.uk/info/200202/performance_and_spending/1079/payments_over_500,01-Jul-2022,Housing & Communities,JULIAN PROPERTIES (MIDLANDS) LTD,Neighbourhoods,500.00,Rents,2223P04_CR00529,109909
Sandwell Metropolitan Borough Council,http://www.sandwell.gov.uk/info/200202/performance_and_spending/1079/payments_over_500,01-Jul-2022,Housing & Communities,KENYON INTERNATIONAL EMERGENCY SERVICES LIMITED,Neighbourhoods,2296.00,Bereavement Expenses,2223P04_CR00530,77302
Sandwell Metropolitan Borough Council,http://www.sandwell.gov.uk/info/200202/performance_and_spending/1079/payments_over_500,06-Jul-2022,Housing & Communities,KEYCRAFT,Neighbourhoods,693.54,Materials & Consumables,2223P04_CR00531,01064066
Sandwell Metropolitan Borough Council,http://www.sandwell.gov.uk/info/200202/performance_and_spending/1079/payments_over_500,06-Jul-2022,Housing & Communities,KRUNCH UK,Neighbourhoods,3063.31,Grant Payments,2223P04_CR00532,08588452
Sandwell Metropolitan Borough Council,http://www.sandwell.gov.uk/info/200202/performance_and_spending/1079/payments_over_500,01-Jul-2022,Housing & Communities,LNP SOUND LTD,Neighbourhoods,1345.00,Civic Events,2223P04_CR00533,41089
Sandwell Metropolitan Borough Council,http://www.sandwell.gov.uk/info/200202/performance_and_spending/1079/payments_over_500,01-Jul-2022,Housing & Communities,MACINTOSH FOODSERVICE SOLUTIONS LTD,Neighbourhoods,2175.00,Externally Purchased Professional Services ,2223P04_CR00534,162369
Sandwell Metropolitan Borough Council,http://www.sandwell.gov.uk/info/200202/performance_and_spending/1079/payments_over_500,10-Jul-2022,Housing & Communities,MACINTOSH FOODSERVICE SOLUTIONS LTD,Neighbourhoods,7600.00,Externally Purchased Professional Services ,2223P04_CR00535,162369
Sandwell Metropolitan Borough Council,http://www.sandwell.gov.uk/info/200202/performance_and_spending/1079/payments_over_500,01-Jul-2022,Housing & Communities,MANOR ABBEY FOODS LTD,Neighbourhoods,515.63,Catering Provisions,2223P04_CR00536,63063
Sandwell Metropolitan Borough Council,http://www.sandwell.gov.uk/info/200202/performance_and_spending/1079/payments_over_500,01-Jul-2022,Housing & Communities,MIDLAND FORESTRY LIMITED,Neighbourhoods,536.00,Externally Purchased Professional Services ,2223P04_CR00537,45812
Sandwell Metropolitan Borough Council,http://www.sandwell.gov.uk/info/200202/performance_and_spending/1079/payments_over_500,01-Jul-2022,Housing & Communities,MIDLAND FORESTRY LIMITED,Neighbourhoods,536.00,Externally Purchased Professional Services ,2223P04_CR00538,45812
Sandwell Metropolitan Borough Council,http://www.sandwell.gov.uk/info/200202/performance_and_spending/1079/payments_over_500,01-Jul-2022,Housing & Communities,MIDLAND FORESTRY LIMITED,Neighbourhoods,540.00,Externally Purchased Professional Services ,2223P04_CR00539,45812
Sandwell Metropolitan Borough Council,http://www.sandwell.gov.uk/info/200202/performance_and_spending/1079/payments_over_500,01-Jul-2022,Housing & Communities,MIDLAND FORESTRY LIMITED,Neighbourhoods,566.00,Externally Purchased Professional Services ,2223P04_CR00540,45812
Sandwell Metropolitan Borough Council,http://www.sandwell.gov.uk/info/200202/performance_and_spending/1079/payments_over_500,01-Jul-2022,Housing & Communities,MIDLAND FORESTRY LIMITED,Neighbourhoods,596.00,Externally Purchased Professional Services ,2223P04_CR00541,45812
Sandwell Metropolitan Borough Council,http://www.sandwell.gov.uk/info/200202/performance_and_spending/1079/payments_over_500,01-Jul-2022,Housing & Communities,MIDLAND FORESTRY LIMITED,Neighbourhoods,612.00,Externally Purchased Professional Services ,2223P04_CR00542,45812
Sandwell Metropolitan Borough Council,http://www.sandwell.gov.uk/info/200202/performance_and_spending/1079/payments_over_500,01-Jul-2022,Housing & Communities,MIDLAND FORESTRY LIMITED,Neighbourhoods,676.00,Externally Purchased Professional Services ,2223P04_CR00543,45812
Sandwell Metropolitan Borough Council,http://www.sandwell.gov.uk/info/200202/performance_and_spending/1079/payments_over_500,01-Jul-2022,Housing & Communities,MIDLAND FORESTRY LIMITED,Neighbourhoods,714.00,Externally Purchased Professional Services ,2223P04_CR00544,45812
Sandwell Metropolitan Borough Council,http://www.sandwell.gov.uk/info/200202/performance_and_spending/1079/payments_over_500,01-Jul-2022,Housing & Communities,MIDLAND FORESTRY LIMITED,Neighbourhoods,782.00,Externally Purchased Professional Services ,2223P04_CR00545,45812
Sandwell Metropolitan Borough Council,http://www.sandwell.gov.uk/info/200202/performance_and_spending/1079/payments_over_500,01-Jul-2022,Housing & Communities,MIDLAND FORESTRY LIMITED,Neighbourhoods,792.00,Externally Purchased Professional Services ,2223P04_CR00546,45812
Sandwell Metropolitan Borough Council,http://www.sandwell.gov.uk/info/200202/performance_and_spending/1079/payments_over_500,01-Jul-2022,Housing & Communities,MIDLAND FORESTRY LIMITED,Neighbourhoods,1003.00,Externally Purchased Professional Services ,2223P04_CR00547,45812
Sandwell Metropolitan Borough Council,http://www.sandwell.gov.uk/info/200202/performance_and_spending/1079/payments_over_500,01-Jul-2022,Housing & Communities,MIDLAND FORESTRY LIMITED,Neighbourhoods,1147.00,Externally Purchased Professional Services ,2223P04_CR00548,45812
Sandwell Metropolitan Borough Council,http://www.sandwell.gov.uk/info/200202/performance_and_spending/1079/payments_over_500,01-Jul-2022,Housing & Communities,MIDLAND FORESTRY LIMITED,Neighbourhoods,1240.00,Externally Purchased Professional Services ,2223P04_CR00549,45812
Sandwell Metropolitan Borough Council,http://www.sandwell.gov.uk/info/200202/performance_and_spending/1079/payments_over_500,01-Jul-2022,Housing & Communities,MIDLAND FORESTRY LIMITED,Neighbourhoods,1480.00,Externally Purchased Professional Services ,2223P04_CR00550,45812
Sandwell Metropolitan Borough Council,http://www.sandwell.gov.uk/info/200202/performance_and_spending/1079/payments_over_500,01-Jul-2022,Housing & Communities,MIDLAND FORESTRY LIMITED,Neighbourhoods,1547.00,Externally Purchased Professional Services ,2223P04_CR00551,45812
Sandwell Metropolitan Borough Council,http://www.sandwell.gov.uk/info/200202/performance_and_spending/1079/payments_over_500,01-Jul-2022,Housing & Communities,MIDLAND FORESTRY LIMITED,Neighbourhoods,1794.00,Externally Purchased Professional Services ,2223P04_CR00552,45812
Sandwell Metropolitan Borough Council,http://www.sandwell.gov.uk/info/200202/performance_and_spending/1079/payments_over_500,01-Jul-2022,Housing & Communities,MIDLAND FORESTRY LIMITED,Neighbourhoods,1956.00,Externally Purchased Professional Services ,2223P04_CR00553,45812
Sandwell Metropolitan Borough Council,http://www.sandwell.gov.uk/info/200202/performance_and_spending/1079/payments_over_500,01-Jul-2022,Housing & Communities,MIDLAND FORESTRY LIMITED,Neighbourhoods,2112.00,Externally Purchased Professional Services ,2223P04_CR00554,45812
Sandwell Metropolitan Borough Council,http://www.sandwell.gov.uk/info/200202/performance_and_spending/1079/payments_over_500,01-Jul-2022,Housing & Communities,MIDLAND FORESTRY LIMITED,Neighbourhoods,2160.00,Externally Purchased Professional Services ,2223P04_CR00555,45812
Sandwell Metropolitan Borough Council,http://www.sandwell.gov.uk/info/200202/performance_and_spending/1079/payments_over_500,01-Jul-2022,Housing & Communities,MIDLAND FORESTRY LIMITED,Neighbourhoods,2924.00,Externally Purchased Professional Services ,2223P04_CR00556,45812
Sandwell Metropolitan Borough Council,http://www.sandwell.gov.uk/info/200202/performance_and_spending/1079/payments_over_500,01-Jul-2022,Housing & Communities,MIDLAND FORESTRY LIMITED,Neighbourhoods,3870.00,Externally Purchased Professional Services ,2223P04_CR00557,45812
Sandwell Metropolitan Borough Council,http://www.sandwell.gov.uk/info/200202/performance_and_spending/1079/payments_over_500,01-Jul-2022,Housing & Communities,MIDLAND FORESTRY LIMITED,Neighbourhoods,9640.00,Externally Purchased Professional Services ,2223P04_CR00558,45812
Sandwell Metropolitan Borough Council,http://www.sandwell.gov.uk/info/200202/performance_and_spending/1079/payments_over_500,01-Jul-2022,Housing & Communities,MORE TALK MORE ACTION UK CIC,Neighbourhoods,5750.00,Grant Payments,2223P04_CR00559,162432
Sandwell Metropolitan Borough Council,http://www.sandwell.gov.uk/info/200202/performance_and_spending/1079/payments_over_500,01-Jul-2022,Housing & Communities,MORELOCK SIGNS LTD,Housing & Communities,937.67,Operational Services ,2223P04_CR00560,01532005
Sandwell Metropolitan Borough Council,http://www.sandwell.gov.uk/info/200202/performance_and_spending/1079/payments_over_500,01-Jul-2022,Housing & Communities,MORELOCK SIGNS LTD,Neighbourhoods,3557.40,Operational Services ,2223P04_CR00561,01532005
Sandwell Metropolitan Borough Council,http://www.sandwell.gov.uk/info/200202/performance_and_spending/1079/payments_over_500,01-Jul-2022,Housing & Communities,NOMIX ENVIRO LTD,Neighbourhoods,660.00,Materials & Consumables,2223P04_CR00562,37313
Sandwell Metropolitan Borough Council,http://www.sandwell.gov.uk/info/200202/performance_and_spending/1079/payments_over_500,01-Jul-2022,Housing & Communities,NOMIX ENVIRO LTD,Neighbourhoods,5007.20,Materials & Consumables,2223P04_CR00563,37313
Sandwell Metropolitan Borough Council,http://www.sandwell.gov.uk/info/200202/performance_and_spending/1079/payments_over_500,01-Jul-2022,Housing & Communities,OCEAN MEDIA GROUP LTD,Neighbourhoods,540.00,Conference Expenses,2223P04_CR00564,01480469
Sandwell Metropolitan Borough Council,http://www.sandwell.gov.uk/info/200202/performance_and_spending/1079/payments_over_500,01-Jul-2022,Housing & Communities,OVERDRIVE GLOBAL LTD,Neighbourhoods,3384.93,Materials & Consumables,2223P04_CR00565,153017
Sandwell Metropolitan Borough Council,http://www.sandwell.gov.uk/info/200202/performance_and_spending/1079/payments_over_500,01-Jul-2022,Housing & Communities,OVERDRIVE GLOBAL LTD,Neighbourhoods,7964.55,Materials & Consumables,2223P04_CR00566,153017
Sandwell Metropolitan Borough Council,http://www.sandwell.gov.uk/info/200202/performance_and_spending/1079/payments_over_500,01-Jul-2022,Housing & Communities,P CASEY LTD,Housing & Communities,32908.10,"CIP - New Construction,Conversion, Enhancement & Reno",2223P04_CR00567,149276
Sandwell Metropolitan Borough Council,http://www.sandwell.gov.uk/info/200202/performance_and_spending/1079/payments_over_500,01-Jul-2022,Housing & Communities,PARIS CARPETS FLOORING LTD,Neighbourhoods,767.00,Building Maintenance & Improvements,2223P04_CR00568,163265
Sandwell Metropolitan Borough Council,http://www.sandwell.gov.uk/info/200202/performance_and_spending/1079/payments_over_500,01-Jul-2022,Housing & Communities,PENNON WATER SERVICES T/A SOURCE FOR BUSINESS,Neighbourhoods,832.94,Water Services,2223P04_CR00569,131726
Sandwell Metropolitan Borough Council,http://www.sandwell.gov.uk/info/200202/performance_and_spending/1079/payments_over_500,01-Jul-2022,Housing & Communities,PENNON WATER SERVICES T/A SOURCE FOR BUSINESS,Neighbourhoods,1535.72,Water Services,2223P04_CR00570,131726
Sandwell Metropolitan Borough Council,http://www.sandwell.gov.uk/info/200202/performance_and_spending/1079/payments_over_500,01-Jul-2022,Housing & Communities,PENNON WATER SERVICES T/A SOURCE FOR BUSINESS,Neighbourhoods,1829.79,Water Services,2223P04_CR00571,131726
Sandwell Metropolitan Borough Council,http://www.sandwell.gov.uk/info/200202/performance_and_spending/1079/payments_over_500,01-Jul-2022,Housing & Communities,POLICE & CRIME COMMISIONER FOR WEST MIDLANDS,Neighbourhoods,3832.49,Externally Purchased Professional Services ,2223P04_CR00572,125707
Sandwell Metropolitan Borough Council,http://www.sandwell.gov.uk/info/200202/performance_and_spending/1079/payments_over_500,01-Jul-2022,Housing & Communities,PRINT DIRECT LIMITED,Neighbourhoods,546.98,"Printing, Stationery & General Office Expenses",2223P04_CR00573,118575
Sandwell Metropolitan Borough Council,http://www.sandwell.gov.uk/info/200202/performance_and_spending/1079/payments_over_500,14-Jul-2022,Housing & Communities,PRINT DIRECT LIMITED,Neighbourhoods,547.00,"Printing, Stationery & General Office Expenses",2223P04_CR00574,118575
Sandwell Metropolitan Borough Council,http://www.sandwell.gov.uk/info/200202/performance_and_spending/1079/payments_over_500,01-Jul-2022,Housing & Communities,PROFILE SECURITY SERVICES LTD,Neighbourhoods,658.63,Security,2223P04_CR00575,131253
Sandwell Metropolitan Borough Council,http://www.sandwell.gov.uk/info/200202/performance_and_spending/1079/payments_over_500,01-Jul-2022,Housing & Communities,PROFILE SECURITY SERVICES LTD,Neighbourhoods,2520.00,Security,2223P04_CR00576,131253
Sandwell Metropolitan Borough Council,http://www.sandwell.gov.uk/info/200202/performance_and_spending/1079/payments_over_500,01-Jul-2022,Housing & Communities,PROFILE SECURITY SERVICES LTD,Neighbourhoods,8222.74,Security,2223P04_CR00577,131253
Sandwell Metropolitan Borough Council,http://www.sandwell.gov.uk/info/200202/performance_and_spending/1079/payments_over_500,01-Jul-2022,Housing & Communities,PROFILE SECURITY SERVICES LTD,Neighbourhoods,9667.46,Security,2223P04_CR00578,131253
Sandwell Metropolitan Borough Council,http://www.sandwell.gov.uk/info/200202/performance_and_spending/1079/payments_over_500,15-Jul-2022,Housing & Communities,RAYMOND SUPPLIES LTD,Neighbourhoods,858.67,Materials & Consumables,2223P04_CR00579,128891
Sandwell Metropolitan Borough Council,http://www.sandwell.gov.uk/info/200202/performance_and_spending/1079/payments_over_500,01-Jul-2022,Housing & Communities,RED MOON CONCEPTS LTD,Neighbourhoods,816.47,Catering Equipment,2223P04_CR00580,162312
Sandwell Metropolitan Borough Council,http://www.sandwell.gov.uk/info/200202/performance_and_spending/1079/payments_over_500,15-Jul-2022,Housing & Communities,REMARKABLE MEDIA GROUP LTD,Neighbourhoods,6000.00,Civic Events,2223P04_CR00581,147283
Sandwell Metropolitan Borough Council,http://www.sandwell.gov.uk/info/200202/performance_and_spending/1079/payments_over_500,01-Jul-2022,Housing & Communities,REMARKABLE MEDIA GROUP LTD,Neighbourhoods,22103.07,Civic Events,2223P04_CR00582,147283
Sandwell Metropolitan Borough Council,http://www.sandwell.gov.uk/info/200202/performance_and_spending/1079/payments_over_500,01-Jul-2022,Housing & Communities,REMARKABLE MEDIA GROUP LTD,Neighbourhoods,32890.00,Civic Events,2223P04_CR00583,147283
Sandwell Metropolitan Borough Council,http://www.sandwell.gov.uk/info/200202/performance_and_spending/1079/payments_over_500,01-Jul-2022,Housing & Communities,RENAISSANCE CREATIVE DESIGN & PRINT LTD,Neighbourhoods,630.00,"Printing, Stationery & General Office Expenses",2223P04_CR00584,97376
Sandwell Metropolitan Borough Council,http://www.sandwell.gov.uk/info/200202/performance_and_spending/1079/payments_over_500,01-Jul-2022,Housing & Communities,RENAISSANCE CREATIVE DESIGN & PRINT LTD,Neighbourhoods,810.00,"Printing, Stationery & General Office Expenses",2223P04_CR00585,97376
Sandwell Metropolitan Borough Council,http://www.sandwell.gov.uk/info/200202/performance_and_spending/1079/payments_over_500,01-Jul-2022,Housing & Communities,RENAISSANCE CREATIVE DESIGN & PRINT LTD,Neighbourhoods,1050.00,"Printing, Stationery & General Office Expenses",2223P04_CR00586,97376
Sandwell Metropolitan Borough Council,http://www.sandwell.gov.uk/info/200202/performance_and_spending/1079/payments_over_500,01-Jul-2022,Housing & Communities,RENAISSANCE CREATIVE DESIGN & PRINT LTD,Neighbourhoods,2775.00,"Printing, Stationery & General Office Expenses",2223P04_CR00587,97376
Sandwell Metropolitan Borough Council,http://www.sandwell.gov.uk/info/200202/performance_and_spending/1079/payments_over_500,01-Jul-2022,Housing & Communities,REWIND UK EDUCATION AND INTERVENTIONS LTD,Neighbourhoods,1800.00,Grant Payments,2223P04_CR00588,110507
Sandwell Metropolitan Borough Council,http://www.sandwell.gov.uk/info/200202/performance_and_spending/1079/payments_over_500,01-Jul-2022,Housing & Communities,RIDDELL TPS LIMITED,Neighbourhoods,1244.57,Rents,2223P04_CR00589,132427
Sandwell Metropolitan Borough Council,http://www.sandwell.gov.uk/info/200202/performance_and_spending/1079/payments_over_500,08-Jul-2022,Housing & Communities,RTC MEDICAL SOLUTIONS LTD,Neighbourhoods,1630.00,Equipment & Furniture ,2223P04_CR00590,163261
Sandwell Metropolitan Borough Council,http://www.sandwell.gov.uk/info/200202/performance_and_spending/1079/payments_over_500,01-Jul-2022,Housing & Communities,SANDWELL LIFT PROJECT COMPANY (NO 3) LIMITED,Neighbourhoods,4910.87,Water Services,2223P04_CR00591,113986
Sandwell Metropolitan Borough Council,http://www.sandwell.gov.uk/info/200202/performance_and_spending/1079/payments_over_500,01-Jul-2022,Housing & Communities,SERCO LIMITED,Neighbourhoods,773.33,Waste Disposal Charges,2223P04_CR00592,53771
Sandwell Metropolitan Borough Council,http://www.sandwell.gov.uk/info/200202/performance_and_spending/1079/payments_over_500,01-Jul-2022,Housing & Communities,SERCO LIMITED,Neighbourhoods,1662703.27,Waste Disposal Charges,2223P04_CR00593,53771
Sandwell Metropolitan Borough Council,http://www.sandwell.gov.uk/info/200202/performance_and_spending/1079/payments_over_500,01-Jul-2022,Housing & Communities,SPLINTER STUDIOS,Neighbourhoods,1000.00,Civic Events,2223P04_CR00594,141799
Sandwell Metropolitan Borough Council,http://www.sandwell.gov.uk/info/200202/performance_and_spending/1079/payments_over_500,01-Jul-2022,Housing & Communities,ST BASILS,Neighbourhoods,9483.75,Externally Purchased Professional Services ,2223P04_CR00595,33497
Sandwell Metropolitan Borough Council,http://www.sandwell.gov.uk/info/200202/performance_and_spending/1079/payments_over_500,01-Jul-2022,Housing & Communities,ST BASILS,Neighbourhoods,9483.75,Externally Purchased Professional Services ,2223P04_CR00596,33497
Sandwell Metropolitan Borough Council,http://www.sandwell.gov.uk/info/200202/performance_and_spending/1079/payments_over_500,01-Jul-2022,Housing & Communities,ST BASILS,Neighbourhoods,9483.75,Externally Purchased Professional Services ,2223P04_CR00597,33497
Sandwell Metropolitan Borough Council,http://www.sandwell.gov.uk/info/200202/performance_and_spending/1079/payments_over_500,01-Jul-2022,Housing & Communities,STOURBRIDGE PAVING COMPANY LIMITED,Housing & Communities,12692.87,CIP - Infrastructure,2223P04_CR00598,77003641
Sandwell Metropolitan Borough Council,http://www.sandwell.gov.uk/info/200202/performance_and_spending/1079/payments_over_500,01-Jul-2022,Housing & Communities,SUEZ RECYLING AND RECOVERY HOLDINGS UK LTD,Neighbourhoods,1674.27,Waste Disposal Charges,2223P04_CR00599,129939
Sandwell Metropolitan Borough Council,http://www.sandwell.gov.uk/info/200202/performance_and_spending/1079/payments_over_500,01-Jul-2022,Housing & Communities,SUNBELT RENTALS LTD,Neighbourhoods,2247.00,Equipment & Furniture ,2223P04_CR00600,01508935
Sandwell Metropolitan Borough Council,http://www.sandwell.gov.uk/info/200202/performance_and_spending/1079/payments_over_500,01-Jul-2022,Housing & Communities,TELENT TECHNOLOGY SERVICES LIMITED,Housing & Communities,18976.71,CIP - Infrastructure,2223P04_CR00601,26331
Sandwell Metropolitan Borough Council,http://www.sandwell.gov.uk/info/200202/performance_and_spending/1079/payments_over_500,13-Jul-2022,Housing & Communities,TELETRAC NAVMAN (UK) LTD,Neighbourhoods,665.00,External Contract Hire,2223P04_CR00602,129341
Sandwell Metropolitan Borough Council,http://www.sandwell.gov.uk/info/200202/performance_and_spending/1079/payments_over_500,05-Jul-2022,Housing & Communities,TENNALS PEST CONTROL LTD,Neighbourhoods,950.00,Building Maintenance & Improvements,2223P04_CR00603,138145
Sandwell Metropolitan Borough Council,http://www.sandwell.gov.uk/info/200202/performance_and_spending/1079/payments_over_500,19-Jul-2022,Housing & Communities,TOTALENERGIES GAS & POWER LTD,Neighbourhoods,614.60,Gas,2223P04_CR00604,107605
Sandwell Metropolitan Borough Council,http://www.sandwell.gov.uk/info/200202/performance_and_spending/1079/payments_over_500,15-Jul-2022,Housing & Communities,TOTALENERGIES GAS & POWER LTD,Neighbourhoods,1189.64,Electricity,2223P04_CR00605,107605
Sandwell Metropolitan Borough Council,http://www.sandwell.gov.uk/info/200202/performance_and_spending/1079/payments_over_500,01-Jul-2022,Housing & Communities,TOTALENERGIES GAS & POWER LTD,Housing & Communities,12007.77,"CIP - New Construction,Conversion, Enhancement & Reno",2223P04_CR00606,107605
Sandwell Metropolitan Borough Council,http://www.sandwell.gov.uk/info/200202/performance_and_spending/1079/payments_over_500,06-Jul-2022,Housing & Communities,TOTALENERGIES GAS & POWER LTD,Housing & Communities,16755.99,"CIP - New Construction,Conversion, Enhancement & Reno",2223P04_CR00607,107605
Sandwell Metropolitan Borough Council,http://www.sandwell.gov.uk/info/200202/performance_and_spending/1079/payments_over_500,06-Jul-2022,Housing & Communities,TOTALENERGIES GAS & POWER LTD,Housing & Communities,19527.85,"CIP - New Construction,Conversion, Enhancement & Reno",2223P04_CR00608,107605
Sandwell Metropolitan Borough Council,http://www.sandwell.gov.uk/info/200202/performance_and_spending/1079/payments_over_500,01-Jul-2022,Housing & Communities,TOYS DIRECT,Neighbourhoods,5000.00,Equipment & Furniture ,2223P04_CR00609,163332
Sandwell Metropolitan Borough Council,http://www.sandwell.gov.uk/info/200202/performance_and_spending/1079/payments_over_500,15-Jul-2022,Housing & Communities,TRAFFIX LTD,Neighbourhoods,769.00,Operational Services ,2223P04_CR00610,54259
Sandwell Metropolitan Borough Council,http://www.sandwell.gov.uk/info/200202/performance_and_spending/1079/payments_over_500,05-Jul-2022,Housing & Communities,TRISCAN SYSTEMS LIMITED,Neighbourhoods,1005.00,ICT ,2223P04_CR00611,01437851
Sandwell Metropolitan Borough Council,http://www.sandwell.gov.uk/info/200202/performance_and_spending/1079/payments_over_500,01-Jul-2022,Housing & Communities,TUDOR ENVIRONMENTAL,Neighbourhoods,795.00,Protective Clothing & Uniforms,2223P04_CR00612,01528713
Sandwell Metropolitan Borough Council,http://www.sandwell.gov.uk/info/200202/performance_and_spending/1079/payments_over_500,01-Jul-2022,Housing & Communities,VENDAID LTD,Neighbourhoods,611.50,Catering Provisions,2223P04_CR00613,01045695
Sandwell Metropolitan Borough Council,http://www.sandwell.gov.uk/info/200202/performance_and_spending/1079/payments_over_500,05-Jul-2022,Housing & Communities,WATER PLUS SELECT LIMITED,Neighbourhoods,500.13,Water Services,2223P04_CR00614,129644
Sandwell Metropolitan Borough Council,http://www.sandwell.gov.uk/info/200202/performance_and_spending/1079/payments_over_500,01-Jul-2022,Housing & Communities,WATER PLUS SELECT LIMITED,Neighbourhoods,519.58,Water Services,2223P04_CR00615,129644
Sandwell Metropolitan Borough Council,http://www.sandwell.gov.uk/info/200202/performance_and_spending/1079/payments_over_500,05-Jul-2022,Housing & Communities,WATER PLUS SELECT LIMITED,Neighbourhoods,741.49,Water Services,2223P04_CR00616,129644
Sandwell Metropolitan Borough Council,http://www.sandwell.gov.uk/info/200202/performance_and_spending/1079/payments_over_500,01-Jul-2022,Housing & Communities,WATER PLUS SELECT LIMITED,Neighbourhoods,936.58,Water Services,2223P04_CR00617,129644
Sandwell Metropolitan Borough Council,http://www.sandwell.gov.uk/info/200202/performance_and_spending/1079/payments_over_500,05-Jul-2022,Housing & Communities,WATER PLUS SELECT LIMITED,Neighbourhoods,2068.52,Water Services,2223P04_CR00618,129644
Sandwell Metropolitan Borough Council,http://www.sandwell.gov.uk/info/200202/performance_and_spending/1079/payments_over_500,01-Jul-2022,Housing & Communities,WATES CONSTRUCTION LTD                                 01,Housing & Communities,153207.86,"CIP - New Construction,Conversion, Enhancement & Reno",2223P04_CR00619,77000882
Sandwell Metropolitan Borough Council,http://www.sandwell.gov.uk/info/200202/performance_and_spending/1079/payments_over_500,01-Jul-2022,Housing & Communities,WATES CONSTRUCTION LTD                                 01,Housing & Communities,200646.13,"CIP - New Construction,Conversion, Enhancement & Reno",2223P04_CR00620,77000882
Sandwell Metropolitan Borough Council,http://www.sandwell.gov.uk/info/200202/performance_and_spending/1079/payments_over_500,06-Jul-2022,Housing & Communities,WEST MIDLANDS MARQUEES,Neighbourhoods,2000.00,Equipment & Furniture ,2223P04_CR00621,134805
Sandwell Metropolitan Borough Council,http://www.sandwell.gov.uk/info/200202/performance_and_spending/1079/payments_over_500,04-Jul-2022,Housing & Communities,WS PROJECTS,Neighbourhoods,4071.30,Tenants Expenses,2223P04_CR00622,162998
Sandwell Metropolitan Borough Council,http://www.sandwell.gov.uk/info/200202/performance_and_spending/1079/payments_over_500,01-Jul-2022,Housing & Communities,WYNNSTAY (AGRICULTURAL SUPPLIES) LIMITED,Neighbourhoods,1218.04,Operational Services ,2223P04_CR00623,121165
Sandwell Metropolitan Borough Council,http://www.sandwell.gov.uk/info/200202/performance_and_spending/1079/payments_over_500,01-Jul-2022,Housing & Communities,WYNNSTAY (AGRICULTURAL SUPPLIES) LIMITED,Neighbourhoods,1221.90,Materials & Consumables,2223P04_CR00624,121165
Sandwell Metropolitan Borough Council,http://www.sandwell.gov.uk/info/200202/performance_and_spending/1079/payments_over_500,06-Jul-2022,Housing & Communities,XEROX FINANCE LTD,Neighbourhoods,2402.82,Equipment & Furniture ,2223P04_CR00625,2269
Sandwell Metropolitan Borough Council,http://www.sandwell.gov.uk/info/200202/performance_and_spending/1079/payments_over_500,06-Jul-2022,Housing & Communities,REDACTED PERSONAL DATA T/A IAN LIVIE AND HIS WORLD WIDE DISCO,Neighbourhoods,2606.00,Civic Events,2223P04_CR00626,REDACTED PERSONAL DATA
Sandwell Metropolitan Borough Council,http://www.sandwell.gov.uk/info/200202/performance_and_spending/1079/payments_over_500,06-Jul-2022,Housing & Communities,KEEP BRITAIN TIDY,Neighbourhoods,675.00,Operational Services ,2223P04_CR00627,88061
Sandwell Metropolitan Borough Council,http://www.sandwell.gov.uk/info/200202/performance_and_spending/1079/payments_over_500,01-Jul-2022,Housing & Communities,WARDELL ARMSTRONG,Neighbourhoods,2360.00,Consultancy,2223P04_CR00628,10331
Sandwell Metropolitan Borough Council,http://www.sandwell.gov.uk/info/200202/performance_and_spending/1079/payments_over_500,01-Jul-2022,Housing & Communities,NAOMI CAMPBELL,Neighbourhoods,1050.00,Civic Events,2223P04_CR00629,126582
Sandwell Metropolitan Borough Council,http://www.sandwell.gov.uk/info/200202/performance_and_spending/1079/payments_over_500,01-Jul-2022,Housing & Communities,JAMES MERRIS,Neighbourhoods,500.00,Civic Events,2223P04_CR00630,163430
Sandwell Metropolitan Borough Council,http://www.sandwell.gov.uk/info/200202/performance_and_spending/1079/payments_over_500,01-Jul-2022,Housing & Communities,NATHAN BECKETT,Neighbourhoods,3875.00,Building Maintenance & Improvements,2223P04_CR00631,137417
Sandwell Metropolitan Borough Council,http://www.sandwell.gov.uk/info/200202/performance_and_spending/1079/payments_over_500,01-Jul-2022,Housing & Communities,REDACTED PERSONAL DATA,Neighbourhoods,1629.78,Building Maintenance & Improvements,2223P04_CR00632,REDACTED PERSONAL DATA
Sandwell Metropolitan Borough Council,http://www.sandwell.gov.uk/info/200202/performance_and_spending/1079/payments_over_500,26-Jul-2022,Housing & Communities,A E HUDSON,Neighbourhoods,500.00,Rents,2223P04_CR00633,107342
Sandwell Metropolitan Borough Council,http://www.sandwell.gov.uk/info/200202/performance_and_spending/1079/payments_over_500,26-Jul-2022,Housing & Communities,A PRASHER,Neighbourhoods,500.00,Rents,2223P04_CR00634,112229
Sandwell Metropolitan Borough Council,http://www.sandwell.gov.uk/info/200202/performance_and_spending/1079/payments_over_500,26-Jul-2022,Housing & Communities,BALIJIT KAUR,Neighbourhoods,500.00,Rents,2223P04_CR00635,101860
Sandwell Metropolitan Borough Council,http://www.sandwell.gov.uk/info/200202/performance_and_spending/1079/payments_over_500,26-Jul-2022,Housing & Communities,BALWANT SINGH,Neighbourhoods,500.00,Rents,2223P04_CR00636,84433
Sandwell Metropolitan Borough Council,http://www.sandwell.gov.uk/info/200202/performance_and_spending/1079/payments_over_500,26-Jul-2022,Housing & Communities,CHRISTINE ANN CADDEN,Neighbourhoods,500.00,Rents,2223P04_CR00637,112728
Sandwell Metropolitan Borough Council,http://www.sandwell.gov.uk/info/200202/performance_and_spending/1079/payments_over_500,26-Jul-2022,Housing & Communities,J S GARCHA,Neighbourhoods,500.00,Rents,2223P04_CR00638,106491
Sandwell Metropolitan Borough Council,http://www.sandwell.gov.uk/info/200202/performance_and_spending/1079/payments_over_500,26-Jul-2022,Housing & Communities,Narinder singh.,Neighbourhoods,500.00,Rents,2223P04_CR00639,114091
Sandwell Metropolitan Borough Council,http://www.sandwell.gov.uk/info/200202/performance_and_spending/1079/payments_over_500,26-Jul-2022,Housing & Communities,ELEANOR MCGEE,Neighbourhoods,550.00,Rents,2223P04_CR00640,109162
Sandwell Metropolitan Borough Council,http://www.sandwell.gov.uk/info/200202/performance_and_spending/1079/payments_over_500,26-Jul-2022,Housing & Communities,LORNA DOUGLAS,Neighbourhoods,550.00,Rents,2223P04_CR00641,124809
Sandwell Metropolitan Borough Council,http://www.sandwell.gov.uk/info/200202/performance_and_spending/1079/payments_over_500,26-Jul-2022,Housing & Communities,MOHANAD ABBAS,Neighbourhoods,550.00,Rents,2223P04_CR00642,108876
Sandwell Metropolitan Borough Council,http://www.sandwell.gov.uk/info/200202/performance_and_spending/1079/payments_over_500,26-Jul-2022,Housing & Communities,SAKANDAR SINGH,Neighbourhoods,1000.00,Rents,2223P04_CR00643,117913
Sandwell Metropolitan Borough Council,http://www.sandwell.gov.uk/info/200202/performance_and_spending/1079/payments_over_500,01-Jul-2022,Housing & Communities,MULTISTORY,Neighbourhoods,28541.50,Grant Payments,2223P04_CR00644,6471
Sandwell Metropolitan Borough Council,http://www.sandwell.gov.uk/info/200202/performance_and_spending/1079/payments_over_500,13-Jul-2022,Housing & Communities,REWIND UK EDUCATION AND INTERVENTIONS LTD,Neighbourhoods,6250.00,Grant Payments,2223P04_CR00645,110507
Sandwell Metropolitan Borough Council,http://www.sandwell.gov.uk/info/200202/performance_and_spending/1079/payments_over_500,14-Jul-2022,Housing & Communities,VIBES N SHINE CIC,Neighbourhoods,5000.00,Grant Payments,2223P04_CR00646,163633
Sandwell Metropolitan Borough Council,http://www.sandwell.gov.uk/info/200202/performance_and_spending/1079/payments_over_500,01-Jul-2022,Housing & Communities,WARLEY COMMUNITY GYM,Neighbourhoods,4182.25,Grant Payments,2223P04_CR00647,01705613
Sandwell Metropolitan Borough Council,http://www.sandwell.gov.uk/info/200202/performance_and_spending/1079/payments_over_500,01-Jul-2022,Housing Revenue Account Capital,AXIS EUROPE PLC    ,Housing Revenue Account Capital,5297.93,Deferred Charges/Grant Payments,2223P04_CR00648,64946
Sandwell Metropolitan Borough Council,http://www.sandwell.gov.uk/info/200202/performance_and_spending/1079/payments_over_500,08-Jul-2022,Housing Revenue Account Capital,AXIS EUROPE PLC    ,Housing Revenue Account Capital,5436.04,Deferred Charges/Grant Payments,2223P04_CR00649,64946
Sandwell Metropolitan Borough Council,http://www.sandwell.gov.uk/info/200202/performance_and_spending/1079/payments_over_500,08-Jul-2022,Housing Revenue Account Capital,AXIS EUROPE PLC    ,Housing Revenue Account Capital,5587.87,Deferred Charges/Grant Payments,2223P04_CR00650,64946
Sandwell Metropolitan Borough Council,http://www.sandwell.gov.uk/info/200202/performance_and_spending/1079/payments_over_500,01-Jul-2022,Housing Revenue Account Capital,AXIS EUROPE PLC    ,Housing Revenue Account Capital,5946.70,Deferred Charges/Grant Payments,2223P04_CR00651,64946
Sandwell Metropolitan Borough Council,http://www.sandwell.gov.uk/info/200202/performance_and_spending/1079/payments_over_500,01-Jul-2022,Housing Revenue Account Capital,AXIS EUROPE PLC    ,Housing Revenue Account Capital,6006.77,Deferred Charges/Grant Payments,2223P04_CR00652,64946
Sandwell Metropolitan Borough Council,http://www.sandwell.gov.uk/info/200202/performance_and_spending/1079/payments_over_500,01-Jul-2022,Housing Revenue Account Capital,AXIS EUROPE PLC    ,Housing Revenue Account Capital,6052.43,Deferred Charges/Grant Payments,2223P04_CR00653,64946
Sandwell Metropolitan Borough Council,http://www.sandwell.gov.uk/info/200202/performance_and_spending/1079/payments_over_500,01-Jul-2022,Housing Revenue Account Capital,AXIS EUROPE PLC    ,Housing Revenue Account Capital,6197.72,Deferred Charges/Grant Payments,2223P04_CR00654,64946
Sandwell Metropolitan Borough Council,http://www.sandwell.gov.uk/info/200202/performance_and_spending/1079/payments_over_500,08-Jul-2022,Housing Revenue Account Capital,AXIS EUROPE PLC    ,Housing Revenue Account Capital,8488.99,Deferred Charges/Grant Payments,2223P04_CR00655,64946
Sandwell Metropolitan Borough Council,http://www.sandwell.gov.uk/info/200202/performance_and_spending/1079/payments_over_500,15-Jul-2022,Housing Revenue Account Capital,AXIS EUROPE PLC    ,Housing Revenue Account Capital,30000.00,Deferred Charges/Grant Payments,2223P04_CR00656,64946
Sandwell Metropolitan Borough Council,http://www.sandwell.gov.uk/info/200202/performance_and_spending/1079/payments_over_500,05-Jul-2022,Housing Revenue Account Capital,CONNECT SERVICES BUILDING SOLUTIONS LTD,Housing Revenue Account Capital,26348.11,"CIP - New Construction,Conversion, Enhancement & Reno",2223P04_CR00657,141859
Sandwell Metropolitan Borough Council,http://www.sandwell.gov.uk/info/200202/performance_and_spending/1079/payments_over_500,01-Jul-2022,Housing Revenue Account Capital,DOLPHIN LIFTS MIDLANDS LTD,Housing Revenue Account Capital,1426.66,Deferred Charges/Grant Payments,2223P04_CR00658,123852
Sandwell Metropolitan Borough Council,http://www.sandwell.gov.uk/info/200202/performance_and_spending/1079/payments_over_500,08-Jul-2022,Housing Revenue Account Capital,DOLPHIN LIFTS MIDLANDS LTD,Housing Revenue Account Capital,1483.66,Deferred Charges/Grant Payments,2223P04_CR00659,123852
Sandwell Metropolitan Borough Council,http://www.sandwell.gov.uk/info/200202/performance_and_spending/1079/payments_over_500,01-Jul-2022,Housing Revenue Account Capital,DOLPHIN LIFTS MIDLANDS LTD,Housing Revenue Account Capital,1644.08,Deferred Charges/Grant Payments,2223P04_CR00660,123852
Sandwell Metropolitan Borough Council,http://www.sandwell.gov.uk/info/200202/performance_and_spending/1079/payments_over_500,08-Jul-2022,Housing Revenue Account Capital,DOLPHIN LIFTS MIDLANDS LTD,Housing Revenue Account Capital,2240.80,Deferred Charges/Grant Payments,2223P04_CR00661,123852
Sandwell Metropolitan Borough Council,http://www.sandwell.gov.uk/info/200202/performance_and_spending/1079/payments_over_500,14-Jul-2022,Housing Revenue Account Capital,ENGIE REGENERATION LTD,Housing Revenue Account Capital,77500.00,"CIP - New Construction,Conversion, Enhancement & Reno",2223P04_CR00662,117893
Sandwell Metropolitan Borough Council,http://www.sandwell.gov.uk/info/200202/performance_and_spending/1079/payments_over_500,01-Jul-2022,Housing Revenue Account Capital,J MCCANN & CO LIMITED,Housing Revenue Account Capital,60493.18,CIP - Fixtures & Fittings,2223P04_CR00663,127457
Sandwell Metropolitan Borough Council,http://www.sandwell.gov.uk/info/200202/performance_and_spending/1079/payments_over_500,01-Jul-2022,Housing Revenue Account Capital,LIFT & ENGINEERING SERVICES LTD,Housing Revenue Account Capital,716.55,CIP - Fixtures & Fittings,2223P04_CR00664,77003962
Sandwell Metropolitan Borough Council,http://www.sandwell.gov.uk/info/200202/performance_and_spending/1079/payments_over_500,01-Jul-2022,Housing Revenue Account Capital,LIFT & ENGINEERING SERVICES LTD,Housing Revenue Account Capital,1717.33,CIP - Fixtures & Fittings,2223P04_CR00665,77003962
Sandwell Metropolitan Borough Council,http://www.sandwell.gov.uk/info/200202/performance_and_spending/1079/payments_over_500,01-Jul-2022,Housing Revenue Account Capital,LIFT & ENGINEERING SERVICES LTD,Housing Revenue Account Capital,1926.86,CIP - Fixtures & Fittings,2223P04_CR00666,77003962
Sandwell Metropolitan Borough Council,http://www.sandwell.gov.uk/info/200202/performance_and_spending/1079/payments_over_500,01-Jul-2022,Housing Revenue Account Capital,LIFT & ENGINEERING SERVICES LTD,Housing Revenue Account Capital,4446.26,CIP - Fixtures & Fittings,2223P04_CR00667,77003962
Sandwell Metropolitan Borough Council,http://www.sandwell.gov.uk/info/200202/performance_and_spending/1079/payments_over_500,01-Jul-2022,Housing Revenue Account Capital,LIFT & ENGINEERING SERVICES LTD,Housing Revenue Account Capital,5424.09,CIP - Fixtures & Fittings,2223P04_CR00668,77003962
Sandwell Metropolitan Borough Council,http://www.sandwell.gov.uk/info/200202/performance_and_spending/1079/payments_over_500,01-Jul-2022,Housing Revenue Account Capital,LIFT & ENGINEERING SERVICES LTD,Housing Revenue Account Capital,7584.07,"CIP - New Construction,Conversion, Enhancement & Reno",2223P04_CR00669,77003962
Sandwell Metropolitan Borough Council,http://www.sandwell.gov.uk/info/200202/performance_and_spending/1079/payments_over_500,12-Jul-2022,Housing Revenue Account Capital,LIFT & ENGINEERING SERVICES LTD,Housing Revenue Account Capital,7683.78,CIP - Fixtures & Fittings,2223P04_CR00670,77003962
Sandwell Metropolitan Borough Council,http://www.sandwell.gov.uk/info/200202/performance_and_spending/1079/payments_over_500,06-Jul-2022,Housing Revenue Account Capital,LIFT & ENGINEERING SERVICES LTD,Housing Revenue Account Capital,10822.63,CIP - Fixtures & Fittings,2223P04_CR00671,77003962
Sandwell Metropolitan Borough Council,http://www.sandwell.gov.uk/info/200202/performance_and_spending/1079/payments_over_500,01-Jul-2022,Housing Revenue Account Capital,LOVELL PARTNERSHIPS  LTD,Housing Revenue Account Capital,42705.92,"CIP - New Construction,Conversion, Enhancement & Reno",2223P04_CR00672,77007398
Sandwell Metropolitan Borough Council,http://www.sandwell.gov.uk/info/200202/performance_and_spending/1079/payments_over_500,01-Jul-2022,Housing Revenue Account Capital,LOVELL PARTNERSHIPS  LTD,Housing Revenue Account Capital,97316.00,"CIP - New Construction,Conversion, Enhancement & Reno",2223P04_CR00673,77007398
Sandwell Metropolitan Borough Council,http://www.sandwell.gov.uk/info/200202/performance_and_spending/1079/payments_over_500,06-Jul-2022,Housing Revenue Account Capital,LOVELL PARTNERSHIPS  LTD,Housing Revenue Account Capital,123884.01,"CIP - New Construction,Conversion, Enhancement & Reno",2223P04_CR00674,77007398
Sandwell Metropolitan Borough Council,http://www.sandwell.gov.uk/info/200202/performance_and_spending/1079/payments_over_500,01-Jul-2022,Housing Revenue Account Capital,LOVELL PARTNERSHIPS  LTD,Housing Revenue Account Capital,420367.28,"CIP - New Construction,Conversion, Enhancement & Reno",2223P04_CR00675,77007398
Sandwell Metropolitan Borough Council,http://www.sandwell.gov.uk/info/200202/performance_and_spending/1079/payments_over_500,01-Jul-2022,Housing Revenue Account Capital,MOTT MACDONALD LTD,Housing Revenue Account Capital,12000.00,"CIP - New Construction,Conversion, Enhancement & Reno",2223P04_CR00676,01722008
Sandwell Metropolitan Borough Council,http://www.sandwell.gov.uk/info/200202/performance_and_spending/1079/payments_over_500,01-Jul-2022,Housing Revenue Account Capital,MOTT MACDONALD LTD,Housing Revenue Account Capital,15987.93,"CIP - New Construction,Conversion, Enhancement & Reno",2223P04_CR00677,01722008
Sandwell Metropolitan Borough Council,http://www.sandwell.gov.uk/info/200202/performance_and_spending/1079/payments_over_500,01-Jul-2022,Housing Revenue Account Capital,MOVECORP HOLDINGS LTD,Housing Revenue Account Capital,590.00,Hire of Facilities,2223P04_CR00678,152623
Sandwell Metropolitan Borough Council,http://www.sandwell.gov.uk/info/200202/performance_and_spending/1079/payments_over_500,15-Jul-2022,Housing Revenue Account Capital,NATIONWIDE WINDOWS LIMITED,Housing Revenue Account Capital,117720.17,"CIP - New Construction,Conversion, Enhancement & Reno",2223P04_CR00679,108316
Sandwell Metropolitan Borough Council,http://www.sandwell.gov.uk/info/200202/performance_and_spending/1079/payments_over_500,01-Jul-2022,Housing Revenue Account Capital,NATIONWIDE WINDOWS LIMITED,Housing Revenue Account Capital,128062.07,"CIP - New Construction,Conversion, Enhancement & Reno",2223P04_CR00680,108316
Sandwell Metropolitan Borough Council,http://www.sandwell.gov.uk/info/200202/performance_and_spending/1079/payments_over_500,01-Jul-2022,Housing Revenue Account Capital,NEWEY ELECTRICAL INSTALLATIONS LIMITED,Housing Revenue Account Capital,975.31,Contract Payments,2223P04_CR00681,77009935
Sandwell Metropolitan Borough Council,http://www.sandwell.gov.uk/info/200202/performance_and_spending/1079/payments_over_500,01-Jul-2022,Housing Revenue Account Capital,PARCOR LTD,Housing Revenue Account Capital,7410.00,"CIP - New Construction,Conversion, Enhancement & Reno",2223P04_CR00682,163117
Sandwell Metropolitan Borough Council,http://www.sandwell.gov.uk/info/200202/performance_and_spending/1079/payments_over_500,02-Jul-2022,Housing Revenue Account Capital,POWRED HEATING COMPONENTS LIMITED,Housing Revenue Account Capital,2269.76,Contract Payments,2223P04_CR00683,133978
Sandwell Metropolitan Borough Council,http://www.sandwell.gov.uk/info/200202/performance_and_spending/1079/payments_over_500,01-Jul-2022,Housing Revenue Account Capital,POWRED HEATING COMPONENTS LIMITED,Housing Revenue Account Capital,5136.96,Materials & Consumables,2223P04_CR00684,133978
Sandwell Metropolitan Borough Council,http://www.sandwell.gov.uk/info/200202/performance_and_spending/1079/payments_over_500,01-Jul-2022,Housing Revenue Account Capital,POWRED HEATING COMPONENTS LIMITED,Housing Revenue Account Capital,5265.69,Materials & Consumables,2223P04_CR00685,133978
Sandwell Metropolitan Borough Council,http://www.sandwell.gov.uk/info/200202/performance_and_spending/1079/payments_over_500,01-Jul-2022,Housing Revenue Account Capital,PR PROPERTY MAINTENANCE,Housing Revenue Account Capital,1561.66,Deferred Charges/Grant Payments,2223P04_CR00686,33836
Sandwell Metropolitan Borough Council,http://www.sandwell.gov.uk/info/200202/performance_and_spending/1079/payments_over_500,15-Jul-2022,Housing Revenue Account Capital,PR PROPERTY MAINTENANCE,Housing Revenue Account Capital,1561.66,Deferred Charges/Grant Payments,2223P04_CR00687,33836
Sandwell Metropolitan Borough Council,http://www.sandwell.gov.uk/info/200202/performance_and_spending/1079/payments_over_500,15-Jul-2022,Housing Revenue Account Capital,PR PROPERTY MAINTENANCE,Housing Revenue Account Capital,2552.49,Deferred Charges/Grant Payments,2223P04_CR00688,33836
Sandwell Metropolitan Borough Council,http://www.sandwell.gov.uk/info/200202/performance_and_spending/1079/payments_over_500,13-Jul-2022,Housing Revenue Account Capital,PR PROPERTY MAINTENANCE,Housing Revenue Account Capital,3796.19,Deferred Charges/Grant Payments,2223P04_CR00689,33836
Sandwell Metropolitan Borough Council,http://www.sandwell.gov.uk/info/200202/performance_and_spending/1079/payments_over_500,13-Jul-2022,Housing Revenue Account Capital,PR PROPERTY MAINTENANCE,Housing Revenue Account Capital,5100.84,Deferred Charges/Grant Payments,2223P04_CR00690,33836
Sandwell Metropolitan Borough Council,http://www.sandwell.gov.uk/info/200202/performance_and_spending/1079/payments_over_500,01-Jul-2022,Housing Revenue Account Capital,PR PROPERTY MAINTENANCE,Housing Revenue Account Capital,6824.39,Deferred Charges/Grant Payments,2223P04_CR00691,33836
Sandwell Metropolitan Borough Council,http://www.sandwell.gov.uk/info/200202/performance_and_spending/1079/payments_over_500,01-Jul-2022,Housing Revenue Account Capital,PR PROPERTY MAINTENANCE,Housing Revenue Account Capital,7016.99,Deferred Charges/Grant Payments,2223P04_CR00692,33836
Sandwell Metropolitan Borough Council,http://www.sandwell.gov.uk/info/200202/performance_and_spending/1079/payments_over_500,01-Jul-2022,Housing Revenue Account Capital,PR PROPERTY MAINTENANCE,Housing Revenue Account Capital,7319.86,Deferred Charges/Grant Payments,2223P04_CR00693,33836
Sandwell Metropolitan Borough Council,http://www.sandwell.gov.uk/info/200202/performance_and_spending/1079/payments_over_500,01-Jul-2022,Housing Revenue Account Capital,PR PROPERTY MAINTENANCE,Housing Revenue Account Capital,7511.61,Deferred Charges/Grant Payments,2223P04_CR00694,33836
Sandwell Metropolitan Borough Council,http://www.sandwell.gov.uk/info/200202/performance_and_spending/1079/payments_over_500,01-Jul-2022,Housing Revenue Account Capital,PR PROPERTY MAINTENANCE,Housing Revenue Account Capital,8797.42,Deferred Charges/Grant Payments,2223P04_CR00695,33836
Sandwell Metropolitan Borough Council,http://www.sandwell.gov.uk/info/200202/performance_and_spending/1079/payments_over_500,13-Jul-2022,Housing Revenue Account Capital,PR PROPERTY MAINTENANCE,Housing Revenue Account Capital,8810.84,Deferred Charges/Grant Payments,2223P04_CR00696,33836
Sandwell Metropolitan Borough Council,http://www.sandwell.gov.uk/info/200202/performance_and_spending/1079/payments_over_500,01-Jul-2022,Housing Revenue Account Capital,PR PROPERTY MAINTENANCE,Housing Revenue Account Capital,8853.35,Deferred Charges/Grant Payments,2223P04_CR00697,33836
Sandwell Metropolitan Borough Council,http://www.sandwell.gov.uk/info/200202/performance_and_spending/1079/payments_over_500,01-Jul-2022,Housing Revenue Account Capital,PR PROPERTY MAINTENANCE,Housing Revenue Account Capital,11812.74,Deferred Charges/Grant Payments,2223P04_CR00698,33836
Sandwell Metropolitan Borough Council,http://www.sandwell.gov.uk/info/200202/performance_and_spending/1079/payments_over_500,08-Jul-2022,Housing Revenue Account Capital,PR PROPERTY MAINTENANCE,Housing Revenue Account Capital,18472.94,Deferred Charges/Grant Payments,2223P04_CR00699,33836
Sandwell Metropolitan Borough Council,http://www.sandwell.gov.uk/info/200202/performance_and_spending/1079/payments_over_500,13-Jul-2022,Housing Revenue Account Capital,PR PROPERTY MAINTENANCE,Housing Revenue Account Capital,26906.81,Deferred Charges/Grant Payments,2223P04_CR00700,33836
Sandwell Metropolitan Borough Council,http://www.sandwell.gov.uk/info/200202/performance_and_spending/1079/payments_over_500,01-Jul-2022,Housing Revenue Account Capital,RIDGE & PARTNERS LLP,Housing Revenue Account Capital,1000.00,"CIP - New Construction,Conversion, Enhancement & Reno",2223P04_CR00701,134994
Sandwell Metropolitan Borough Council,http://www.sandwell.gov.uk/info/200202/performance_and_spending/1079/payments_over_500,01-Jul-2022,Housing Revenue Account Capital,RIDGE & PARTNERS LLP,Housing Revenue Account Capital,2080.00,Consultancy,2223P04_CR00702,134994
Sandwell Metropolitan Borough Council,http://www.sandwell.gov.uk/info/200202/performance_and_spending/1079/payments_over_500,01-Jul-2022,Housing Revenue Account Capital,SEDDON CONSTRUCTION LIMITED,Housing Revenue Account Capital,121076.59,"CIP - New Construction,Conversion, Enhancement & Reno",2223P04_CR00703,132999
Sandwell Metropolitan Borough Council,http://www.sandwell.gov.uk/info/200202/performance_and_spending/1079/payments_over_500,11-Jul-2022,Housing Revenue Account Capital,SEDDON CONSTRUCTION LIMITED,Housing Revenue Account Capital,310072.94,"CIP - New Construction,Conversion, Enhancement & Reno",2223P04_CR00704,132999
Sandwell Metropolitan Borough Council,http://www.sandwell.gov.uk/info/200202/performance_and_spending/1079/payments_over_500,10-Jul-2022,Housing Revenue Account Capital,SEDDON CONSTRUCTION LIMITED,Housing Revenue Account Capital,772732.55,"CIP - New Construction,Conversion, Enhancement & Reno",2223P04_CR00705,132999
Sandwell Metropolitan Borough Council,http://www.sandwell.gov.uk/info/200202/performance_and_spending/1079/payments_over_500,01-Jul-2022,Housing Revenue Account Capital,SELECT WINDOWS (HOME IMPROVEMENTS) LIMITED,Housing Revenue Account Capital,507.73,Contract Payments,2223P04_CR00706,42616
Sandwell Metropolitan Borough Council,http://www.sandwell.gov.uk/info/200202/performance_and_spending/1079/payments_over_500,01-Jul-2022,Housing Revenue Account Capital,SELECT WINDOWS (HOME IMPROVEMENTS) LIMITED,Housing Revenue Account Capital,537.27,Contract Payments,2223P04_CR00707,42616
Sandwell Metropolitan Borough Council,http://www.sandwell.gov.uk/info/200202/performance_and_spending/1079/payments_over_500,01-Jul-2022,Housing Revenue Account Capital,SELECT WINDOWS (HOME IMPROVEMENTS) LIMITED,Housing Revenue Account Capital,673.90,Contract Payments,2223P04_CR00708,42616
Sandwell Metropolitan Borough Council,http://www.sandwell.gov.uk/info/200202/performance_and_spending/1079/payments_over_500,01-Jul-2022,Housing Revenue Account Capital,SELECT WINDOWS (HOME IMPROVEMENTS) LIMITED,Housing Revenue Account Capital,698.70,Contract Payments,2223P04_CR00709,42616
Sandwell Metropolitan Borough Council,http://www.sandwell.gov.uk/info/200202/performance_and_spending/1079/payments_over_500,01-Jul-2022,Housing Revenue Account Capital,SELECT WINDOWS (HOME IMPROVEMENTS) LIMITED,Housing Revenue Account Capital,712.13,Contract Payments,2223P04_CR00710,42616
Sandwell Metropolitan Borough Council,http://www.sandwell.gov.uk/info/200202/performance_and_spending/1079/payments_over_500,01-Jul-2022,Housing Revenue Account Capital,SELECT WINDOWS (HOME IMPROVEMENTS) LIMITED,Housing Revenue Account Capital,756.08,Contract Payments,2223P04_CR00711,42616
Sandwell Metropolitan Borough Council,http://www.sandwell.gov.uk/info/200202/performance_and_spending/1079/payments_over_500,01-Jul-2022,Housing Revenue Account Capital,SELECT WINDOWS (HOME IMPROVEMENTS) LIMITED,Housing Revenue Account Capital,993.05,Contract Payments,2223P04_CR00712,42616
Sandwell Metropolitan Borough Council,http://www.sandwell.gov.uk/info/200202/performance_and_spending/1079/payments_over_500,01-Jul-2022,Housing Revenue Account Capital,SELECT WINDOWS (HOME IMPROVEMENTS) LIMITED,Housing Revenue Account Capital,1022.05,Contract Payments,2223P04_CR00713,42616
